"SERVICE_CODE","ORGANISATION_UNIT","EXPENDITURE_CATEGORY","EXPENDITURE_DESCRIPTION","EXPENDITURE_CODE","NARRATIVE","DATE","TRANSATION_CODE","NET_AMOUNT","SUPPLIER_CODE","SUPPLIER_NAME","FROM_DATE","TO_DATE","FINANCIAL_PERIOD_YEAR"
"R&B","CORPORATE TRAINING","EMPLOYEES","TRAINING EXPENSES","1305","P118760-SERVICE-Ladder Safety Training",9/8/2022 00:00:00,"265321",30,"HI0455","HIGH SPEED TRAINING LIMITED",1/8/2022 00:00:00,28/8/2022 00:00:00,"P05-2023"
"R&B","CORPORATE TRAINING","EMPLOYEES","TRAINING EXPENSES","1305","P118808-SERVICE-The Art of Shouting Quiety Trainining Vine",9/8/2022 00:00:00,"265421",105,"VI0074","VINE HR LIMITED",1/8/2022 00:00:00,28/8/2022 00:00:00,"P05-2023"
"R&B","CORPORATE TRAINING","EMPLOYEES","TRAINING EXPENSES","1305","P118816-SERVICE-FAW TRAINING 27-29 JULY 2022",9/8/2022 00:00:00,"265592",1795,"RI0181","RD HEALTH & SAFETY LIMITED",1/8/2022 00:00:00,28/8/2022 00:00:00,"P05-2023"
"R&B","CORPORATE TRAINING","EMPLOYEES","TRAINING EXPENSES","1305","P119078-SERVICE-ED&I Training 16/08/2022",18/8/2022 00:00:00,"266224",1141.39,"KL0167","KLC EMPLOYMENT LAW CONSULTANTS",1/8/2022 00:00:00,28/8/2022 00:00:00,"P05-2023"
"R&B","CORPORATE TRAINING","EMPLOYEES","TRAINING EXPENSES","1305","P118817-SERVICE-IOSH WS TRAINING 9 AUG 22",24/8/2022 00:00:00,"266316",1250,"RI0181","RD HEALTH & SAFETY LIMITED",1/8/2022 00:00:00,28/8/2022 00:00:00,"P05-2023"
"P&V","YOUTH AND SCHOOLS","EMPLOYEES","TRAINING EXPENSES","1305","P118865-SERVICE-8 week online Mindfulness Course,starting Thu",3/8/2022 00:00:00,"265599",150,"MI0459","MINDFULNESS IN SCHOOLS PROJECT",1/8/2022 00:00:00,28/8/2022 00:00:00,"P05-2023"
"P&V","POLICY & PERFORMANCE (L&E)","EMPLOYEES","TRAINING EXPENSES","1305","P119109-SERVICE-Market research course",24/8/2022 00:00:00,"266307",475,"MA0284","THE MARKET RESEARCH SOCIETY",1/8/2022 00:00:00,28/8/2022 00:00:00,"P05-2023"
,"LEE VALLEY MARINA STANSTEAD","EMPLOYEES","CRB CHECKS","1330","DBS REFUND DUE TO PRICE DECREASE",22/8/2022 00:00:00,"266244",-5,"DD0119","DUE DILIGENCE CHECKING LIMITED",1/8/2022 00:00:00,28/8/2022 00:00:00,"P05-2023"
"P&V","LEE VALLEY FARM HOLYFIELDHALL","EMPLOYEES","CRB CHECKS","1330","DBS CHECKS",3/8/2022 00:00:00,"265673",18,"DD0119","DUE DILIGENCE CHECKING LIMITED",1/8/2022 00:00:00,28/8/2022 00:00:00,"P05-2023"
"P&V","LEE VALLEY FARM HOLYFIELDHALL","EMPLOYEES","CRB CHECKS","1330","ADMIN FEE",3/8/2022 00:00:00,"265673",18,"DD0119","DUE DILIGENCE CHECKING LIMITED",1/8/2022 00:00:00,28/8/2022 00:00:00,"P05-2023"
,"LEE VALLEY CAMPSITE","EMPLOYEES","CRB CHECKS","1330","ADMIN FEE",3/8/2022 00:00:00,"265673",18,"DD0119","DUE DILIGENCE CHECKING LIMITED",1/8/2022 00:00:00,28/8/2022 00:00:00,"P05-2023"
,"LEE VALLEY CARAVAN PARK","EMPLOYEES","CRB CHECKS","1330","DBS CHECKS",3/8/2022 00:00:00,"265673",18,"DD0119","DUE DILIGENCE CHECKING LIMITED",1/8/2022 00:00:00,28/8/2022 00:00:00,"P05-2023"
,"LEE VALLEY CARAVAN PARK","EMPLOYEES","CRB CHECKS","1330","ADMIN FEE",3/8/2022 00:00:00,"265673",18,"DD0119","DUE DILIGENCE CHECKING LIMITED",1/8/2022 00:00:00,28/8/2022 00:00:00,"P05-2023"
"P&V","YOUTH AND SCHOOLS","EMPLOYEES","CRB CHECKS","1330","ADMIN FEE",3/8/2022 00:00:00,"265673",36,"DD0119","DUE DILIGENCE CHECKING LIMITED",1/8/2022 00:00:00,28/8/2022 00:00:00,"P05-2023"
"P&V","YOUTH AND SCHOOLS","EMPLOYEES","CRB CHECKS","1330","DBS CHECKS",3/8/2022 00:00:00,"265673",76,"DD0119","DUE DILIGENCE CHECKING LIMITED",1/8/2022 00:00:00,28/8/2022 00:00:00,"P05-2023"
"P&V","YOUTH AND SCHOOLS","EMPLOYEES","CRB CHECKS","1330","DBS REFUND DUE TO PRICE DECREASE",22/8/2022 00:00:00,"266244",-2,"DD0119","DUE DILIGENCE CHECKING LIMITED",1/8/2022 00:00:00,28/8/2022 00:00:00,"P05-2023"
"P&V","MYDDELTON HOUSE GARDENS","EMPLOYEES","CRB CHECKS","1330","ADMIN FEE",3/8/2022 00:00:00,"265673",18,"DD0119","DUE DILIGENCE CHECKING LIMITED",1/8/2022 00:00:00,28/8/2022 00:00:00,"P05-2023"
"P&V","MYDDELTON HOUSE GARDENS","EMPLOYEES","CRB CHECKS","1330","DBS CHECKS",3/8/2022 00:00:00,"265673",18,"DD0119","DUE DILIGENCE CHECKING LIMITED",1/8/2022 00:00:00,28/8/2022 00:00:00,"P05-2023"
"P&V","MYDDLETON HSE HERITAGE CENTRE","EMPLOYEES","CRB CHECKS","1330","DBS REFUND DUE TO PRICE DECREASE",22/8/2022 00:00:00,"266244",-5,"DD0119","DUE DILIGENCE CHECKING LIMITED",1/8/2022 00:00:00,28/8/2022 00:00:00,"P05-2023"
"P&V","SOUTH AREA RANGERS","EMPLOYEES","CRB CHECKS","1330","DBS REFUND DUE TO PRICE DECREASE",22/8/2022 00:00:00,"266244",-2,"DD0119","DUE DILIGENCE CHECKING LIMITED",1/8/2022 00:00:00,28/8/2022 00:00:00,"P05-2023"
"P&V","SOUTH AREA RANGERS","EMPLOYEES","CRB CHECKS","1330","DBS REFUND DUE TO PRICE DECREASE",22/8/2022 00:00:00,"266244",-2,"DD0119","DUE DILIGENCE CHECKING LIMITED",1/8/2022 00:00:00,28/8/2022 00:00:00,"P05-2023"
"P&V","POLICY & PERFORMANCE (L&E)","EMPLOYEES","CRB CHECKS","1330","DBS REFUND DUE TO PRICE DECREASE",22/8/2022 00:00:00,"266244",-5,"DD0119","DUE DILIGENCE CHECKING LIMITED",1/8/2022 00:00:00,28/8/2022 00:00:00,"P05-2023"
"P&V","POLICY & PERFORMANCE (L&E)","EMPLOYEES","CRB CHECKS","1330","DBS REFUND DUE TO PRICE DECREASE",22/8/2022 00:00:00,"266244",-5,"DD0119","DUE DILIGENCE CHECKING LIMITED",1/8/2022 00:00:00,28/8/2022 00:00:00,"P05-2023"
,"LV LEISURE CENTRE CAMPSITE","EMPLOYEES","CRB CHECKS","1330","DBS REFUND DUE TO PRICE DECREASE",22/8/2022 00:00:00,"266244",-5,"DD0119","DUE DILIGENCE CHECKING LIMITED",1/8/2022 00:00:00,28/8/2022 00:00:00,"P05-2023"
,"LV LEISURE CENTRE GOLF COURSE","EMPLOYEES","CRB CHECKS","1330","DBS REFUND DUE TO PRICE DECREASE",22/8/2022 00:00:00,"266244",-5,"DD0119","DUE DILIGENCE CHECKING LIMITED",1/8/2022 00:00:00,28/8/2022 00:00:00,"P05-2023"
"CEO","REGENERATION & PLANNING","EMPLOYEES","DRIVING LICENCE CHECKS","1335","C MARTIN DRIVING LICENCE CHECK",4/8/2022 00:00:00,"265759",6.25,"FI0288","FIRST ADVANTAGE EUROPE LTD",1/8/2022 00:00:00,28/8/2022 00:00:00,"P05-2023"
"R&B","INFORMATION TECHNOLOGY","EMPLOYEES","DRIVING LICENCE CHECKS","1335","L BLUNDELL DRIVING LICENCE CHECK",4/8/2022 00:00:00,"265759",6.25,"FI0288","FIRST ADVANTAGE EUROPE LTD",1/8/2022 00:00:00,28/8/2022 00:00:00,"P05-2023"
"P&V","OPERATIONAL MANAGEMENT (L&E)","EMPLOYEES","DRIVING LICENCE CHECKS","1335","J HETHERINGTON DRIVING LICENCE CHECK",4/8/2022 00:00:00,"265759",6.25,"FI0288","FIRST ADVANTAGE EUROPE LTD",1/8/2022 00:00:00,28/8/2022 00:00:00,"P05-2023"
"P&V","EVENTS MANAGEMENT (PR)","EMPLOYEES","DRIVING LICENCE CHECKS","1335","S STONE DRIVING LICENCE CHECK",4/8/2022 00:00:00,"265759",6.25,"FI0288","FIRST ADVANTAGE EUROPE LTD",1/8/2022 00:00:00,28/8/2022 00:00:00,"P05-2023"
"R&B","CORPORATE TRAINING","EMPLOYEES","APPRENTICE LEVY","1390","PAYE",22/8/2022 00:00:00,"266124",746,"HM0368","HMRC",1/8/2022 00:00:00,28/8/2022 00:00:00,"P05-2023"
"CEO","LVLC SERVICE CHARGE","PREMISES RELATED EXPENDITURE","SCHEDULED GROUND MAINTENANCE","2111","GLENDALE GROUNDS MANAGEMENT LI",4/8/2022 00:00:00,"265611",2968.25,"GL0214","GLENDALE GROUNDS MANAGEMENT LIMITED",1/8/2022 00:00:00,28/8/2022 00:00:00,"P05-2023"
"CEO","LVLC SERVICE CHARGE","PREMISES RELATED EXPENDITURE","SCHEDULED GROUND MAINTENANCE","2111","GLENDALE GROUNDS MANAGEMENT LI",4/8/2022 00:00:00,"265611",108.26,"GL0214","GLENDALE GROUNDS MANAGEMENT LIMITED",1/8/2022 00:00:00,28/8/2022 00:00:00,"P05-2023"
"P&V","MYDDELTON HOUSE","PREMISES RELATED EXPENDITURE","CONTRACT CLEANING","2120","P117626-SERVICE-Contract Cleaning",28/8/2022 00:00:00,"266336",2335.32,"BR0632","BRITANNIA SERVICES GROUP LTD",1/8/2022 00:00:00,28/8/2022 00:00:00,"P05-2023"
,"LEE VALLEY WATERWORKS CENTRE","PREMISES RELATED EXPENDITURE","CONTRACT CLEANING","2120","P118242-SERVICE-Cleaning WaterWorks Centre",28/8/2022 00:00:00,"266333",758.4,"BR0632","BRITANNIA SERVICES GROUP LTD",1/8/2022 00:00:00,28/8/2022 00:00:00,"P05-2023"
,"LEE VALLEY CAMPSITE","PREMISES RELATED EXPENDITURE","CONTRACT CLEANING","2120","P118925-SERVICE-27/06/22 - 24/07/22",18/8/2022 00:00:00,"265532",291,"JO0168","JOHNSONS STALBRIDGE LINEN SERVICES",1/8/2022 00:00:00,28/8/2022 00:00:00,"P05-2023"
,"LEE VALLEY CAMPSITE","PREMISES RELATED EXPENDITURE","CONTRACT CLEANING","2120","P118920-SERVICE-skip fuel surcharge June 22",9/8/2022 00:00:00,"265585",13.32,"CL0037","VEOLIA ES (UK) LTD",1/8/2022 00:00:00,28/8/2022 00:00:00,"P05-2023"
,"LEE VALLEY CAMPSITE","PREMISES RELATED EXPENDITURE","CONTRACT CLEANING","2120","P118924-SERVICE-July 22",9/8/2022 00:00:00,"265801",3250,"LI0305","LIMPIAR CLEANING",1/8/2022 00:00:00,28/8/2022 00:00:00,"P05-2023"
,"LEE VALLEY CAMPSITE","PREMISES RELATED EXPENDITURE","CONTRACT CLEANING","2120","P118742-SERVICE-26/08/22 - 25/09/22",17/8/2022 00:00:00,"265871",84.71,"IN0012","INITIAL WASHROOM HYGIENE",1/8/2022 00:00:00,28/8/2022 00:00:00,"P05-2023"
,"LEE VALLEY CAMPSITE","PREMISES RELATED EXPENDITURE","CONTRACT CLEANING","2120","P118742-SERVICE-26/09/22 - 25/10/22",17/8/2022 00:00:00,"265871",2.12,"IN0012","INITIAL WASHROOM HYGIENE",1/8/2022 00:00:00,28/8/2022 00:00:00,"P05-2023"
,"LEE VALLEY CAMPSITE","PREMISES RELATED EXPENDITURE","CONTRACT CLEANING","2120","P119071-SERVICE-Floor deep cleans",18/8/2022 00:00:00,"265993",275,"LI0305","LIMPIAR CLEANING",1/8/2022 00:00:00,28/8/2022 00:00:00,"P05-2023"
,"LEE VALLEY CARAVAN PARK","PREMISES RELATED EXPENDITURE","CONTRACT CLEANING","2120","P118934-SERVICE-Monthly cleaning service",9/8/2022 00:00:00,"265533",589.61,"JO0168","JOHNSONS STALBRIDGE LINEN SERVICES",1/8/2022 00:00:00,28/8/2022 00:00:00,"P05-2023"
,"LEE VALLEY CARAVAN PARK","PREMISES RELATED EXPENDITURE","CONTRACT CLEANING","2120","P118930-SERVICE-Accommodation cleaning",15/8/2022 00:00:00,"265800",3560,"LI0305","LIMPIAR CLEANING",1/8/2022 00:00:00,28/8/2022 00:00:00,"P05-2023"
,"LEE VALLEY CARAVAN PARK","PREMISES RELATED EXPENDITURE","CONTRACT CLEANING","2120","P119184-SERVICE-Washroom hygiene",28/8/2022 00:00:00,"266317",93.28,"IN0012","INITIAL WASHROOM HYGIENE",1/8/2022 00:00:00,28/8/2022 00:00:00,"P05-2023"
,"LEE VALLEY CARAVAN PARK","PREMISES RELATED EXPENDITURE","CONTRACT CLEANING","2120","P119185-SERVICE-Linen cleaning",28/8/2022 00:00:00,"266441",587.59,"JO0168","JOHNSONS STALBRIDGE LINEN SERVICES",1/8/2022 00:00:00,28/8/2022 00:00:00,"P05-2023"
"P&V","NORTH AREA RANGERS","PREMISES RELATED EXPENDITURE","CONTRACT CLEANING","2120","GLENDALE GROUNDS MANAGEMENT LI",4/8/2022 00:00:00,"265611",395.98,"GL0214","GLENDALE GROUNDS MANAGEMENT LIMITED",1/8/2022 00:00:00,28/8/2022 00:00:00,"P05-2023"
"P&V","NORTH AREA RANGERS","PREMISES RELATED EXPENDITURE","CONTRACT CLEANING","2120","P118094-SERVICE-Cleaning",28/8/2022 00:00:00,"266332",359.28,"BR0632","BRITANNIA SERVICES GROUP LTD",1/8/2022 00:00:00,28/8/2022 00:00:00,"P05-2023"
"P&V","GUNPOWDER PARK","PREMISES RELATED EXPENDITURE","CONTRACT CLEANING","2120","GLENDALE GROUNDS MANAGEMENT LI",4/8/2022 00:00:00,"265611",542.17,"GL0214","GLENDALE GROUNDS MANAGEMENT LIMITED",1/8/2022 00:00:00,28/8/2022 00:00:00,"P05-2023"
"P&V","RIVER LEE COUNTRY PARK","PREMISES RELATED EXPENDITURE","CONTRACT CLEANING","2120","GLENDALE GROUNDS MANAGEMENT LI",4/8/2022 00:00:00,"265611",1084.34,"GL0214","GLENDALE GROUNDS MANAGEMENT LIMITED",1/8/2022 00:00:00,28/8/2022 00:00:00,"P05-2023"
,"LV LEISURE CENTRE CAMPSITE","PREMISES RELATED EXPENDITURE","CONTRACT CLEANING","2120","P118673-SERVICE-Skip collection and exchange",4/8/2022 00:00:00,"264823",2255.85,"CL0037","VEOLIA ES (UK) LTD",1/8/2022 00:00:00,28/8/2022 00:00:00,"P05-2023"
,"LV LEISURE CENTRE CAMPSITE","PREMISES RELATED EXPENDITURE","CONTRACT CLEANING","2120","P118676-SERVICE-monthly cabin/cocoon cleaning",4/8/2022 00:00:00,"264949",2177,"LI0305","LIMPIAR CLEANING",1/8/2022 00:00:00,28/8/2022 00:00:00,"P05-2023"
,"LV LEISURE CENTRE CAMPSITE","PREMISES RELATED EXPENDITURE","CONTRACT CLEANING","2120","P118926-SERVICE-13/08/22-12/09/22",9/8/2022 00:00:00,"264995",145.99,"PE0015","PHS GROUP PLC",1/8/2022 00:00:00,28/8/2022 00:00:00,"P05-2023"
,"LV LEISURE CENTRE CAMPSITE","PREMISES RELATED EXPENDITURE","CONTRACT CLEANING","2120","P119090-SERVICE-Cleaning toilets cabins cocoons and tepee",23/8/2022 00:00:00,"265802",4386,"LI0305","LIMPIAR CLEANING",1/8/2022 00:00:00,28/8/2022 00:00:00,"P05-2023"
"P&V","MYDDLETON HSE HERITAGE CENTRE","PREMISES RELATED EXPENDITURE","CLEANING CONTRACT","2121","P118226-SERVICE-Cleaning Bowles Tea Room (Visitor Centre)",28/8/2022 00:00:00,"266334",778.44,"BR0632","BRITANNIA SERVICES GROUP LTD",1/8/2022 00:00:00,28/8/2022 00:00:00,"P05-2023"
,"LEE VALLEY MARINA STANSTEAD","PREMISES RELATED EXPENDITURE","GM MAIN CONTRACT SCHEDULED","2141","GLENDALE GROUNDS MANAGEMENT LI",4/8/2022 00:00:00,"265611",378.42,"GL0214","GLENDALE GROUNDS MANAGEMENT LIMITED",1/8/2022 00:00:00,28/8/2022 00:00:00,"P05-2023"
,"LEE VALLEY WATERWORKS CENTRE","PREMISES RELATED EXPENDITURE","GM MAIN CONTRACT SCHEDULED","2141","GLENDALE GROUNDS MANAGEMENT LI",4/8/2022 00:00:00,"265611",260.88,"GL0214","GLENDALE GROUNDS MANAGEMENT LIMITED",1/8/2022 00:00:00,28/8/2022 00:00:00,"P05-2023"
,"LEE VALLEY WATERWORKS CENTRE","PREMISES RELATED EXPENDITURE","GM MAIN CONTRACT SCHEDULED","2141","GLENDALE GROUNDS MANAGEMENT LI",4/8/2022 00:00:00,"265611",595.05,"GL0214","GLENDALE GROUNDS MANAGEMENT LIMITED",1/8/2022 00:00:00,28/8/2022 00:00:00,"P05-2023"
,"LEE VALLEY FARM HAYES HILL","PREMISES RELATED EXPENDITURE","GM MAIN CONTRACT SCHEDULED","2141","GLENDALE GROUNDS MANAGEMENT LI",4/8/2022 00:00:00,"265611",306,"GL0214","GLENDALE GROUNDS MANAGEMENT LIMITED",1/8/2022 00:00:00,28/8/2022 00:00:00,"P05-2023"
"P&V","EAST INDIA DOCK AND BOW CREEK","PREMISES RELATED EXPENDITURE","GM MAIN CONTRACT SCHEDULED","2141","GLENDALE GROUNDS MANAGEMENT LI",4/8/2022 00:00:00,"265611",834.36,"GL0214","GLENDALE GROUNDS MANAGEMENT LIMITED",1/8/2022 00:00:00,28/8/2022 00:00:00,"P05-2023"
"P&V","EAST INDIA DOCK AND BOW CREEK","PREMISES RELATED EXPENDITURE","GM MAIN CONTRACT SCHEDULED","2141","GLENDALE GROUNDS MANAGEMENT LI",4/8/2022 00:00:00,"265611",931.76,"GL0214","GLENDALE GROUNDS MANAGEMENT LIMITED",1/8/2022 00:00:00,28/8/2022 00:00:00,"P05-2023"
"P&V","NORTH AREA RANGERS","PREMISES RELATED EXPENDITURE","GM MAIN CONTRACT SCHEDULED","2141","GLENDALE GROUNDS MANAGEMENT LI",4/8/2022 00:00:00,"265611",5610.98,"GL0214","GLENDALE GROUNDS MANAGEMENT LIMITED",1/8/2022 00:00:00,28/8/2022 00:00:00,"P05-2023"
"P&V","SOUTH AREA RANGERS","PREMISES RELATED EXPENDITURE","GM MAIN CONTRACT SCHEDULED","2141","GLENDALE GROUNDS MANAGEMENT LI",4/8/2022 00:00:00,"265611",6408.88,"GL0214","GLENDALE GROUNDS MANAGEMENT LIMITED",1/8/2022 00:00:00,28/8/2022 00:00:00,"P05-2023"
"P&V","SOUTH AREA RANGERS","PREMISES RELATED EXPENDITURE","GM MAIN CONTRACT SCHEDULED","2141","GLENDALE GROUNDS MANAGEMENT LI",4/8/2022 00:00:00,"265611",745.41,"GL0214","GLENDALE GROUNDS MANAGEMENT LIMITED",1/8/2022 00:00:00,28/8/2022 00:00:00,"P05-2023"
"P&V","ABBEY GARDENS","PREMISES RELATED EXPENDITURE","GM MAIN CONTRACT SCHEDULED","2141","GLENDALE GROUNDS MANAGEMENT LI",4/8/2022 00:00:00,"265611",2842.32,"GL0214","GLENDALE GROUNDS MANAGEMENT LIMITED",1/8/2022 00:00:00,28/8/2022 00:00:00,"P05-2023"
"P&V","GUNPOWDER PARK","PREMISES RELATED EXPENDITURE","GM MAIN CONTRACT SCHEDULED","2141","GLENDALE GROUNDS MANAGEMENT LI",4/8/2022 00:00:00,"265611",2798.45,"GL0214","GLENDALE GROUNDS MANAGEMENT LIMITED",1/8/2022 00:00:00,28/8/2022 00:00:00,"P05-2023"
"P&V","RIVER LEE COUNTRY PARK","PREMISES RELATED EXPENDITURE","GM MAIN CONTRACT SCHEDULED","2141","GLENDALE GROUNDS MANAGEMENT LI",4/8/2022 00:00:00,"265611",2608.92,"GL0214","GLENDALE GROUNDS MANAGEMENT LIMITED",1/8/2022 00:00:00,28/8/2022 00:00:00,"P05-2023"
"P&V","RIVER LEE COUNTRY PARK","PREMISES RELATED EXPENDITURE","GM MAIN CONTRACT SCHEDULED","2141","GLENDALE GROUNDS MANAGEMENT LI",4/8/2022 00:00:00,"265611",16359.56,"GL0214","GLENDALE GROUNDS MANAGEMENT LIMITED",1/8/2022 00:00:00,28/8/2022 00:00:00,"P05-2023"
,"LEE VALLEY VELOPARK","PREMISES RELATED EXPENDITURE","GM MAIN CONTRACT SCHEDULED","2141","GLENDALE GROUNDS MANAGEMENT LI",4/8/2022 00:00:00,"265611",7087.23,"GL0214","GLENDALE GROUNDS MANAGEMENT LIMITED",1/8/2022 00:00:00,28/8/2022 00:00:00,"P05-2023"
,"LV HOCKEY AND TENNIS CENTRE","PREMISES RELATED EXPENDITURE","GM MAIN CONTRACT SCHEDULED","2141","GLENDALE GROUNDS MANAGEMENT LI",4/8/2022 00:00:00,"265611",4358.07,"GL0214","GLENDALE GROUNDS MANAGEMENT LIMITED",1/8/2022 00:00:00,28/8/2022 00:00:00,"P05-2023"
"P&V","THREE MILLS","PREMISES RELATED EXPENDITURE","GM MAIN CONTRACT SCHEDULED","2141","GLENDALE GROUNDS MANAGEMENT LI",4/8/2022 00:00:00,"265611",1593.99,"GL0214","GLENDALE GROUNDS MANAGEMENT LIMITED",1/8/2022 00:00:00,28/8/2022 00:00:00,"P05-2023"
,"LEE VALLEY RIDING CENTRE","PREMISES RELATED EXPENDITURE","GM MAIN CONTRACT SCHEDULED","2141","GLENDALE GROUNDS MANAGEMENT LI",4/8/2022 00:00:00,"265611",462.16,"GL0214","GLENDALE GROUNDS MANAGEMENT LIMITED",1/8/2022 00:00:00,28/8/2022 00:00:00,"P05-2023"
,"LEE VALLEY ICE CENTRE","PREMISES RELATED EXPENDITURE","GM MAIN CONTRACT SCHEDULED","2141","GLENDALE GROUNDS MANAGEMENT LI",4/8/2022 00:00:00,"265611",329.82,"GL0214","GLENDALE GROUNDS MANAGEMENT LIMITED",1/8/2022 00:00:00,28/8/2022 00:00:00,"P05-2023"
"P&V","FORMER LV LIDO SITE","PREMISES RELATED EXPENDITURE","GM MAIN CONTRACT SCHEDULED","2141","GLENDALE GROUNDS MANAGEMENT LI",4/8/2022 00:00:00,"265611",1091.9,"GL0214","GLENDALE GROUNDS MANAGEMENT LIMITED",1/8/2022 00:00:00,28/8/2022 00:00:00,"P05-2023"
,"LEE VALLEY ATHLETICS CENTRE","PREMISES RELATED EXPENDITURE","GM MAIN CONTRACT SCHEDULED","2141","GLENDALE GROUNDS MANAGEMENT LI",4/8/2022 00:00:00,"265611",655.21,"GL0214","GLENDALE GROUNDS MANAGEMENT LIMITED",1/8/2022 00:00:00,28/8/2022 00:00:00,"P05-2023"
,"LEE VALLEY WHITE WATER CENTRE","PREMISES RELATED EXPENDITURE","GM MAIN CONTRACT SCHEDULED","2141","GLENDALE GROUNDS MANAGEMENT LI",4/8/2022 00:00:00,"265611",2602.94,"GL0214","GLENDALE GROUNDS MANAGEMENT LIMITED",1/8/2022 00:00:00,28/8/2022 00:00:00,"P05-2023"
"P&V","SOUTH AREA RANGERS","PREMISES RELATED EXPENDITURE","GM MAIN CONTRACT UNSCHEDULED","2142","GLENDALE GROUNDS MANAGEMENT LI",4/8/2022 00:00:00,"265611",730.26,"GL0214","GLENDALE GROUNDS MANAGEMENT LIMITED",1/8/2022 00:00:00,28/8/2022 00:00:00,"P05-2023"
,"LEE VALLEY WATERWORKS CENTRE","PREMISES RELATED EXPENDITURE","GM HORTICULTURE SCHEDULED","2143","GLENDALE GROUNDS MANAGEMENT LI",4/8/2022 00:00:00,"265611",166.85,"GL0214","GLENDALE GROUNDS MANAGEMENT LIMITED",1/8/2022 00:00:00,28/8/2022 00:00:00,"P05-2023"
"P&V","NORTH AREA RANGERS","PREMISES RELATED EXPENDITURE","GM HORTICULTURE SCHEDULED","2143","GLENDALE GROUNDS MANAGEMENT LI",4/8/2022 00:00:00,"265611",248.06,"GL0214","GLENDALE GROUNDS MANAGEMENT LIMITED",1/8/2022 00:00:00,28/8/2022 00:00:00,"P05-2023"
"P&V","SOUTH AREA RANGERS","PREMISES RELATED EXPENDITURE","GM HORTICULTURE SCHEDULED","2143","GLENDALE GROUNDS MANAGEMENT LI",4/8/2022 00:00:00,"265611",142.22,"GL0214","GLENDALE GROUNDS MANAGEMENT LIMITED",1/8/2022 00:00:00,28/8/2022 00:00:00,"P05-2023"
"P&V","ABBEY GARDENS","PREMISES RELATED EXPENDITURE","GM HORTICULTURE SCHEDULED","2143","GLENDALE GROUNDS MANAGEMENT LI",4/8/2022 00:00:00,"265611",1938.16,"GL0214","GLENDALE GROUNDS MANAGEMENT LIMITED",1/8/2022 00:00:00,28/8/2022 00:00:00,"P05-2023"
"P&V","GUNPOWDER PARK","PREMISES RELATED EXPENDITURE","GM HORTICULTURE SCHEDULED","2143","GLENDALE GROUNDS MANAGEMENT LI",4/8/2022 00:00:00,"265611",254.42,"GL0214","GLENDALE GROUNDS MANAGEMENT LIMITED",1/8/2022 00:00:00,28/8/2022 00:00:00,"P05-2023"
"P&V","RIVER LEE COUNTRY PARK","PREMISES RELATED EXPENDITURE","GM HORTICULTURE SCHEDULED","2143","GLENDALE GROUNDS MANAGEMENT LI",4/8/2022 00:00:00,"265611",132.03,"GL0214","GLENDALE GROUNDS MANAGEMENT LIMITED",1/8/2022 00:00:00,28/8/2022 00:00:00,"P05-2023"
,"LEE VALLEY VELOPARK","PREMISES RELATED EXPENDITURE","GM HORTICULTURE SCHEDULED","2143","GLENDALE GROUNDS MANAGEMENT LI",4/8/2022 00:00:00,"265611",1131.69,"GL0214","GLENDALE GROUNDS MANAGEMENT LIMITED",1/8/2022 00:00:00,28/8/2022 00:00:00,"P05-2023"
,"LV HOCKEY AND TENNIS CENTRE","PREMISES RELATED EXPENDITURE","GM HORTICULTURE SCHEDULED","2143","GLENDALE GROUNDS MANAGEMENT LI",4/8/2022 00:00:00,"265611",1629.71,"GL0214","GLENDALE GROUNDS MANAGEMENT LIMITED",1/8/2022 00:00:00,28/8/2022 00:00:00,"P05-2023"
"P&V","THREE MILLS","PREMISES RELATED EXPENDITURE","GM HORTICULTURE SCHEDULED","2143","GLENDALE GROUNDS MANAGEMENT LI",4/8/2022 00:00:00,"265611",52.89,"GL0214","GLENDALE GROUNDS MANAGEMENT LIMITED",1/8/2022 00:00:00,28/8/2022 00:00:00,"P05-2023"
,"LEE VALLEY RIDING CENTRE","PREMISES RELATED EXPENDITURE","GM HORTICULTURE SCHEDULED","2143","GLENDALE GROUNDS MANAGEMENT LI",4/8/2022 00:00:00,"265611",13.22,"GL0214","GLENDALE GROUNDS MANAGEMENT LIMITED",1/8/2022 00:00:00,28/8/2022 00:00:00,"P05-2023"
"P&V","FORMER LV LIDO SITE","PREMISES RELATED EXPENDITURE","GM HORTICULTURE SCHEDULED","2143","GLENDALE GROUNDS MANAGEMENT LI",4/8/2022 00:00:00,"265611",12.61,"GL0214","GLENDALE GROUNDS MANAGEMENT LIMITED",1/8/2022 00:00:00,28/8/2022 00:00:00,"P05-2023"
,"LEE VALLEY WHITE WATER CENTRE","PREMISES RELATED EXPENDITURE","GM HORTICULTURE SCHEDULED","2143","GLENDALE GROUNDS MANAGEMENT LI",4/8/2022 00:00:00,"265611",28.88,"GL0214","GLENDALE GROUNDS MANAGEMENT LIMITED",1/8/2022 00:00:00,28/8/2022 00:00:00,"P05-2023"
"P&V","GUNPOWDER PARK","PREMISES RELATED EXPENDITURE","GM ARBORICULTURE UNSCHEDULED","2146","P118763-SERVICE-Tree Works Sewardstone Marsh",10/8/2022 00:00:00,"265807",150,"PA0222","PARKIN & PARKER TREE SPECIALISTS",1/8/2022 00:00:00,28/8/2022 00:00:00,"P05-2023"
"P&V","GUNPOWDER PARK","PREMISES RELATED EXPENDITURE","GM ARBORICULTURE UNSCHEDULED","2146","P118763-SERVICE-Tree Works Gunpowder Park Boardwalk",10/8/2022 00:00:00,"265807",150,"PA0222","PARKIN & PARKER TREE SPECIALISTS",1/8/2022 00:00:00,28/8/2022 00:00:00,"P05-2023"
"P&V","RIVER LEE COUNTRY PARK","PREMISES RELATED EXPENDITURE","GM ARBORICULTURE UNSCHEDULED","2146","P118854-SERVICE-Tree Works at Cheshunt Country Walk",23/8/2022 00:00:00,"265988",310,"VE0004","PRINCIPAL TREES LTD",1/8/2022 00:00:00,28/8/2022 00:00:00,"P05-2023"
"P&V","SOUTH AREA RANGERS","PREMISES RELATED EXPENDITURE","GM NON MAIN CONT UNSCHEDULED","2147","P118907-SERVICE-Skip - Velo Park",4/8/2022 00:00:00,"265368",389.07,"GB0239","GBN SERVICES LTD",1/8/2022 00:00:00,28/8/2022 00:00:00,"P05-2023"
"P&V","SOUTH AREA RANGERS","PREMISES RELATED EXPENDITURE","GM NON MAIN CONT UNSCHEDULED","2147","P118962-SERVICE-Three Mills Reinstatement Work - Labour & Mat",16/8/2022 00:00:00,"265974",1600,"BU0090","BUSH WHEELER SERVICES LTD",1/8/2022 00:00:00,28/8/2022 00:00:00,"P05-2023"
"P&V","GUNPOWDER PARK","PREMISES RELATED EXPENDITURE","GM NON MAIN CONT UNSCHEDULED","2147","P118807-SERVICE-Rammey Marsh Gate Repairs",4/8/2022 00:00:00,"265755",445,"LW0268","LWC ENGINEERING LIMITED",1/8/2022 00:00:00,28/8/2022 00:00:00,"P05-2023"
"P&V","RIVER LEE COUNTRY PARK","PREMISES RELATED EXPENDITURE","GM NON MAIN CONT UNSCHEDULED","2147","P118943-SERVICE-Entrance Fence Removal - Showground",22/8/2022 00:00:00,"266255",450,"BU0090","BUSH WHEELER SERVICES LTD",1/8/2022 00:00:00,28/8/2022 00:00:00,"P05-2023"
"P&V","THREE MILLS","PREMISES RELATED EXPENDITURE","GM NON MAIN CONT UNSCHEDULED","2147","P114565-SERVICE-Re-harrowing grass areas to form cultivation",4/8/2022 00:00:00,"265676",6300,"BU0090","BUSH WHEELER SERVICES LTD",1/8/2022 00:00:00,28/8/2022 00:00:00,"P05-2023"
"P&V","SOUTH AREA RANGERS","PREMISES RELATED EXPENDITURE","HABITAT MANAGEMENT WORKS","2149","P118810-SERVICE-Tree Works at Wathamstow Marsh",4/8/2022 00:00:00,"265681",395,"PA0222","PARKIN & PARKER TREE SPECIALISTS",1/8/2022 00:00:00,28/8/2022 00:00:00,"P05-2023"
"P&V","SOUTH AREA RANGERS","PREMISES RELATED EXPENDITURE","HABITAT MANAGEMENT WORKS","2149","P118832-SERVICE-20 Yard Open Top RORO Skip - Hockey & Tennis",23/8/2022 00:00:00,"265904",143,"GB0239","GBN SERVICES LTD",1/8/2022 00:00:00,28/8/2022 00:00:00,"P05-2023"
"P&V","SOUTH AREA RANGERS","PREMISES RELATED EXPENDITURE","HABITAT MANAGEMENT WORKS","2149","P118969-SERVICE-Yellow Rattle 500g Seed Mix",23/8/2022 00:00:00,"265995",95.83,"NA0178","NATURESCAPE BRITISH WILD FLOWERS",1/8/2022 00:00:00,28/8/2022 00:00:00,"P05-2023"
"P&V","SOUTH AREA RANGERS","PREMISES RELATED EXPENDITURE","HABITAT MANAGEMENT WORKS","2149","P119117-SERVICE-Remove OPM Nests at Riding Centre Frontage",23/8/2022 00:00:00,"266306",375,"GL0214","GLENDALE GROUNDS MANAGEMENT LIMITED",1/8/2022 00:00:00,28/8/2022 00:00:00,"P05-2023"
"P&V","GUNPOWDER PARK","PREMISES RELATED EXPENDITURE","HABITAT MANAGEMENT WORKS","2149","P118961-SERVICE-Japanese Knotweed Spraying - Rammey Marsh",10/8/2022 00:00:00,"265886",225,"GO0044","S.H.GOSS & CO LTD",1/8/2022 00:00:00,28/8/2022 00:00:00,"P05-2023"
"P&V","THREE MILLS","PREMISES RELATED EXPENDITURE","HABITAT MANAGEMENT WORKS","2149","P119004-SERVICE-Emergency crown lift Three Mills",22/8/2022 00:00:00,"266232",350,"PA0222","PARKIN & PARKER TREE SPECIALISTS",1/8/2022 00:00:00,28/8/2022 00:00:00,"P05-2023"
"P&V","NORTH AREA RANGERS","PREMISES RELATED EXPENDITURE","MEADOW CUTS","2150","P118064-SERVICE-Meadow Cuts at Various Sites - Lee Valley Par",4/8/2022 00:00:00,"265623",6664.3,"MA0002","GTM RURAL  ENTERPRISES LIMITED",1/8/2022 00:00:00,28/8/2022 00:00:00,"P05-2023"
"P&V","SOUTH AREA RANGERS","PREMISES RELATED EXPENDITURE","MEADOW CUTS","2150","P118064-SERVICE-Meadow Cuts at Various Sites - Lee Valley Par",4/8/2022 00:00:00,"265623",6664.3,"MA0002","GTM RURAL  ENTERPRISES LIMITED",1/8/2022 00:00:00,28/8/2022 00:00:00,"P05-2023"
,"LEE VALLEY MARINA SPRINGFIELD","PREMISES RELATED EXPENDITURE","GENERAL WASTE","2211","P117556-SERVICE-General Waste & Recyling for April,May,June",16/8/2022 00:00:00,"265589",25.16,"CL0037","VEOLIA ES (UK) LTD",1/8/2022 00:00:00,28/8/2022 00:00:00,"P05-2023"
,"LEE VALLEY MARINA SPRINGFIELD","PREMISES RELATED EXPENDITURE","GENERAL WASTE","2211","P117556-SERVICE-General Waste & Recyling for April,May,June",16/8/2022 00:00:00,"265815",959.7,"CL0037","VEOLIA ES (UK) LTD",1/8/2022 00:00:00,28/8/2022 00:00:00,"P05-2023"
,"LEE VALLEY MARINA STANSTEAD","PREMISES RELATED EXPENDITURE","GENERAL WASTE","2211","P117691-SERVICE-Annual useage Veolia -bins 4 Rye and Stan Mar",18/8/2022 00:00:00,"265583",24.42,"CL0037","VEOLIA ES (UK) LTD",1/8/2022 00:00:00,28/8/2022 00:00:00,"P05-2023"
,"LEE VALLEY MARINA STANSTEAD","PREMISES RELATED EXPENDITURE","GENERAL WASTE","2211","P117691-SERVICE-Annual useage Veolia -bins 4 Rye and Stan Mar",18/8/2022 00:00:00,"265587",3.52,"CL0037","VEOLIA ES (UK) LTD",1/8/2022 00:00:00,28/8/2022 00:00:00,"P05-2023"
,"LEE VALLEY MARINA STANSTEAD","PREMISES RELATED EXPENDITURE","GENERAL WASTE","2211","P117691-SERVICE-Annual useage Veolia -bins 4 Rye and Stan Mar",16/8/2022 00:00:00,"265778",207.56,"CL0037","VEOLIA ES (UK) LTD",1/8/2022 00:00:00,28/8/2022 00:00:00,"P05-2023"
,"LEE VALLEY MARINA STANSTEAD","PREMISES RELATED EXPENDITURE","GENERAL WASTE","2211","P117691-SERVICE-Annual useage Veolia -bins 4 Rye and Stan Mar",16/8/2022 00:00:00,"265779",13.47,"CL0037","VEOLIA ES (UK) LTD",1/8/2022 00:00:00,28/8/2022 00:00:00,"P05-2023"
,"LEE VALLEY MARINA STANSTEAD","PREMISES RELATED EXPENDITURE","GENERAL WASTE","2211","P117691-SERVICE-Annual useage Veolia -bins 4 Rye and Stan Mar",16/8/2022 00:00:00,"265780",689.51,"CL0037","VEOLIA ES (UK) LTD",1/8/2022 00:00:00,28/8/2022 00:00:00,"P05-2023"
,"LEE VALLEY CAMPSITE","PREMISES RELATED EXPENDITURE","GENERAL WASTE","2211","P119072-SERVICE-Skip emplty July 22",18/8/2022 00:00:00,"265783",641.09,"CL0037","VEOLIA ES (UK) LTD",1/8/2022 00:00:00,28/8/2022 00:00:00,"P05-2023"
,"LEE VALLEY CARAVAN PARK","PREMISES RELATED EXPENDITURE","GENERAL WASTE","2211","P118937-SERVICE-Surcharge fuel",10/8/2022 00:00:00,"265584",52.3,"CL0037","VEOLIA ES (UK) LTD",1/8/2022 00:00:00,28/8/2022 00:00:00,"P05-2023"
,"LEE VALLEY CARAVAN PARK","PREMISES RELATED EXPENDITURE","GENERAL WASTE","2211","P118998-SERVICE-Monthly charge",15/8/2022 00:00:00,"265781",124.75,"CL0037","VEOLIA ES (UK) LTD",1/8/2022 00:00:00,28/8/2022 00:00:00,"P05-2023"
"P&V","SOUTH AREA RANGERS","PREMISES RELATED EXPENDITURE","GENERAL WASTE","2211","P117695-SERVICE-Skip at WaterWorks Centre",4/8/2022 00:00:00,"265411",308,"GB0239","GBN SERVICES LTD",1/8/2022 00:00:00,28/8/2022 00:00:00,"P05-2023"
"P&V","SOUTH AREA RANGERS","PREMISES RELATED EXPENDITURE","GENERAL WASTE","2211","P117695-SERVICE-Skip at WaterWorks Centre",23/8/2022 00:00:00,"266275",203.5,"GB0239","GBN SERVICES LTD",1/8/2022 00:00:00,28/8/2022 00:00:00,"P05-2023"
"P&V","SOUTH AREA RANGERS","PREMISES RELATED EXPENDITURE","GENERAL WASTE","2211","P117695-SERVICE-Skip at WaterWorks Centre",23/8/2022 00:00:00,"266275",104.5,"GB0239","GBN SERVICES LTD",1/8/2022 00:00:00,28/8/2022 00:00:00,"P05-2023"
"P&V","SOUTH AREA RANGERS","PREMISES RELATED EXPENDITURE","GENERAL WASTE","2211","P119064-SERVICE-Litter Clearance - Waterworks Field",23/8/2022 00:00:00,"266296",600,"JO0019","R G JOYCE",1/8/2022 00:00:00,28/8/2022 00:00:00,"P05-2023"
"P&V","RIVER LEE COUNTRY PARK","PREMISES RELATED EXPENDITURE","GENERAL WASTE","2211","P117498-SERVICE-12yd General Rubbish Skip at Holyfield Hall F",16/8/2022 00:00:00,"265983",308,"GB0239","GBN SERVICES LTD",1/8/2022 00:00:00,28/8/2022 00:00:00,"P05-2023"
"P&V","RIVER LEE COUNTRY PARK","PREMISES RELATED EXPENDITURE","GENERAL WASTE","2211","P117498-SERVICE-12yd General Rubbish Skip at Holyfield Hall F",22/8/2022 00:00:00,"266251",308,"GB0239","GBN SERVICES LTD",1/8/2022 00:00:00,28/8/2022 00:00:00,"P05-2023"
,"LV LEISURE CENTRE CAMPSITE","PREMISES RELATED EXPENDITURE","GENERAL WASTE","2211","P118929-SERVICE-skip and compactor",9/8/2022 00:00:00,"265586",124.41,"CL0037","VEOLIA ES (UK) LTD",1/8/2022 00:00:00,28/8/2022 00:00:00,"P05-2023"
,"LV LEISURE CENTRE CAMPSITE","PREMISES RELATED EXPENDITURE","GENERAL WASTE","2211","P119103-SERVICE-skip and compactor charges",28/8/2022 00:00:00,"265782",781.25,"CL0037","VEOLIA ES (UK) LTD",1/8/2022 00:00:00,28/8/2022 00:00:00,"P05-2023"
,"LV LEISURE CENTRE CAMPSITE","PREMISES RELATED EXPENDITURE","GENERAL WASTE","2211","P119093-SERVICE-Recycling",22/8/2022 00:00:00,"265805",343.04,"BY0049","BYWATERS (LEYTON) LTD",1/8/2022 00:00:00,28/8/2022 00:00:00,"P05-2023"
"P&V","MYDDELTON HOUSE","PREMISES RELATED EXPENDITURE","RECYCLING","2214","P117532-SERVICE-Recycling",9/8/2022 00:00:00,"265832",188.82,"CA0341","F & R CAWLEY LTD",1/8/2022 00:00:00,28/8/2022 00:00:00,"P05-2023"
"P&V","MYDDELTON HOUSE","PREMISES RELATED EXPENDITURE","BUILDING SERVICE AGREEMENTS","2220","P118773-SERVICE-Sanitary Services",23/8/2022 00:00:00,"266289",58.72,"PE0015","PHS GROUP PLC",1/8/2022 00:00:00,28/8/2022 00:00:00,"P05-2023"
,"LEE VALLEY MARINA STANSTEAD","PREMISES RELATED EXPENDITURE","BUILDING SERVICE AGREEMENTS","2220","P118841-SERVICE-annual contract chandlery intruder alarm",16/8/2022 00:00:00,"265205",178.31,"CH0088","CHUBB FIRE & SECURITY",1/8/2022 00:00:00,28/8/2022 00:00:00,"P05-2023"
,"LEE VALLEY WATERWORKS CENTRE","PREMISES RELATED EXPENDITURE","BUILDING SERVICE AGREEMENTS","2220","P119178-SERVICE-Engineering Service to Carry out PPM - Jul 22",28/8/2022 00:00:00,"266442",997.62,"CO0199","EQUANS FM LIMITED (frmlyENGIE FM LIMITED)",1/8/2022 00:00:00,28/8/2022 00:00:00,"P05-2023"
,"LEE VALLEY CAMPSITE","PREMISES RELATED EXPENDITURE","BUILDING SERVICE AGREEMENTS","2220","P118102-SERVICE-June 22",9/8/2022 00:00:00,"265663",70,"VE0006","VERMINATE CITY & RURAL PEST CONTROL LTD",1/8/2022 00:00:00,28/8/2022 00:00:00,"P05-2023"
,"LEE VALLEY CAMPSITE","PREMISES RELATED EXPENDITURE","BUILDING SERVICE AGREEMENTS","2220","P118102-SERVICE-July 22",9/8/2022 00:00:00,"265664",70,"VE0006","VERMINATE CITY & RURAL PEST CONTROL LTD",1/8/2022 00:00:00,28/8/2022 00:00:00,"P05-2023"
,"LEE VALLEY CARAVAN PARK","PREMISES RELATED EXPENDITURE","BUILDING SERVICE AGREEMENTS","2220","P118984-SERVICE-Monthly pest control",15/8/2022 00:00:00,"265665",70,"VE0006","VERMINATE CITY & RURAL PEST CONTROL LTD",1/8/2022 00:00:00,28/8/2022 00:00:00,"P05-2023"
,"LEE VALLEY CARAVAN PARK","PREMISES RELATED EXPENDITURE","BUILDING SERVICE AGREEMENTS","2220","P118985-SERVICE-Monthly pest control",15/8/2022 00:00:00,"265666",70,"VE0006","VERMINATE CITY & RURAL PEST CONTROL LTD",1/8/2022 00:00:00,28/8/2022 00:00:00,"P05-2023"
"P&V","GUNPOWDER PARK","PREMISES RELATED EXPENDITURE","BUILDING SERVICE AGREEMENTS","2220","P117222-SERVICE-Sanitary Disposal - Gunpowder Park - Public T",16/8/2022 00:00:00,"266024",14.3,"PE0015","PHS GROUP PLC",1/8/2022 00:00:00,28/8/2022 00:00:00,"P05-2023"
"P&V","GUNPOWDER PARK","PREMISES RELATED EXPENDITURE","BUILDING SERVICE AGREEMENTS","2220","P116312-SERVICE-Building Servcie Agreement - Gunpowder Park",22/8/2022 00:00:00,"266257",145.96,"CO0199","EQUANS FM LIMITED (frmlyENGIE FM LIMITED)",1/8/2022 00:00:00,28/8/2022 00:00:00,"P05-2023"
"P&V","RIVER LEE COUNTRY PARK","PREMISES RELATED EXPENDITURE","BUILDING SERVICE AGREEMENTS","2220","P117224-SERVICE-Sanitary Disposal - Fishers Green Toilets",16/8/2022 00:00:00,"266023",10.07,"PE0015","PHS GROUP PLC",1/8/2022 00:00:00,28/8/2022 00:00:00,"P05-2023"
"P&V","RIVER LEE COUNTRY PARK","PREMISES RELATED EXPENDITURE","BUILDING SERVICE AGREEMENTS","2220","P117218-SERVICE-Sharps Container - Ranger Farm Office",23/8/2022 00:00:00,"266290",0.95,"PE0015","PHS GROUP PLC",1/8/2022 00:00:00,28/8/2022 00:00:00,"P05-2023"
"P&V","RIVER LEE COUNTRY PARK","PREMISES RELATED EXPENDITURE","BUILDING SERVICE AGREEMENTS","2220","P117218-SERVICE-Sanitary Disposal - Ranger Base Office Holyfi",23/8/2022 00:00:00,"266290",2.55,"PE0015","PHS GROUP PLC",1/8/2022 00:00:00,28/8/2022 00:00:00,"P05-2023"
,"LV LEISURE CENTRE CAMPSITE","PREMISES RELATED EXPENDITURE","BUILDING SERVICE AGREEMENTS","2220","P119016-SERVICE-Barrier repair",18/8/2022 00:00:00,"266110",239,"AP0032","APT SECURITY SYSTEMS",1/8/2022 00:00:00,28/8/2022 00:00:00,"P05-2023"
,"LEE VALLEY CARAVAN PARK","PREMISES RELATED EXPENDITURE","ENGINEERING SERVICE AGREEMENTS","2221","P119000-SERVICE-Dryer not heating, drawers sticking",15/8/2022 00:00:00,"265905",175,"AL0434","ALLSOP & FRANCIS",1/8/2022 00:00:00,28/8/2022 00:00:00,"P05-2023"
,"LV LEISURE CENTRE CAMPSITE","PREMISES RELATED EXPENDITURE","ENGINEERING SERVICE AGREEMENTS","2221","P119091-SERVICE-Sanitary bins",22/8/2022 00:00:00,"264009",145.99,"PE0015","PHS GROUP PLC",1/8/2022 00:00:00,28/8/2022 00:00:00,"P05-2023"
,"LV LEISURE CENTRE CAMPSITE","PREMISES RELATED EXPENDITURE","ENGINEERING SERVICE AGREEMENTS","2221","P119092-SERVICE-Sanitary bins",22/8/2022 00:00:00,"265897",147.33,"PE0015","PHS GROUP PLC",1/8/2022 00:00:00,28/8/2022 00:00:00,"P05-2023"
"P&V","MYDDELTON HOUSE","PREMISES RELATED EXPENDITURE","BUILDING REPAIRS & MAINTENANCE","2222","P118972-SERVICE-Myddelton House Repairs",9/8/2022 00:00:00,"265850",165,"BR0018","BRADSHAW ELECTRICAL LIMITED",1/8/2022 00:00:00,28/8/2022 00:00:00,"P05-2023"
"P&V","MYDDELTON HOUSE","PREMISES RELATED EXPENDITURE","BUILDING REPAIRS & MAINTENANCE","2222","P119046-SERVICE-Myddelton House Window Cleaning",16/8/2022 00:00:00,"266032",750,"PH0424","PHOENIX WINDOW CLEANING LTD",1/8/2022 00:00:00,28/8/2022 00:00:00,"P05-2023"
"P&V","MYDDELTON HOUSE","PREMISES RELATED EXPENDITURE","BUILDING REPAIRS & MAINTENANCE","2222","P119047-SERVICE-Myddelton House Gutters & Gulleys Clean",16/8/2022 00:00:00,"266033",605,"PH0424","PHOENIX WINDOW CLEANING LTD",1/8/2022 00:00:00,28/8/2022 00:00:00,"P05-2023"
"P&V","MYDDELTON HOUSE","PREMISES RELATED EXPENDITURE","BUILDING REPAIRS & MAINTENANCE","2222","P119198-SERVICE-Door Closer/Bulb",28/8/2022 00:00:00,"266476",44.91,"SC0057","SCREWFIX DIRECT LTD",1/8/2022 00:00:00,28/8/2022 00:00:00,"P05-2023"
"CEO","RESIDENTIAL ACCOMMODATION","PREMISES RELATED EXPENDITURE","BUILDING REPAIRS & MAINTENANCE","2222","P118986-SERVICE-2 Bungalow - Pest Control",15/8/2022 00:00:00,"265616",75,"WA0315","PAUL WALLACE ESTATE AGENTS",1/8/2022 00:00:00,28/8/2022 00:00:00,"P05-2023"
"CEO","RESIDENTIAL ACCOMMODATION","PREMISES RELATED EXPENDITURE","BUILDING REPAIRS & MAINTENANCE","2222","P118988-SERVICE-Roselea Pest Control",15/8/2022 00:00:00,"265822",120,"CA0165","CASTLES",1/8/2022 00:00:00,28/8/2022 00:00:00,"P05-2023"
"CEO","RESIDENTIAL ACCOMMODATION","PREMISES RELATED EXPENDITURE","BUILDING REPAIRS & MAINTENANCE","2222","P118989-SERVICE-Roselea - Repair Back Door",15/8/2022 00:00:00,"265823",284.84,"CA0165","CASTLES",1/8/2022 00:00:00,28/8/2022 00:00:00,"P05-2023"
"CEO","RESIDENTIAL ACCOMMODATION","PREMISES RELATED EXPENDITURE","BUILDING REPAIRS & MAINTENANCE","2222","P118990-SERVICE-Rosela - Inventory & Condition Check",15/8/2022 00:00:00,"265824",150,"CA0165","CASTLES",1/8/2022 00:00:00,28/8/2022 00:00:00,"P05-2023"
"CEO","RESIDENTIAL ACCOMMODATION","PREMISES RELATED EXPENDITURE","BUILDING REPAIRS & MAINTENANCE","2222","P118992-SERVICE-Marshgate Tenancy Entry Clean",15/8/2022 00:00:00,"265893",70,"WA0315","PAUL WALLACE ESTATE AGENTS",1/8/2022 00:00:00,28/8/2022 00:00:00,"P05-2023"
"CEO","RESIDENTIAL ACCOMMODATION","PREMISES RELATED EXPENDITURE","BUILDING REPAIRS & MAINTENANCE","2222","P119009-SERVICE-Marshgate Cottage - Carpets",22/8/2022 00:00:00,"265971",1914.84,"WA0315","PAUL WALLACE ESTATE AGENTS",1/8/2022 00:00:00,28/8/2022 00:00:00,"P05-2023"
"CEO","RESIDENTIAL ACCOMMODATION","PREMISES RELATED EXPENDITURE","BUILDING REPAIRS & MAINTENANCE","2222","P119076-SERVICE-Marshgate Cottage Inventory",22/8/2022 00:00:00,"265997",220,"WA0315","PAUL WALLACE ESTATE AGENTS",1/8/2022 00:00:00,28/8/2022 00:00:00,"P05-2023"
"CEO","RESIDENTIAL ACCOMMODATION","PREMISES RELATED EXPENDITURE","BUILDING REPAIRS & MAINTENANCE","2222","P119169-SERVICE-Marshgate Cottage Gardening",28/8/2022 00:00:00,"266007",340,"KE0023","KENDALL & SONS LIMITED",1/8/2022 00:00:00,28/8/2022 00:00:00,"P05-2023"
"CEO","RESIDENTIAL ACCOMMODATION","PREMISES RELATED EXPENDITURE","BUILDING REPAIRS & MAINTENANCE","2222","P119168-SERVICE-Marshgate - Electrical Safety Certificate",28/8/2022 00:00:00,"266243",228,"WA0315","PAUL WALLACE ESTATE AGENTS",1/8/2022 00:00:00,28/8/2022 00:00:00,"P05-2023"
"CEO","COMMERCIAL ACCOMMODATION","PREMISES RELATED EXPENDITURE","BUILDING REPAIRS & MAINTENANCE","2222","P118987-SERVICE-LV Forge Gas",15/8/2022 00:00:00,"265747",19.61,"CA0006","CALOR GAS LIMITED",1/8/2022 00:00:00,28/8/2022 00:00:00,"P05-2023"
"CEO","COMMERCIAL ACCOMMODATION","PREMISES RELATED EXPENDITURE","BUILDING REPAIRS & MAINTENANCE","2222","P119005-SERVICE-Man & Van in Connection with Common Wealth Ga",15/8/2022 00:00:00,"266003",2195,"RO0355","REMOVAL REMEDY LTD",1/8/2022 00:00:00,28/8/2022 00:00:00,"P05-2023"
"P&V","ASSET PROTECTION, MAINT, DEVEL","PREMISES RELATED EXPENDITURE","BUILDING REPAIRS & MAINTENANCE","2222","P118353-SERVICE-Supply and Fit New Access Ramp in Accord with",15/8/2022 00:00:00,"265894",4930,"QU0029","QUADRABUILD LTD",1/8/2022 00:00:00,28/8/2022 00:00:00,"P05-2023"
"P&V","ASSET PROTECTION, MAINT, DEVEL","PREMISES RELATED EXPENDITURE","BUILDING REPAIRS & MAINTENANCE","2222","P118366-SERVICE-To Attend White Water Centre with Hiab and Re",18/8/2022 00:00:00,"266222",2146,"CL0039","XYLEM WATER SOLUTIONS UK  LIMITED",1/8/2022 00:00:00,28/8/2022 00:00:00,"P05-2023"
,"LEE VALLEY MARINA SPRINGFIELD","PREMISES RELATED EXPENDITURE","BUILDING REPAIRS & MAINTENANCE","2222","P117786-SERVICE-To supply pest & vermin control",16/8/2022 00:00:00,"265658",450,"VE0006","VERMINATE CITY & RURAL PEST CONTROL LTD",1/8/2022 00:00:00,28/8/2022 00:00:00,"P05-2023"
,"LEE VALLEY MARINA SPRINGFIELD","PREMISES RELATED EXPENDITURE","BUILDING REPAIRS & MAINTENANCE","2222","P118751-SERVICE-To service and inspection of Extinguisher",16/8/2022 00:00:00,"266013",461.85,"TJ0009","T.J.FIRE & SECURITY",1/8/2022 00:00:00,28/8/2022 00:00:00,"P05-2023"
,"LEE VALLEY MARINA SPRINGFIELD","PREMISES RELATED EXPENDITURE","BUILDING REPAIRS & MAINTENANCE","2222","P119044-SERVICE-2 x adhoc maintenance visits",18/8/2022 00:00:00,"266112",300,"DE0013","DENNIS SECURITY CENTRE",1/8/2022 00:00:00,28/8/2022 00:00:00,"P05-2023"
"P&V","LEE VALLEY FARM HOLYFIELDHALL","PREMISES RELATED EXPENDITURE","BUILDING REPAIRS & MAINTENANCE","2222","P118967-SERVICE-Gate Repair",15/8/2022 00:00:00,"265679",189,"PS0429","PSL AUTOMATION",1/8/2022 00:00:00,28/8/2022 00:00:00,"P05-2023"
"P&V","LEE VALLEY FARM HOLYFIELDHALL","PREMISES RELATED EXPENDITURE","BUILDING REPAIRS & MAINTENANCE","2222","P117595-SERVICE-Building Repairs",28/8/2022 00:00:00,"266269",123.4,"JE0011","SAINT-GOBAIN BUILDING DISTRIBUTION",1/8/2022 00:00:00,28/8/2022 00:00:00,"P05-2023"
,"LEE VALLEY CARAVAN PARK","PREMISES RELATED EXPENDITURE","BUILDING REPAIRS & MAINTENANCE","2222","CAPSER",9/8/2022 00:00:00,"265522",200,"MO0041","CAPSER",1/8/2022 00:00:00,28/8/2022 00:00:00,"P05-2023"
,"LEE VALLEY CARAVAN PARK","PREMISES RELATED EXPENDITURE","BUILDING REPAIRS & MAINTENANCE","2222","CAPSER",9/8/2022 00:00:00,"265522",-800,"MO0041","CAPSER",1/8/2022 00:00:00,28/8/2022 00:00:00,"P05-2023"
,"LEE VALLEY CARAVAN PARK","PREMISES RELATED EXPENDITURE","BUILDING REPAIRS & MAINTENANCE","2222","P118460-SERVICE-Road repair next to rental caravan",9/8/2022 00:00:00,"265522",800,"MO0041","CAPSER",1/8/2022 00:00:00,28/8/2022 00:00:00,"P05-2023"
,"LEE VALLEY CARAVAN PARK","PREMISES RELATED EXPENDITURE","BUILDING REPAIRS & MAINTENANCE","2222","CAPSER",9/8/2022 00:00:00,"265522",600,"MO0041","CAPSER",1/8/2022 00:00:00,28/8/2022 00:00:00,"P05-2023"
"P&V","RIVER LEE COUNTRY PARK","PREMISES RELATED EXPENDITURE","BUILDING REPAIRS & MAINTENANCE","2222","P118276-SERVICE-Deep Clean Fishers Green Toilets",16/8/2022 00:00:00,"265999",278.26,"GL0214","GLENDALE GROUNDS MANAGEMENT LIMITED",1/8/2022 00:00:00,28/8/2022 00:00:00,"P05-2023"
"P&V","RIVER LEE COUNTRY PARK","PREMISES RELATED EXPENDITURE","BUILDING REPAIRS & MAINTENANCE","2222","P118938-SERVICE-Replace Fire Extinguisher",23/8/2022 00:00:00,"266235",51.72,"TJ0009","T.J.FIRE & SECURITY",1/8/2022 00:00:00,28/8/2022 00:00:00,"P05-2023"
,"LV LEISURE CENTRE CAMPSITE","PREMISES RELATED EXPENDITURE","BUILDING REPAIRS & MAINTENANCE","2222","P118956-SERVICE-Replace tiles/Ball valve/Un-blk wst/Rep tap",15/8/2022 00:00:00,"265031",320,"PA0348","PA JONES PLUMBING & HEATING",1/8/2022 00:00:00,28/8/2022 00:00:00,"P05-2023"
,"LEE VALLEY WHITE WATER CENTRE","PREMISES RELATED EXPENDITURE","BUILDING REPAIRS & MAINTENANCE","2222","P116627-SERVICE-Quote 22-PIMS-01330 Alt. 1. Ver 1",9/8/2022 00:00:00,"265535",38448.01,"CL0039","XYLEM WATER SOLUTIONS UK  LIMITED",1/8/2022 00:00:00,28/8/2022 00:00:00,"P05-2023"
"CEO","LVLC SERVICE CHARGE","PREMISES RELATED EXPENDITURE","BUILDING REPAIRS & MAINTENANCE","2222","P117653-SERVICE-Contract Sweep",15/8/2022 00:00:00,"265909",150,"SE0374","SELECT SWEEPER HIRE LTD",1/8/2022 00:00:00,28/8/2022 00:00:00,"P05-2023"
,"LEE VALLEY WHITE WATER CENTRE","PREMISES RELATED EXPENDITURE","ENGINEERING SERVICES CONTRACT","2223","P114398-SERVICE-Ventillation Maintenenace",4/8/2022 00:00:00,"265541",514.37,"GI0137","R & P GIBBS LIMITED",1/8/2022 00:00:00,28/8/2022 00:00:00,"P05-2023"
,"LEE VALLEY WHITE WATER CENTRE","PREMISES RELATED EXPENDITURE","ENGINEERING SERVICES CONTRACT","2223","P116580-SERVICE-21-PIMS-08577 Alt. 1 Ver. 1",18/8/2022 00:00:00,"266219",1898.18,"CL0039","XYLEM WATER SOLUTIONS UK  LIMITED",1/8/2022 00:00:00,28/8/2022 00:00:00,"P05-2023"
,"LEE VALLEY WHITE WATER CENTRE","PREMISES RELATED EXPENDITURE","ENGINEERING SERVICES CONTRACT","2223","P116579-SERVICE-Quote:  22-PIMS-01237 Alt. 1 Ver. 1",18/8/2022 00:00:00,"266220",578.9,"CL0039","XYLEM WATER SOLUTIONS UK  LIMITED",1/8/2022 00:00:00,28/8/2022 00:00:00,"P05-2023"
,"LEE VALLEY WHITE WATER CENTRE","PREMISES RELATED EXPENDITURE","ENGINEERING SERVICES CONTRACT","2223","P116813-SERVICE-Quote:  22-PIMS-01563 Alt 1 ver 1",18/8/2022 00:00:00,"266221",2146,"CL0039","XYLEM WATER SOLUTIONS UK  LIMITED",1/8/2022 00:00:00,28/8/2022 00:00:00,"P05-2023"
"P&V","GUNPOWDER PARK","SUPPLIES AND SERVICES","FENCES/GATES ETC.","2231","P118894-SERVICE-Fence Repairs at Rammey Marsh",24/8/2022 00:00:00,"266297",400,"JO0019","R G JOYCE",1/8/2022 00:00:00,28/8/2022 00:00:00,"P05-2023"
"P&V","RIVER LEE COUNTRY PARK","SUPPLIES AND SERVICES","FENCES/GATES ETC.","2231","P117954-SERVICE-Memorial Plaque - Pennell",28/8/2022 00:00:00,"266335",58.34,"JA0162","JAG'S TROPHIES",1/8/2022 00:00:00,28/8/2022 00:00:00,"P05-2023"
"P&V","SOUTH AREA RANGERS","SUPPLIES AND SERVICES","PARK SIGNS AND BOARDS","2236","P118873-SERVICE-1x No Unauthorised Entry Construction Signs 3",24/8/2022 00:00:00,"265863",14.39,"SE0018","BRADY CORPORATION LIMITED/SETON",1/8/2022 00:00:00,28/8/2022 00:00:00,"P05-2023"
"P&V","SOUTH AREA RANGERS","SUPPLIES AND SERVICES","PARK SIGNS AND BOARDS","2236","P118873-SERVICE-Delivery",24/8/2022 00:00:00,"265863",6.95,"SE0018","BRADY CORPORATION LIMITED/SETON",1/8/2022 00:00:00,28/8/2022 00:00:00,"P05-2023"
"P&V","SOUTH AREA RANGERS","SUPPLIES AND SERVICES","PARK SIGNS AND BOARDS","2236","P118873-SERVICE-1x Hazard Warning Symbol Signs, vinyl self-ad",24/8/2022 00:00:00,"265863",3.67,"SE0018","BRADY CORPORATION LIMITED/SETON",1/8/2022 00:00:00,28/8/2022 00:00:00,"P05-2023"
"CEO","COMMERCIAL ACCOMMODATION","PREMISES RELATED EXPENDITURE","EAST HALE ALLOTMENTS","2261","P117652-SERVICE-Allotment Bins",15/8/2022 00:00:00,"265588",2.2,"CL0037","VEOLIA ES (UK) LTD",1/8/2022 00:00:00,28/8/2022 00:00:00,"P05-2023"
"CEO","COMMERCIAL ACCOMMODATION","PREMISES RELATED EXPENDITURE","EAST HALE ALLOTMENTS","2261","P117652-SERVICE-Allotment Bins",15/8/2022 00:00:00,"265816",114.94,"CL0037","VEOLIA ES (UK) LTD",1/8/2022 00:00:00,28/8/2022 00:00:00,"P05-2023"
"P&V","MYDDELTON HOUSE","PREMISES RELATED EXPENDITURE","ENERGY COSTS (ELECTRICITY)","2332","KENT COUNTY COUNCIL (KCS)",18/8/2022 00:00:00,"266085",1734.6,"KE0007","KENT COUNTY COUNCIL (KCS)",1/8/2022 00:00:00,28/8/2022 00:00:00,"P05-2023"
"CEO","RESIDENTIAL ACCOMMODATION","PREMISES RELATED EXPENDITURE","ENERGY COSTS (ELECTRICITY)","2332","BULB ENERGY LIMITED",18/8/2022 00:00:00,"265536",144.33,"BU0646","BULB ENERGY LIMITED",1/8/2022 00:00:00,28/8/2022 00:00:00,"P05-2023"
"CEO","COMMERCIAL ACCOMMODATION","PREMISES RELATED EXPENDITURE","ENERGY COSTS (ELECTRICITY)","2332","E-ON NEXT ENERGY LTD",15/8/2022 00:00:00,"265864",50.77,"EO0398","E-ON NEXT ENERGY LTD",1/8/2022 00:00:00,28/8/2022 00:00:00,"P05-2023"
"CEO","COMMERCIAL ACCOMMODATION","PREMISES RELATED EXPENDITURE","ENERGY COSTS (ELECTRICITY)","2332","E-ON NEXT ENERGY LTD",15/8/2022 00:00:00,"265885",24.11,"EO0398","E-ON NEXT ENERGY LTD",1/8/2022 00:00:00,28/8/2022 00:00:00,"P05-2023"
"CEO","COMMERCIAL ACCOMMODATION","PREMISES RELATED EXPENDITURE","ENERGY COSTS (ELECTRICITY)","2332","E-ON NEXT ENERGY LTD",18/8/2022 00:00:00,"266025",10.56,"EO0398","E-ON NEXT ENERGY LTD",1/8/2022 00:00:00,28/8/2022 00:00:00,"P05-2023"
,"LEE VALLEY MARINA SPRINGFIELD","PREMISES RELATED EXPENDITURE","ENERGY COSTS (ELECTRICITY)","2332","KENT COUNTY COUNCIL (KCS)",18/8/2022 00:00:00,"266084",1783.33,"KE0007","KENT COUNTY COUNCIL (KCS)",1/8/2022 00:00:00,28/8/2022 00:00:00,"P05-2023"
,"LEE VALLEY WATERWORKS CENTRE","PREMISES RELATED EXPENDITURE","ENERGY COSTS (ELECTRICITY)","2332","NPOWER LIMITED",23/8/2022 00:00:00,"266078",848.08,"NP0123","NPOWER LIMITED",1/8/2022 00:00:00,28/8/2022 00:00:00,"P05-2023"
"P&V","LEE VALLEY FARM HOLYFIELDHALL","PREMISES RELATED EXPENDITURE","ENERGY COSTS (ELECTRICITY)","2332","BRITISH GAS BUSINESS",17/8/2022 00:00:00,"266028",161.15,"BR0030","BRITISH GAS TRADING LTD",1/8/2022 00:00:00,28/8/2022 00:00:00,"P05-2023"
,"LEE VALLEY CAMPSITE","PREMISES RELATED EXPENDITURE","ENERGY COSTS (ELECTRICITY)","2332","KENT COUNTY COUNCIL (KCS)",18/8/2022 00:00:00,"266088",1363.81,"KE0007","KENT COUNTY COUNCIL (KCS)",1/8/2022 00:00:00,28/8/2022 00:00:00,"P05-2023"
,"LEE VALLEY CAMPSITE","PREMISES RELATED EXPENDITURE","ENERGY COSTS (ELECTRICITY)","2332","KENT COUNTY COUNCIL (KCS)",18/8/2022 00:00:00,"266089",1590.69,"KE0007","KENT COUNTY COUNCIL (KCS)",1/8/2022 00:00:00,28/8/2022 00:00:00,"P05-2023"
,"LEE VALLEY CARAVAN PARK","PREMISES RELATED EXPENDITURE","ENERGY COSTS (ELECTRICITY)","2332","KENT COUNTY COUNCIL (KCS)",22/8/2022 00:00:00,"266080",-9212.12,"KE0007","KENT COUNTY COUNCIL (KCS)",1/8/2022 00:00:00,28/8/2022 00:00:00,"P05-2023"
,"LEE VALLEY CARAVAN PARK","PREMISES RELATED EXPENDITURE","ENERGY COSTS (ELECTRICITY)","2332","KENT COUNTY COUNCIL (KCS)",22/8/2022 00:00:00,"266081",9227.62,"KE0007","KENT COUNTY COUNCIL (KCS)",1/8/2022 00:00:00,28/8/2022 00:00:00,"P05-2023"
,"LEE VALLEY CARAVAN PARK","PREMISES RELATED EXPENDITURE","ENERGY COSTS (ELECTRICITY)","2332","KENT COUNTY COUNCIL (KCS)",22/8/2022 00:00:00,"266090",5603.85,"KE0007","KENT COUNTY COUNCIL (KCS)",1/8/2022 00:00:00,28/8/2022 00:00:00,"P05-2023"
"P&V","EAST INDIA DOCK AND BOW CREEK","PREMISES RELATED EXPENDITURE","ENERGY COSTS (ELECTRICITY)","2332","KENT COUNTY COUNCIL (KCS)",23/8/2022 00:00:00,"266087",128.14,"KE0007","KENT COUNTY COUNCIL (KCS)",1/8/2022 00:00:00,28/8/2022 00:00:00,"P05-2023"
"P&V","NORTH AREA RANGERS","PREMISES RELATED EXPENDITURE","ENERGY COSTS (ELECTRICITY)","2332","KENT COUNTY COUNCIL (KCS)",23/8/2022 00:00:00,"266082",-103.38,"KE0007","KENT COUNTY COUNCIL (KCS)",1/8/2022 00:00:00,28/8/2022 00:00:00,"P05-2023"
"P&V","NORTH AREA RANGERS","PREMISES RELATED EXPENDITURE","ENERGY COSTS (ELECTRICITY)","2332","KENT COUNTY COUNCIL (KCS)",23/8/2022 00:00:00,"266083",100.34,"KE0007","KENT COUNTY COUNCIL (KCS)",1/8/2022 00:00:00,28/8/2022 00:00:00,"P05-2023"
"P&V","GUNPOWDER PARK","PREMISES RELATED EXPENDITURE","ENERGY COSTS (ELECTRICITY)","2332","KENT COUNTY COUNCIL (KCS)",23/8/2022 00:00:00,"266086",322.36,"KE0007","KENT COUNTY COUNCIL (KCS)",1/8/2022 00:00:00,28/8/2022 00:00:00,"P05-2023"
"P&V","CAR PARK INCOME","PREMISES RELATED EXPENDITURE","ENERGY COSTS (ELECTRICITY)","2332","NPOWER LIMITED",23/8/2022 00:00:00,"266076",21.92,"NP0123","NPOWER LIMITED",1/8/2022 00:00:00,28/8/2022 00:00:00,"P05-2023"
"P&V","CAR PARK INCOME","PREMISES RELATED EXPENDITURE","ENERGY COSTS (ELECTRICITY)","2332","NPOWER LIMITED",23/8/2022 00:00:00,"266077",29.41,"NP0123","NPOWER LIMITED",1/8/2022 00:00:00,28/8/2022 00:00:00,"P05-2023"
,"LEE VALLEY VELOPARK","PREMISES RELATED EXPENDITURE","ENERGY COSTS (ELECTRICITY)","2332","EDF ENERGY CUSTOMERS PLC",16/8/2022 00:00:00,"266053",768.88,"ED0321","EDF ENERGY CUSTOMERS PLC",1/8/2022 00:00:00,28/8/2022 00:00:00,"P05-2023"
,"LEE VALLEY VELOPARK","PREMISES RELATED EXPENDITURE","ENERGY COSTS (ELECTRICITY)","2332","EDF ENERGY CUSTOMERS PLC",16/8/2022 00:00:00,"266054",-768.88,"ED0321","EDF ENERGY CUSTOMERS PLC",1/8/2022 00:00:00,28/8/2022 00:00:00,"P05-2023"
"P&V","MYDDELTON HOUSE","PREMISES RELATED EXPENDITURE","ENERGY COSTS (GAS)","2333","KENT COUNTY COUNCIL (KCS)",15/8/2022 00:00:00,"265981",284.47,"KE0007","KENT COUNTY COUNCIL (KCS)",1/8/2022 00:00:00,28/8/2022 00:00:00,"P05-2023"
"P&V","MYDDELTON HOUSE","PREMISES RELATED EXPENDITURE","ENERGY COSTS (GAS)","2333","KENT COUNTY COUNCIL (KCS)",24/8/2022 00:00:00,"266314",0,"KE0007","KENT COUNTY COUNCIL (KCS)",1/8/2022 00:00:00,28/8/2022 00:00:00,"P05-2023"
"P&V","MYDDELTON HOUSE","PREMISES RELATED EXPENDITURE","ENERGY COSTS (GAS)","2333","KENT COUNTY COUNCIL (KCS)",24/8/2022 00:00:00,"266315",292.15,"KE0007","KENT COUNTY COUNCIL (KCS)",1/8/2022 00:00:00,28/8/2022 00:00:00,"P05-2023"
"CEO","RESIDENTIAL ACCOMMODATION","PREMISES RELATED EXPENDITURE","ENERGY COSTS (GAS)","2333","BRITISH GAS BUSINESS",10/8/2022 00:00:00,"265760",193.53,"BR0030","BRITISH GAS TRADING LTD",1/8/2022 00:00:00,28/8/2022 00:00:00,"P05-2023"
"CEO","RESIDENTIAL ACCOMMODATION","PREMISES RELATED EXPENDITURE","ENERGY COSTS (GAS)","2333","BRITISH GAS BUSINESS",10/8/2022 00:00:00,"265761",209.54,"BR0030","BRITISH GAS TRADING LTD",1/8/2022 00:00:00,28/8/2022 00:00:00,"P05-2023"
"CEO","RESIDENTIAL ACCOMMODATION","PREMISES RELATED EXPENDITURE","ENERGY COSTS (GAS)","2333","BRITISH GAS TRADING LTD",24/8/2022 00:00:00,"266328",9.45,"BR0654","BRITISH GAS TRADING LTD",1/8/2022 00:00:00,28/8/2022 00:00:00,"P05-2023"
,"LEE VALLEY MARINA SPRINGFIELD","PREMISES RELATED EXPENDITURE","ENERGY COSTS (GAS)","2333","KENT COUNTY COUNCIL (KCS)",16/8/2022 00:00:00,"265854",88.34,"KE0007","KENT COUNTY COUNCIL (KCS)",1/8/2022 00:00:00,28/8/2022 00:00:00,"P05-2023"
,"LEE VALLEY MARINA STANSTEAD","PREMISES RELATED EXPENDITURE","ENERGY COSTS (GAS)","2333","KENT COUNTY COUNCIL (KCS)",16/8/2022 00:00:00,"265857",66.2,"KE0007","KENT COUNTY COUNCIL (KCS)",1/8/2022 00:00:00,28/8/2022 00:00:00,"P05-2023"
,"LEE VALLEY MARINA STANSTEAD","PREMISES RELATED EXPENDITURE","ENERGY COSTS (GAS)","2333","KENT COUNTY COUNCIL (KCS)",16/8/2022 00:00:00,"265858",93.64,"KE0007","KENT COUNTY COUNCIL (KCS)",1/8/2022 00:00:00,28/8/2022 00:00:00,"P05-2023"
,"LEE VALLEY WATERWORKS CENTRE","PREMISES RELATED EXPENDITURE","ENERGY COSTS (GAS)","2333","KENT COUNTY COUNCIL (KCS)",10/8/2022 00:00:00,"265856",180.05,"KE0007","KENT COUNTY COUNCIL (KCS)",1/8/2022 00:00:00,28/8/2022 00:00:00,"P05-2023"
,"LEE VALLEY CAMPSITE","PREMISES RELATED EXPENDITURE","ENERGY COSTS (GAS)","2333","KENT COUNTY COUNCIL (KCS)",18/8/2022 00:00:00,"265853",242.01,"KE0007","KENT COUNTY COUNCIL (KCS)",1/8/2022 00:00:00,28/8/2022 00:00:00,"P05-2023"
,"LEE VALLEY CARAVAN PARK","PREMISES RELATED EXPENDITURE","ENERGY COSTS (GAS)","2333","P119115-SERVICE-Propane delivery",28/8/2022 00:00:00,"266037",5600.34,"AV0327","AVANTI GAS LIMITED",1/8/2022 00:00:00,28/8/2022 00:00:00,"P05-2023"
"P&V","GUNPOWDER PARK","PREMISES RELATED EXPENDITURE","ENERGY COSTS (GAS)","2333","KENT COUNTY COUNCIL (KCS)",23/8/2022 00:00:00,"266256",46.36,"KE0007","KENT COUNTY COUNCIL (KCS)",1/8/2022 00:00:00,28/8/2022 00:00:00,"P05-2023"
,"LV LEISURE CENTRE CAMPSITE","PREMISES RELATED EXPENDITURE","ENERGY COSTS (GAS)","2333","KENT COUNTY COUNCIL (KCS)",15/8/2022 00:00:00,"265855",569.92,"KE0007","KENT COUNTY COUNCIL (KCS)",1/8/2022 00:00:00,28/8/2022 00:00:00,"P05-2023"
,"LEE VALLEY MARINA SPRINGFIELD","PREMISES RELATED EXPENDITURE","RENT (EXTERNAL)","2442","THAMES WATER UTILITIES LIMITED",18/8/2022 00:00:00,"266075",2618.75,"TH0020","THAMES WATER UTILITIES LIMITED",1/8/2022 00:00:00,28/8/2022 00:00:00,"P05-2023"
,"LEE VALLEY MARINA STANSTEAD","PREMISES RELATED EXPENDITURE","RENT (EXTERNAL)","2442","CANAL & RIVER TRUST",22/8/2022 00:00:00,"266223",11875,"BR0036","CANAL & RIVER TRUST",1/8/2022 00:00:00,28/8/2022 00:00:00,"P05-2023"
"P&V","NORTH AREA RANGERS","PREMISES RELATED EXPENDITURE","RENT (EXTERNAL)","2442","NETWORK RAIL",23/8/2022 00:00:00,"266281",279.41,"RA0005","NETWORK RAIL",1/8/2022 00:00:00,28/8/2022 00:00:00,"P05-2023"
"CEO","RESIDENTIAL ACCOMMODATION","PREMISES RELATED EXPENDITURE","COUNCIL TAX","2445","EPPING FOREST DISTRICT COUNCIL",28/8/2022 00:00:00,"266493",-847,"EP0025","EPPING FOREST DISTRICT COUNCIL",1/8/2022 00:00:00,28/8/2022 00:00:00,"P05-2023"
"CEO","COMMERCIAL ACCOMMODATION","PREMISES RELATED EXPENDITURE","COUNCIL TAX","2445","BOROUGH OF BROXBOURNE",18/8/2022 00:00:00,"266091",-335.57,"BR0016","BOROUGH OF BROXBOURNE",1/8/2022 00:00:00,28/8/2022 00:00:00,"P05-2023"
"CEO","COMMERCIAL ACCOMMODATION","PREMISES RELATED EXPENDITURE","COUNCIL TAX","2445","BOROUGH OF BROXBOURNE",24/8/2022 00:00:00,"266460",-1160,"BR0016","BOROUGH OF BROXBOURNE",1/8/2022 00:00:00,28/8/2022 00:00:00,"P05-2023"
"CEO","RESIDENTIAL ACCOMMODATION","PREMISES RELATED EXPENDITURE","PROPERTY MANAGEMT/LETTING FEES","2447","P119012-SERVICE-Marshgate Cottage - 6 Month Management Fee",22/8/2022 00:00:00,"265973",480,"WA0315","PAUL WALLACE ESTATE AGENTS",1/8/2022 00:00:00,28/8/2022 00:00:00,"P05-2023"
,"LEE VALLEY MARINA STANSTEAD","PREMISES RELATED EXPENDITURE","WATER","2555","CASTLE WATER LIMITED",28/8/2022 00:00:00,"266322",136.2,"CA0625","CASTLE WATER LIMITED",1/8/2022 00:00:00,28/8/2022 00:00:00,"P05-2023"
,"LEE VALLEY MARINA STANSTEAD","PREMISES RELATED EXPENDITURE","WATER","2555","CASTLE WATER LIMITED",28/8/2022 00:00:00,"266322",127.39,"CA0625","CASTLE WATER LIMITED",1/8/2022 00:00:00,28/8/2022 00:00:00,"P05-2023"
,"LEE VALLEY CAMPSITE","PREMISES RELATED EXPENDITURE","WATER","2555","CASTLE WATER LIMITED",24/8/2022 00:00:00,"266278",1610.93,"CA0625","CASTLE WATER LIMITED",1/8/2022 00:00:00,28/8/2022 00:00:00,"P05-2023"
,"LEE VALLEY CARAVAN PARK","PREMISES RELATED EXPENDITURE","WATER","2555","CASTLE WATER LIMITED",22/8/2022 00:00:00,"266079",3431.46,"CA0625","CASTLE WATER LIMITED",1/8/2022 00:00:00,28/8/2022 00:00:00,"P05-2023"
,"LEE VALLEY CARAVAN PARK","PREMISES RELATED EXPENDITURE","WATER","2555","CASTLE WATER LIMITED",22/8/2022 00:00:00,"266079",2233.96,"CA0625","CASTLE WATER LIMITED",1/8/2022 00:00:00,28/8/2022 00:00:00,"P05-2023"
,"LV LEISURE CENTRE CAMPSITE","PREMISES RELATED EXPENDITURE","WATER","2555","CASTLE WATER LIMITED",18/8/2022 00:00:00,"265785",35.76,"CA0625","CASTLE WATER LIMITED",1/8/2022 00:00:00,28/8/2022 00:00:00,"P05-2023"
,"LV LEISURE CENTRE CAMPSITE","PREMISES RELATED EXPENDITURE","WATER","2555","CASTLE WATER LIMITED",18/8/2022 00:00:00,"265785",34.56,"CA0625","CASTLE WATER LIMITED",1/8/2022 00:00:00,28/8/2022 00:00:00,"P05-2023"
,"LV LEISURE CENTRE CAMPSITE","PREMISES RELATED EXPENDITURE","WATER","2555","CASTLE WATER LIMITED",15/8/2022 00:00:00,"265787",669.6,"CA0625","CASTLE WATER LIMITED",1/8/2022 00:00:00,28/8/2022 00:00:00,"P05-2023"
,"LV LEISURE CENTRE CAMPSITE","PREMISES RELATED EXPENDITURE","WATER","2555","CASTLE WATER LIMITED",15/8/2022 00:00:00,"265787",533.71,"CA0625","CASTLE WATER LIMITED",1/8/2022 00:00:00,28/8/2022 00:00:00,"P05-2023"
,"LEE VALLEY MARINA SPRINGFIELD","PREMISES RELATED EXPENDITURE","CLEANING & DOMESTIC SUPPLIES","2666","P119045-SERVICE-Site cleaning for July,Aug,Sept 2022",16/8/2022 00:00:00,"265567",972.31,"MA0015","MAYFAIR CLEANING COMPANY LIMITED",1/8/2022 00:00:00,28/8/2022 00:00:00,"P05-2023"
,"LEE VALLEY MARINA SPRINGFIELD","PREMISES RELATED EXPENDITURE","CLEANING & DOMESTIC SUPPLIES","2666","P119029-SERVICE-To supply items as requested",23/8/2022 00:00:00,"266236",209.26,"HY0043","HYGIENE SYSTEMS LTD",1/8/2022 00:00:00,28/8/2022 00:00:00,"P05-2023"
,"LEE VALLEY MARINA SPRINGFIELD","PREMISES RELATED EXPENDITURE","CLEANING & DOMESTIC SUPPLIES","2666","P117560-SERVICE-Sanitary Disposal/Dust Mats,Eco Shield",23/8/2022 00:00:00,"266291",191.64,"PE0015","PHS GROUP PLC",1/8/2022 00:00:00,28/8/2022 00:00:00,"P05-2023"
,"LEE VALLEY MARINA STANSTEAD","PREMISES RELATED EXPENDITURE","CLEANING & DOMESTIC SUPPLIES","2666","P118753-SERVICE-loo rolls",17/8/2022 00:00:00,"266111",97.5,"IN0012","INITIAL WASHROOM HYGIENE",1/8/2022 00:00:00,28/8/2022 00:00:00,"P05-2023"
,"LEE VALLEY CAMPSITE","PREMISES RELATED EXPENDITURE","CLEANING & DOMESTIC SUPPLIES","2666","P118627-SERVICE-cleaning materials",9/8/2022 00:00:00,"264999",338.17,"HY0043","HYGIENE SYSTEMS LTD",1/8/2022 00:00:00,28/8/2022 00:00:00,"P05-2023"
,"LEE VALLEY CAMPSITE","PREMISES RELATED EXPENDITURE","CLEANING & DOMESTIC SUPPLIES","2666","P118921-SERVICE-toilet rolls",9/8/2022 00:00:00,"265563",94.32,"HY0043","HYGIENE SYSTEMS LTD",1/8/2022 00:00:00,28/8/2022 00:00:00,"P05-2023"
,"LEE VALLEY CAMPSITE","PREMISES RELATED EXPENDITURE","CLEANING & DOMESTIC SUPPLIES","2666","P118921-SERVICE-bold liquid pods",17/8/2022 00:00:00,"265649",32.76,"HY0043","HYGIENE SYSTEMS LTD",1/8/2022 00:00:00,28/8/2022 00:00:00,"P05-2023"
,"LEE VALLEY CAMPSITE","PREMISES RELATED EXPENDITURE","CLEANING & DOMESTIC SUPPLIES","2666","P118921-SERVICE-citrus floor gel",17/8/2022 00:00:00,"265649",29.64,"HY0043","HYGIENE SYSTEMS LTD",1/8/2022 00:00:00,28/8/2022 00:00:00,"P05-2023"
,"LEE VALLEY CAMPSITE","PREMISES RELATED EXPENDITURE","CLEANING & DOMESTIC SUPPLIES","2666","P118627-SERVICE-cleaning materials",9/8/2022 00:00:00,"265650",-21.4,"HY0043","HYGIENE SYSTEMS LTD",1/8/2022 00:00:00,28/8/2022 00:00:00,"P05-2023"
,"LEE VALLEY CAMPSITE","PREMISES RELATED EXPENDITURE","CLEANING & DOMESTIC SUPPLIES","2666","P118627-SERVICE-increase order to cover invoice",18/8/2022 00:00:00,"265996",8.72,"HY0043","HYGIENE SYSTEMS LTD",1/8/2022 00:00:00,28/8/2022 00:00:00,"P05-2023"
,"LEE VALLEY CAMPSITE","PREMISES RELATED EXPENDITURE","CLEANING & DOMESTIC SUPPLIES","2666","P118627-SERVICE-cleaning materials",18/8/2022 00:00:00,"265996",21.4,"HY0043","HYGIENE SYSTEMS LTD",1/8/2022 00:00:00,28/8/2022 00:00:00,"P05-2023"
,"LEE VALLEY CAMPSITE","PREMISES RELATED EXPENDITURE","CLEANING & DOMESTIC SUPPLIES","2666","P119073-SERVICE-Site cleaning materials",18/8/2022 00:00:00,"266027",177.53,"HY0043","HYGIENE SYSTEMS LTD",1/8/2022 00:00:00,28/8/2022 00:00:00,"P05-2023"
,"LEE VALLEY CAMPSITE","PREMISES RELATED EXPENDITURE","CLEANING & DOMESTIC SUPPLIES","2666","P119086-SERVICE-Site cleaning materials",24/8/2022 00:00:00,"266299",206.77,"HY0043","HYGIENE SYSTEMS LTD",1/8/2022 00:00:00,28/8/2022 00:00:00,"P05-2023"
,"LEE VALLEY CARAVAN PARK","PREMISES RELATED EXPENDITURE","CLEANING & DOMESTIC SUPPLIES","2666","P118880-SERVICE-Cleaning materials",15/8/2022 00:00:00,"265819",285.72,"HY0043","HYGIENE SYSTEMS LTD",1/8/2022 00:00:00,28/8/2022 00:00:00,"P05-2023"
,"LV LEISURE CENTRE CAMPSITE","PREMISES RELATED EXPENDITURE","CLEANING & DOMESTIC SUPPLIES","2666","P118756-SERVICE-Cleaning supplies",4/8/2022 00:00:00,"265330",242.24,"HY0043","HYGIENE SYSTEMS LTD",1/8/2022 00:00:00,28/8/2022 00:00:00,"P05-2023"
,"LV LEISURE CENTRE CAMPSITE","PREMISES RELATED EXPENDITURE","CLEANING & DOMESTIC SUPPLIES","2666","P119010-SERVICE-Cleaning supplies",18/8/2022 00:00:00,"266102",683.84,"HY0043","HYGIENE SYSTEMS LTD",1/8/2022 00:00:00,28/8/2022 00:00:00,"P05-2023"
,"LV LEISURE CENTRE CAMPSITE","PREMISES RELATED EXPENDITURE","CLEANING & DOMESTIC SUPPLIES","2666","P119075-SERVICE-Cleaning supplies",28/8/2022 00:00:00,"266300",42.52,"HY0043","HYGIENE SYSTEMS LTD",1/8/2022 00:00:00,28/8/2022 00:00:00,"P05-2023"
,"LEE VALLEY MARINA STANSTEAD","TRANSPORT RELATED EXPENDITURE","TRANSPORT RUNNING EXPENSES","3333","P118944-SERVICE-batterys for land cruiser",22/8/2022 00:00:00,"265880",300,"EN0309","PRH ENGINEERING LIMITED",1/8/2022 00:00:00,28/8/2022 00:00:00,"P05-2023"
"P&V","LEE VALLEY FARM HOLYFIELDHALL","TRANSPORT RELATED EXPENDITURE","TRANSPORT RUNNING EXPENSES","3333","P118922-SERVICE-Ifor Williams TA510 14' Tri Axle Trailer",15/8/2022 00:00:00,"265810",7600,"SC0684","SCOTT TRAILERS LTD",1/8/2022 00:00:00,28/8/2022 00:00:00,"P05-2023"
"P&V","LEE VALLEY FARM HOLYFIELDHALL","TRANSPORT RELATED EXPENDITURE","TRANSPORT RUNNING EXPENSES","3333","P118996-SERVICE-Fuel Filter Kit",15/8/2022 00:00:00,"265865",86.17,"CH0719","CHANDLERS (FARM EQUIPMENT) LTD",1/8/2022 00:00:00,28/8/2022 00:00:00,"P05-2023"
"P&V","LEE VALLEY FARM HOLYFIELDHALL","TRANSPORT RELATED EXPENDITURE","TRANSPORT RUNNING EXPENSES","3333","OLIVER LANDPOWER LIMITED",15/8/2022 00:00:00,"265976",1036.58,"OL0059","OLIVER LANDPOWER LIMITED",1/8/2022 00:00:00,28/8/2022 00:00:00,"P05-2023"
"P&V","LEE VALLEY FARM HOLYFIELDHALL","TRANSPORT RELATED EXPENDITURE","TRANSPORT RUNNING EXPENSES","3333","OLIVER LANDPOWER LIMITED",15/8/2022 00:00:00,"265992",-1036.58,"OL0059","OLIVER LANDPOWER LIMITED",1/8/2022 00:00:00,28/8/2022 00:00:00,"P05-2023"
"P&V","LEE VALLEY FARM HOLYFIELDHALL","TRANSPORT RELATED EXPENDITURE","TRANSPORT RUNNING EXPENSES","3333","P117596-SERVICE-Puncture Repair",18/8/2022 00:00:00,"266103",75,"KB0006","KB TYRES LTD",1/8/2022 00:00:00,28/8/2022 00:00:00,"P05-2023"
"P&V","LEE VALLEY FARM HOLYFIELDHALL","TRANSPORT RELATED EXPENDITURE","TRANSPORT RUNNING EXPENSES","3333","P117596-SERVICE-Puncture Repair",28/8/2022 00:00:00,"266217",134,"KB0006","KB TYRES LTD",1/8/2022 00:00:00,28/8/2022 00:00:00,"P05-2023"
"P&V","LEE VALLEY FARM HOLYFIELDHALL","TRANSPORT RELATED EXPENDITURE","TRANSPORT RUNNING EXPENSES","3333","P119192-SERVICE-Parts",28/8/2022 00:00:00,"266303",242.75,"RW0257","R. W. CRAWFORD AGRICULTURAL MACHINERY LTD",1/8/2022 00:00:00,28/8/2022 00:00:00,"P05-2023"
"P&V","LEE VALLEY FARM HOLYFIELDHALL","TRANSPORT RELATED EXPENDITURE","TRANSPORT RUNNING EXPENSES","3333","P117598-SERVICE-Tractor Spares",28/8/2022 00:00:00,"266304",130.77,"RW0257","R. W. CRAWFORD AGRICULTURAL MACHINERY LTD",1/8/2022 00:00:00,28/8/2022 00:00:00,"P05-2023"
"P&V","LEE VALLEY FARM HOLYFIELDHALL","TRANSPORT RELATED EXPENDITURE","TRANSPORT RUNNING EXPENSES","3333","P119192-SERVICE-Parts",28/8/2022 00:00:00,"266305",127.81,"RW0257","R. W. CRAWFORD AGRICULTURAL MACHINERY LTD",1/8/2022 00:00:00,28/8/2022 00:00:00,"P05-2023"
"P&V","LEE VALLEY FARM HOLYFIELDHALL","TRANSPORT RELATED EXPENDITURE","TRANSPORT RUNNING EXPENSES","3333","P117601-SERVICE-Tractor Spares",28/8/2022 00:00:00,"266318",41.15,"OL0001","OLIVER AGRICULTURE LTD",1/8/2022 00:00:00,28/8/2022 00:00:00,"P05-2023"
"P&V","LEE VALLEY FARM HOLYFIELDHALL","TRANSPORT RELATED EXPENDITURE","TRANSPORT RUNNING EXPENSES","3333","P117572-SERVICE-Parts",28/8/2022 00:00:00,"266465",85.9,"GR0022","GROUP COMPONENTS LIMITED",1/8/2022 00:00:00,28/8/2022 00:00:00,"P05-2023"
,"LV CAMPSITE CARAVAN SALES","TRANSPORT RELATED EXPENDITURE","TRANSPORT RUNNING EXPENSES","3333","P118890-SERVICE-Trans Superior Sewardstone",23/8/2022 00:00:00,"266059",2150,"LO0459","LONDON LODGES UK",1/8/2022 00:00:00,28/8/2022 00:00:00,"P05-2023"
"P&V","MYDDELTON HOUSE GARDENS","TRANSPORT RELATED EXPENDITURE","VEHICLE FUEL","3335","P119081-SERVICE-500 Litres Red diesel",28/8/2022 00:00:00,"266279",524.7,"TE0052","CERTAS ENERGY UK LIMITED",1/8/2022 00:00:00,28/8/2022 00:00:00,"P05-2023"
"P&V","SOUTH AREA RANGERS","TRANSPORT RELATED EXPENDITURE","VEHICLE REPAIRS & MAINTENANCE","3338","P119067-SERVICE-Repair Cluster Light Isuzu - LT71HPN",18/8/2022 00:00:00,"265843",133,"OL0059","OLIVER LANDPOWER LIMITED",1/8/2022 00:00:00,28/8/2022 00:00:00,"P05-2023"
"P&V","RIVER LEE COUNTRY PARK","TRANSPORT RELATED EXPENDITURE","VEHICLE REPAIRS & MAINTENANCE","3338","P118275-SERVICE-Repair Rear Bracket - GK65MRO",18/8/2022 00:00:00,"266101",60,"AB0153","ABBEY SERVICE CENTRE",1/8/2022 00:00:00,28/8/2022 00:00:00,"P05-2023"
"P&V","RIVER LEE COUNTRY PARK","TRANSPORT RELATED EXPENDITURE","VEHICLE REPAIRS & MAINTENANCE","3338","P119167-SERVICE-Puncture Repair - GD65 UTH",28/8/2022 00:00:00,"266329",10,"AD0016","ADVANCE TYRE SERVICE",1/8/2022 00:00:00,28/8/2022 00:00:00,"P05-2023"
"P&V","RIVER LEE COUNTRY PARK","TRANSPORT RELATED EXPENDITURE","VEHICLE REPAIRS & MAINTENANCE","3338","P119167-SERVICE-New Tyre - GK65 MMU",28/8/2022 00:00:00,"266330",103,"AD0016","ADVANCE TYRE SERVICE",1/8/2022 00:00:00,28/8/2022 00:00:00,"P05-2023"
"P&V","RIVER LEE COUNTRY PARK","TRANSPORT RELATED EXPENDITURE","VEHICLE REPAIRS & MAINTENANCE","3338","P118740-SERVICE-Puncture Repair - GK65MPO",28/8/2022 00:00:00,"266331",10,"AD0016","ADVANCE TYRE SERVICE",1/8/2022 00:00:00,28/8/2022 00:00:00,"P05-2023"
,"LEE VALLEY MARINA SPRINGFIELD","SUPPLIES AND SERVICES","EQUIPMENT & MATERIALS","4111","P118933-SERVICE-Workshop Supplies",9/8/2022 00:00:00,"265831",315.96,"IN0011","INDUSTRIAL TOOL SUPPLIES (LONDON) LTD",1/8/2022 00:00:00,28/8/2022 00:00:00,"P05-2023"
,"LEE VALLEY MARINA SPRINGFIELD","SUPPLIES AND SERVICES","EQUIPMENT & MATERIALS","4111","P118272-SERVICE-To supply items as requested/New car parkin N",23/8/2022 00:00:00,"266282",162.1,"SA0008","SAFETEC DIRECT LTD",1/8/2022 00:00:00,28/8/2022 00:00:00,"P05-2023"
,"LEE VALLEY MARINA STANSTEAD","SUPPLIES AND SERVICES","EQUIPMENT & MATERIALS","4111","P118833-SERVICE-screwfix gen workshop bits",18/8/2022 00:00:00,"265579",231.41,"SC0057","SCREWFIX DIRECT LTD",1/8/2022 00:00:00,28/8/2022 00:00:00,"P05-2023"
,"STANSTEAD RECHARGEABLE WORKS","SUPPLIES AND SERVICES","EQUIPMENT & MATERIALS","4111","P118768-SERVICE-blacking",3/8/2022 00:00:00,"265363",564.9,"MA0008","AXALTA COATING SYSTEMS HUTHWAITE UK LTD",1/8/2022 00:00:00,28/8/2022 00:00:00,"P05-2023"
,"STANSTEAD RECHARGEABLE WORKS","SUPPLIES AND SERVICES","EQUIPMENT & MATERIALS","4111","P118765-SERVICE-blacking",16/8/2022 00:00:00,"265364",841.55,"SM0658","SML PAINTS AND COATINGS",1/8/2022 00:00:00,28/8/2022 00:00:00,"P05-2023"
,"STANSTEAD RECHARGEABLE WORKS","SUPPLIES AND SERVICES","EQUIPMENT & MATERIALS","4111","P118783-SERVICE-anodes",16/8/2022 00:00:00,"265414",972.25,"MI0200","MIDLAND CHANDLERS LIMITED",1/8/2022 00:00:00,28/8/2022 00:00:00,"P05-2023"
,"STANSTEAD RECHARGEABLE WORKS","SUPPLIES AND SERVICES","EQUIPMENT & MATERIALS","4111","P118945-SERVICE-parts for job",22/8/2022 00:00:00,"265881",61.67,"EN0309","PRH ENGINEERING LIMITED",1/8/2022 00:00:00,28/8/2022 00:00:00,"P05-2023"
,"STANSTEAD RECHARGEABLE WORKS","SUPPLIES AND SERVICES","EQUIPMENT & MATERIALS","4111","P118959-SERVICE-blacking",28/8/2022 00:00:00,"266005",1104.8,"SM0658","SML PAINTS AND COATINGS",1/8/2022 00:00:00,28/8/2022 00:00:00,"P05-2023"
,"STANSTEAD RECHARGEABLE WORKS","SUPPLIES AND SERVICES","EQUIPMENT & MATERIALS","4111","P119058-SERVICE-Tractor Tyre, tubes, glue, disposal etc",18/8/2022 00:00:00,"266119",14.5,"KB0006","KB TYRES LTD",1/8/2022 00:00:00,28/8/2022 00:00:00,"P05-2023"
,"STANSTEAD RECHARGEABLE WORKS","SUPPLIES AND SERVICES","EQUIPMENT & MATERIALS","4111","P119058-SERVICE-Tractor Tyre, tubes, glue, disposal etc",18/8/2022 00:00:00,"266120",127,"KB0006","KB TYRES LTD",1/8/2022 00:00:00,28/8/2022 00:00:00,"P05-2023"
,"STANSTEAD RECHARGEABLE WORKS","SUPPLIES AND SERVICES","EQUIPMENT & MATERIALS","4111","P119066-SERVICE-chandlery stock",28/8/2022 00:00:00,"266280",904,"SM0658","SML PAINTS AND COATINGS",1/8/2022 00:00:00,28/8/2022 00:00:00,"P05-2023"
,"LEE VALLEY CAMPSITE","SUPPLIES AND SERVICES","EQUIPMENT & MATERIALS","4111","P117848-SERVICE-site materials",18/8/2022 00:00:00,"265836",25.91,"BQ0164","TRADE UK ACCOUNT",1/8/2022 00:00:00,28/8/2022 00:00:00,"P05-2023"
,"LEE VALLEY CAMPSITE","SUPPLIES AND SERVICES","EQUIPMENT & MATERIALS","4111","P118935-SERVICE-Iron for peaky pods",16/8/2022 00:00:00,"265862",19.95,"AM0406","AMAZON PAYMENTS UK LIMITED",1/8/2022 00:00:00,28/8/2022 00:00:00,"P05-2023"
,"LEE VALLEY CARAVAN PARK","SUPPLIES AND SERVICES","EQUIPMENT & MATERIALS","4111","P118931-SERVICE-Stainless steel waste strainer",9/8/2022 00:00:00,"265516",13.32,"SC0057","SCREWFIX DIRECT LTD",1/8/2022 00:00:00,28/8/2022 00:00:00,"P05-2023"
,"LEE VALLEY CARAVAN PARK","SUPPLIES AND SERVICES","EQUIPMENT & MATERIALS","4111","P118932-SERVICE-building materials",9/8/2022 00:00:00,"265517",157.5,"SC0057","SCREWFIX DIRECT LTD",1/8/2022 00:00:00,28/8/2022 00:00:00,"P05-2023"
,"LEE VALLEY CARAVAN PARK","SUPPLIES AND SERVICES","EQUIPMENT & MATERIALS","4111","CAPSER",9/8/2022 00:00:00,"265521",3812,"MO0041","CAPSER",1/8/2022 00:00:00,28/8/2022 00:00:00,"P05-2023"
,"LEE VALLEY CARAVAN PARK","SUPPLIES AND SERVICES","EQUIPMENT & MATERIALS","4111","CAPSER",9/8/2022 00:00:00,"265521",-5812,"MO0041","CAPSER",1/8/2022 00:00:00,28/8/2022 00:00:00,"P05-2023"
,"LEE VALLEY CARAVAN PARK","SUPPLIES AND SERVICES","EQUIPMENT & MATERIALS","4111","P118459-SERVICE-Work on new staff caravan area",9/8/2022 00:00:00,"265521",5812,"MO0041","CAPSER",1/8/2022 00:00:00,28/8/2022 00:00:00,"P05-2023"
,"LEE VALLEY CARAVAN PARK","SUPPLIES AND SERVICES","EQUIPMENT & MATERIALS","4111","CAPSER",9/8/2022 00:00:00,"265521",2000,"MO0041","CAPSER",1/8/2022 00:00:00,28/8/2022 00:00:00,"P05-2023"
,"LEE VALLEY CARAVAN PARK","SUPPLIES AND SERVICES","EQUIPMENT & MATERIALS","4111","P118994-SERVICE-Maintenance materials",15/8/2022 00:00:00,"265773",77.03,"SC0057","SCREWFIX DIRECT LTD",1/8/2022 00:00:00,28/8/2022 00:00:00,"P05-2023"
,"LEE VALLEY CARAVAN PARK","SUPPLIES AND SERVICES","EQUIPMENT & MATERIALS","4111","P118859-SERVICE-MATERIALS FOR REPAIRS IN  PLAY AREA",15/8/2022 00:00:00,"265977",43.4,"LE0012","LEASIDE TIMBER & BUILDERS MERCHANTS LTD",1/8/2022 00:00:00,28/8/2022 00:00:00,"P05-2023"
,"LEE VALLEY CARAVAN PARK","SUPPLIES AND SERVICES","EQUIPMENT & MATERIALS","4111","P119114-SERVICE-Mainetence of intruder alarm",22/8/2022 00:00:00,"266026",813.93,"AD0015","ADT FIRE & SECURITY PLC",1/8/2022 00:00:00,28/8/2022 00:00:00,"P05-2023"
,"LEE VALLEY CARAVAN PARK","SUPPLIES AND SERVICES","EQUIPMENT & MATERIALS","4111","P119166-SERVICE-Paint",28/8/2022 00:00:00,"266237",98.3,"SC0057","SCREWFIX DIRECT LTD",1/8/2022 00:00:00,28/8/2022 00:00:00,"P05-2023"
,"LEE VALLEY CARAVAN PARK","SUPPLIES AND SERVICES","EQUIPMENT & MATERIALS","4111","P119182-SERVICE-Rim deadlock",28/8/2022 00:00:00,"266287",12.97,"SC0057","SCREWFIX DIRECT LTD",1/8/2022 00:00:00,28/8/2022 00:00:00,"P05-2023"
"P&V","MYDDELTON HOUSE GARDENS","SUPPLIES AND SERVICES","EQUIPMENT & MATERIALS","4111","P118905-SERVICE-flagpole instillation",28/8/2022 00:00:00,"265879",300,"JO0019","R G JOYCE",1/8/2022 00:00:00,28/8/2022 00:00:00,"P05-2023"
"P&V","MYDDELTON HOUSE GARDENS","SUPPLIES AND SERVICES","EQUIPMENT & MATERIALS","4111","P119094-SERVICE-Universal 180 chemical store",28/8/2022 00:00:00,"266254",422,"CL0107","CLEVELAND SITESAFE LIMITED",1/8/2022 00:00:00,28/8/2022 00:00:00,"P05-2023"
"P&V","NORTH AREA RANGERS","SUPPLIES AND SERVICES","EQUIPMENT & MATERIALS","4111","P117538-SERVICE-Equipment & Materials as and when required",9/8/2022 00:00:00,"265593",6.4,"JE0011","SAINT-GOBAIN BUILDING DISTRIBUTION",1/8/2022 00:00:00,28/8/2022 00:00:00,"P05-2023"
"P&V","NORTH AREA RANGERS","SUPPLIES AND SERVICES","EQUIPMENT & MATERIALS","4111","P117538-SERVICE-Equipment & Materials as and when required",24/8/2022 00:00:00,"266270",22.92,"JE0011","SAINT-GOBAIN BUILDING DISTRIBUTION",1/8/2022 00:00:00,28/8/2022 00:00:00,"P05-2023"
"P&V","SOUTH AREA RANGERS","SUPPLIES AND SERVICES","EQUIPMENT & MATERIALS","4111","P118261-SERVICE-Silky Scabbard Saw Sheath",28/8/2022 00:00:00,"266466",14.44,"AP0245","APS LIMITED",1/8/2022 00:00:00,28/8/2022 00:00:00,"P05-2023"
,"LV LEISURE CENTRE CAMPSITE","SUPPLIES AND SERVICES","EQUIPMENT & MATERIALS","4111","P118666-SERVICE-Toilet seats maintenance equipment",4/8/2022 00:00:00,"264678",133.33,"BQ0164","TRADE UK ACCOUNT",1/8/2022 00:00:00,28/8/2022 00:00:00,"P05-2023"
,"LV LEISURE CENTRE CAMPSITE","SUPPLIES AND SERVICES","EQUIPMENT & MATERIALS","4111","P118954-SERVICE-New cold tap and lagging in food hut Edmonton",15/8/2022 00:00:00,"265028",120,"PA0348","PA JONES PLUMBING & HEATING",1/8/2022 00:00:00,28/8/2022 00:00:00,"P05-2023"
,"LV LEISURE CENTRE CAMPSITE","SUPPLIES AND SERVICES","EQUIPMENT & MATERIALS","4111","P118950-SERVICE-Dead lock for food hut",9/8/2022 00:00:00,"265158",12.97,"SC0057","SCREWFIX DIRECT LTD",1/8/2022 00:00:00,28/8/2022 00:00:00,"P05-2023"
,"LV LEISURE CENTRE CAMPSITE","SUPPLIES AND SERVICES","EQUIPMENT & MATERIALS","4111","P119079-SERVICE-grounds maintenance supplies",22/8/2022 00:00:00,"265418",61.58,"BQ0164","TRADE UK ACCOUNT",1/8/2022 00:00:00,28/8/2022 00:00:00,"P05-2023"
,"LV LEISURE CENTRE CAMPSITE","SUPPLIES AND SERVICES","EQUIPMENT & MATERIALS","4111","TRADE UK ACCOUNT",22/8/2022 00:00:00,"265419",145.05,"BQ0164","TRADE UK ACCOUNT",1/8/2022 00:00:00,28/8/2022 00:00:00,"P05-2023"
,"LV LEISURE CENTRE CAMPSITE","SUPPLIES AND SERVICES","EQUIPMENT & MATERIALS","4111","TRADE UK ACCOUNT",22/8/2022 00:00:00,"265419",-185.05,"BQ0164","TRADE UK ACCOUNT",1/8/2022 00:00:00,28/8/2022 00:00:00,"P05-2023"
,"LV LEISURE CENTRE CAMPSITE","SUPPLIES AND SERVICES","EQUIPMENT & MATERIALS","4111","TRADE UK ACCOUNT",22/8/2022 00:00:00,"265419",40,"BQ0164","TRADE UK ACCOUNT",1/8/2022 00:00:00,28/8/2022 00:00:00,"P05-2023"
,"LV LEISURE CENTRE CAMPSITE","SUPPLIES AND SERVICES","EQUIPMENT & MATERIALS","4111","P119083-SERVICE-Maintenance supplies",22/8/2022 00:00:00,"265419",185.05,"BQ0164","TRADE UK ACCOUNT",1/8/2022 00:00:00,28/8/2022 00:00:00,"P05-2023"
,"LV LEISURE CENTRE CAMPSITE","SUPPLIES AND SERVICES","EQUIPMENT & MATERIALS","4111","P118935-SERVICE-tent peg ropes cups mattress protectors",16/8/2022 00:00:00,"265826",10.04,"AM0406","AMAZON PAYMENTS UK LIMITED",1/8/2022 00:00:00,28/8/2022 00:00:00,"P05-2023"
,"LV LEISURE CENTRE CAMPSITE","SUPPLIES AND SERVICES","EQUIPMENT & MATERIALS","4111","P118935-SERVICE-tent peg ropes cups mattress protectors",16/8/2022 00:00:00,"265827",29.97,"AM0406","AMAZON PAYMENTS UK LIMITED",1/8/2022 00:00:00,28/8/2022 00:00:00,"P05-2023"
,"LV LEISURE CENTRE CAMPSITE","SUPPLIES AND SERVICES","EQUIPMENT & MATERIALS","4111","P118935-SERVICE-tent peg ropes cups mattress protectors",16/8/2022 00:00:00,"265828",35,"AM0406","AMAZON PAYMENTS UK LIMITED",1/8/2022 00:00:00,28/8/2022 00:00:00,"P05-2023"
,"LV LEISURE CENTRE CAMPSITE","SUPPLIES AND SERVICES","EQUIPMENT & MATERIALS","4111","P118935-SERVICE-tent peg ropes cups mattress protectors",16/8/2022 00:00:00,"265829",74.9,"AM0406","AMAZON PAYMENTS UK LIMITED",1/8/2022 00:00:00,28/8/2022 00:00:00,"P05-2023"
,"LV LEISURE CENTRE CAMPSITE","SUPPLIES AND SERVICES","EQUIPMENT & MATERIALS","4111","P118957-SERVICE-Mattress protectors and cutlery",23/8/2022 00:00:00,"265903",10.35,"AM0406","AMAZON PAYMENTS UK LIMITED",1/8/2022 00:00:00,28/8/2022 00:00:00,"P05-2023"
,"LV LEISURE CENTRE CAMPSITE","SUPPLIES AND SERVICES","EQUIPMENT & MATERIALS","4111","P118957-SERVICE-Mattress protectors and cutlery",23/8/2022 00:00:00,"265979",172.24,"AM0406","AMAZON PAYMENTS UK LIMITED",1/8/2022 00:00:00,28/8/2022 00:00:00,"P05-2023"
,"LV LEISURE CENTRE CAMPSITE","SUPPLIES AND SERVICES","EQUIPMENT & MATERIALS","4111","P118957-SERVICE-Increase  money to cover invoice",23/8/2022 00:00:00,"265979",0.48,"AM0406","AMAZON PAYMENTS UK LIMITED",1/8/2022 00:00:00,28/8/2022 00:00:00,"P05-2023"
,"LV LEISURE CENTRE CAMPSITE","SUPPLIES AND SERVICES","EQUIPMENT & MATERIALS","4111","P119049-SERVICE-Edmonton Hook up cables, pegs and mats",23/8/2022 00:00:00,"266116",104.97,"AM0406","AMAZON PAYMENTS UK LIMITED",1/8/2022 00:00:00,28/8/2022 00:00:00,"P05-2023"
,"LV LEISURE CENTRE CAMPSITE","SUPPLIES AND SERVICES","EQUIPMENT & MATERIALS","4111","P119049-SERVICE-Edmonton Hook up cables, pegs and mats",23/8/2022 00:00:00,"266226",14.83,"AM0406","AMAZON PAYMENTS UK LIMITED",1/8/2022 00:00:00,28/8/2022 00:00:00,"P05-2023"
,"LV LEISURE CENTRE CAMPSITE","SUPPLIES AND SERVICES","EQUIPMENT & MATERIALS","4111","P119049-SERVICE-Edmonton Hook up cables, pegs and mats",23/8/2022 00:00:00,"266227",14.83,"AM0406","AMAZON PAYMENTS UK LIMITED",1/8/2022 00:00:00,28/8/2022 00:00:00,"P05-2023"
,"LV LEISURE CENTRE CAMPSITE","SUPPLIES AND SERVICES","EQUIPMENT & MATERIALS","4111","P119049-SERVICE-Edmonton Hook up cables, pegs and mats",23/8/2022 00:00:00,"266228",14.83,"AM0406","AMAZON PAYMENTS UK LIMITED",1/8/2022 00:00:00,28/8/2022 00:00:00,"P05-2023"
,"LV LEISURE CENTRE CAMPSITE","SUPPLIES AND SERVICES","EQUIPMENT & MATERIALS","4111","P119049-SERVICE-Edmonton Hook up cables, pegs and mats",23/8/2022 00:00:00,"266229",14.83,"AM0406","AMAZON PAYMENTS UK LIMITED",1/8/2022 00:00:00,28/8/2022 00:00:00,"P05-2023"
,"LV LEISURE CENTRE CAMPSITE","SUPPLIES AND SERVICES","EQUIPMENT & MATERIALS","4111","P119049-SERVICE-Edmonton Hook up cables, pegs and mats",23/8/2022 00:00:00,"266230",14.83,"AM0406","AMAZON PAYMENTS UK LIMITED",1/8/2022 00:00:00,28/8/2022 00:00:00,"P05-2023"
,"LV LEISURE CENTRE CAMPSITE","SUPPLIES AND SERVICES","EQUIPMENT & MATERIALS","4111","P119049-SERVICE-Edmonton Hook up cables, pegs and mats",23/8/2022 00:00:00,"266231",75.74,"AM0406","AMAZON PAYMENTS UK LIMITED",1/8/2022 00:00:00,28/8/2022 00:00:00,"P05-2023"
,"LV LEISURE CENTRE GOLF COURSE","SUPPLIES AND SERVICES","EQUIPMENT & MATERIALS","4111","P118853-SERVICE-5K A6 Golf Score Cards Edmonton",9/8/2022 00:00:00,"265682",297.28,"SO0582","SOLOPRESS",1/8/2022 00:00:00,28/8/2022 00:00:00,"P05-2023"
,"LV LEISURE CENTRE GOLF COURSE","SUPPLIES AND SERVICES","EQUIPMENT & MATERIALS","4111","P118550-SERVICE-Brake pads",9/8/2022 00:00:00,"265748",21.79,"DO0027","ERNEST DOE & SONS LTD",1/8/2022 00:00:00,28/8/2022 00:00:00,"P05-2023"
,"LV LEISURE CENTRE GOLF COURSE","SUPPLIES AND SERVICES","EQUIPMENT & MATERIALS","4111","P118551-SERVICE-Trojan Batteries T1275",9/8/2022 00:00:00,"265749",2284,"DO0027","ERNEST DOE & SONS LTD",1/8/2022 00:00:00,28/8/2022 00:00:00,"P05-2023"
,"LV LEISURE CENTRE GOLF COURSE","SUPPLIES AND SERVICES","EQUIPMENT & MATERIALS","4111","P118551-SERVICE-Trojan Batteries T1275",9/8/2022 00:00:00,"265751",-2284,"DO0027","ERNEST DOE & SONS LTD",1/8/2022 00:00:00,28/8/2022 00:00:00,"P05-2023"
,"LV LEISURE CENTRE GOLF COURSE","SUPPLIES AND SERVICES","EQUIPMENT & MATERIALS","4111","P118551-SERVICE-Trojan Batteries T1275",9/8/2022 00:00:00,"265753",2284,"DO0027","ERNEST DOE & SONS LTD",1/8/2022 00:00:00,28/8/2022 00:00:00,"P05-2023"
,"LV LEISURE CENTRE GOLF COURSE","SUPPLIES AND SERVICES","EQUIPMENT & MATERIALS","4111","P118889-SERVICE-Chemicals and Fertilizers",23/8/2022 00:00:00,"266057",661.25,"CA0698","CAMBRIDGE GOLF COMPANY",1/8/2022 00:00:00,28/8/2022 00:00:00,"P05-2023"
"CEO","RESIDENTIAL ACCOMMODATION","SUPPLIES AND SERVICES","EQUIPMENT MAINTENANCE","4112","P119011-SERVICE-Marshgate Cottage - Annual Gas Certificate",22/8/2022 00:00:00,"265972",80,"WA0315","PAUL WALLACE ESTATE AGENTS",1/8/2022 00:00:00,28/8/2022 00:00:00,"P05-2023"
,"LEE VALLEY CAMPSITE","SUPPLIES AND SERVICES","EQUIPMENT MAINTENANCE","4112","P118750-SERVICE-Annual fire Inspection 2022",18/8/2022 00:00:00,"265814",279.15,"TJ0009","T.J.FIRE & SECURITY",1/8/2022 00:00:00,28/8/2022 00:00:00,"P05-2023"
,"LEE VALLEY CAMPSITE","SUPPLIES AND SERVICES","EQUIPMENT MAINTENANCE","4112","P118750-SERVICE-increase order to cover invoice",18/8/2022 00:00:00,"265814",391.03,"TJ0009","T.J.FIRE & SECURITY",1/8/2022 00:00:00,28/8/2022 00:00:00,"P05-2023"
,"LEE VALLEY CAMPSITE","SUPPLIES AND SERVICES","EQUIPMENT MAINTENANCE","4112","P119070-SERVICE-Lock repair 29/07/22",18/8/2022 00:00:00,"266001",115,"RS0326","RS LOCKSMITHS",1/8/2022 00:00:00,28/8/2022 00:00:00,"P05-2023"
,"LEE VALLEY CARAVAN PARK","SUPPLIES AND SERVICES","EQUIPMENT MAINTENANCE","4112","P119035-SERVICE-Unblock underground pipes",23/8/2022 00:00:00,"265555",250,"CO0550","CONVERT WATER LTD",1/8/2022 00:00:00,28/8/2022 00:00:00,"P05-2023"
,"LEE VALLEY CARAVAN PARK","SUPPLIES AND SERVICES","EQUIPMENT MAINTENANCE","4112","P118983-SERVICE-Testing for hot tubs",15/8/2022 00:00:00,"265626",339.71,"KI0090","KINGFISHER ENVIRONMENTAL SERVICES LTD",1/8/2022 00:00:00,28/8/2022 00:00:00,"P05-2023"
,"LEE VALLEY CARAVAN PARK","SUPPLIES AND SERVICES","EQUIPMENT MAINTENANCE","4112","P118999-SERVICE-Playground paint & brushes",15/8/2022 00:00:00,"265835",216.67,"BQ0164","TRADE UK ACCOUNT",1/8/2022 00:00:00,28/8/2022 00:00:00,"P05-2023"
,"LEE VALLEY CARAVAN PARK","SUPPLIES AND SERVICES","EQUIPMENT MAINTENANCE","4112","P119165-SERVICE-Callout for a blocked drain",28/8/2022 00:00:00,"266214",250,"CO0550","CONVERT WATER LTD",1/8/2022 00:00:00,28/8/2022 00:00:00,"P05-2023"
,"LEE VALLEY CARAVAN PARK","SUPPLIES AND SERVICES","EQUIPMENT MAINTENANCE","4112","P119151-SERVICE-replace 2 gents showers",28/8/2022 00:00:00,"266445",780,"SO0400","SOUTHERN GREEN SERVICES LIMITED",1/8/2022 00:00:00,28/8/2022 00:00:00,"P05-2023"
,"LEE VALLEY CARAVAN PARK","SUPPLIES AND SERVICES","EQUIPMENT MAINTENANCE","4112","P119157-SERVICE-New chemical flush handle",28/8/2022 00:00:00,"266446",145,"SO0400","SOUTHERN GREEN SERVICES LIMITED",1/8/2022 00:00:00,28/8/2022 00:00:00,"P05-2023"
,"LEE VALLEY CARAVAN PARK","SUPPLIES AND SERVICES","EQUIPMENT MAINTENANCE","4112","P119161-SERVICE-Overflowing field toilet block",28/8/2022 00:00:00,"266447",405,"SO0400","SOUTHERN GREEN SERVICES LIMITED",1/8/2022 00:00:00,28/8/2022 00:00:00,"P05-2023"
,"LV LEISURE CENTRE CAMPSITE","SUPPLIES AND SERVICES","EQUIPMENT MAINTENANCE","4112","P118955-SERVICE-Replace 8 x tiles mens refit cubicle door",15/8/2022 00:00:00,"265029",220,"PA0348","PA JONES PLUMBING & HEATING",1/8/2022 00:00:00,28/8/2022 00:00:00,"P05-2023"
,"LV LEISURE CENTRE CAMPSITE","SUPPLIES AND SERVICES","EQUIPMENT MAINTENANCE","4112","P119101-SERVICE-wifi electric check",28/8/2022 00:00:00,"265825",60,"BR0018","BRADSHAW ELECTRICAL LIMITED",1/8/2022 00:00:00,28/8/2022 00:00:00,"P05-2023"
,"LV LEISURE CENTRE CAMPSITE","SUPPLIES AND SERVICES","EQUIPMENT MAINTENANCE","4112","P119017-SERVICE-Coffee machine repair",22/8/2022 00:00:00,"266097",140,"RI0176","RIJO 42 INGREDIENTS LIMITED",1/8/2022 00:00:00,28/8/2022 00:00:00,"P05-2023"
,"LV LEISURE CENTRE GOLF COURSE","SUPPLIES AND SERVICES","EQUIPMENT MAINTENANCE","4112","P118717-SERVICE-Starter motor for lawn mower for golf course",4/8/2022 00:00:00,"265325",786.95,"LE0279","REESINK TURFCARE UK LIMITED",1/8/2022 00:00:00,28/8/2022 00:00:00,"P05-2023"
,"LV LEISURE CENTRE GOLF COURSE","SUPPLIES AND SERVICES","EQUIPMENT MAINTENANCE","4112","P118928-SERVICE-Dig out and repair sprinklers on golf course",9/8/2022 00:00:00,"265538",403.3,"SJ0635","SJS IRRIGATION",1/8/2022 00:00:00,28/8/2022 00:00:00,"P05-2023"
,"LV LEISURE CENTRE GOLF COURSE","SUPPLIES AND SERVICES","EQUIPMENT MAINTENANCE","4112","P118686-SERVICE-Gas cable for Cushman",9/8/2022 00:00:00,"265750",145.16,"DO0027","ERNEST DOE & SONS LTD",1/8/2022 00:00:00,28/8/2022 00:00:00,"P05-2023"
,"LV LEISURE CENTRE GOLF COURSE","SUPPLIES AND SERVICES","EQUIPMENT MAINTENANCE","4112","P119148-SERVICE-Brake pads",24/8/2022 00:00:00,"265754",87.16,"DO0027","ERNEST DOE & SONS LTD",1/8/2022 00:00:00,28/8/2022 00:00:00,"P05-2023"
,"LV LEISURE CENTRE GOLF COURSE","SUPPLIES AND SERVICES","EQUIPMENT MAINTENANCE","4112","P119148-SERVICE-Brake pads",24/8/2022 00:00:00,"265756",-65.37,"DO0027","ERNEST DOE & SONS LTD",1/8/2022 00:00:00,28/8/2022 00:00:00,"P05-2023"
,"LV LEISURE CENTRE GOLF COURSE","SUPPLIES AND SERVICES","EQUIPMENT MAINTENANCE","4112","P119148-SERVICE-Brake pads",24/8/2022 00:00:00,"265758",49.58,"DO0027","ERNEST DOE & SONS LTD",1/8/2022 00:00:00,28/8/2022 00:00:00,"P05-2023"
,"LV LEISURE CENTRE GOLF COURSE","SUPPLIES AND SERVICES","EQUIPMENT MAINTENANCE","4112","P118637-SERVICE-Cushman Gearbox",23/8/2022 00:00:00,"266056",634.73,"CA0698","CAMBRIDGE GOLF COMPANY",1/8/2022 00:00:00,28/8/2022 00:00:00,"P05-2023"
"R&B","INFORMATION TECHNOLOGY","SUPPLIES AND SERVICES","IT CORE SYSTEMS","4113","P118903-SERVICE-CIPHR Payroll  Sept 2022",9/8/2022 00:00:00,"265646",542.44,"CI0721","CIPHR",1/8/2022 00:00:00,28/8/2022 00:00:00,"P05-2023"
"R&B","INFORMATION TECHNOLOGY","SUPPLIES AND SERVICES","IT CORE SYSTEMS","4113","P119128-SERVICE-Monthly fees PAYware Ocius Pos",23/8/2022 00:00:00,"266104",351,"CO0440","VERIFONE SERVICES UK & IRELAND LTD",1/8/2022 00:00:00,28/8/2022 00:00:00,"P05-2023"
"R&B","INFORMATION TECHNOLOGY","SUPPLIES AND SERVICES","IT NETWORK & TELECOMS COSTS","4114","P117871-SERVICE-Monthly SIP Apr 22-Mar 23",9/8/2022 00:00:00,"265621",148.72,"FR0131","VOICEFLEX LTD",1/8/2022 00:00:00,28/8/2022 00:00:00,"P05-2023"
"R&B","INFORMATION TECHNOLOGY","SUPPLIES AND SERVICES","IT NETWORK & TELECOMS COSTS","4114","P118963-SERVICE-MPLS for all sites August 22",9/8/2022 00:00:00,"265813",9605.86,"PP0200","PPSNET LIMITED",1/8/2022 00:00:00,28/8/2022 00:00:00,"P05-2023"
,"LV LEISURE CENTRE CAMPSITE","SUPPLIES AND SERVICES","EQUIPMENT HIRE","4115","P118636-SERVICE-Cushman Utility Hire",23/8/2022 00:00:00,"266055",616,"CA0698","CAMBRIDGE GOLF COMPANY",1/8/2022 00:00:00,28/8/2022 00:00:00,"P05-2023"
"P&V","MYDDELTON HOUSE","SUPPLIES AND SERVICES","IT HARDWARE & SOFTWARE COSTS","4116","ZEN INTERNET LTD",23/8/2022 00:00:00,"265986",42,"ZE0007","ZEN INTERNET LTD",1/8/2022 00:00:00,28/8/2022 00:00:00,"P05-2023"
"R&B","INFORMATION TECHNOLOGY","SUPPLIES AND SERVICES","IT HARDWARE & SOFTWARE COSTS","4116","P118866-SERVICE-Dell Mini Displayport-to-Displayport",4/8/2022 00:00:00,"265576",17.85,"IQ0022","IQUAL",1/8/2022 00:00:00,28/8/2022 00:00:00,"P05-2023"
,"LEE VALLEY MARINA SPRINGFIELD","SUPPLIES AND SERVICES","IT HARDWARE & SOFTWARE COSTS","4116","P118964-SERVICE-Annual Service Maintenance Fee August",9/8/2022 00:00:00,"265788",139.26,"WI0209","WIFI SPARK LIMITED",1/8/2022 00:00:00,28/8/2022 00:00:00,"P05-2023"
,"LEE VALLEY MARINA SPRINGFIELD","SUPPLIES AND SERVICES","IT HARDWARE & SOFTWARE COSTS","4116","ZEN INTERNET LTD",23/8/2022 00:00:00,"266014",38,"ZE0007","ZEN INTERNET LTD",1/8/2022 00:00:00,28/8/2022 00:00:00,"P05-2023"
,"LEE VALLEY MARINA STANSTEAD","SUPPLIES AND SERVICES","IT HARDWARE & SOFTWARE COSTS","4116","ZEN INTERNET LTD",23/8/2022 00:00:00,"266038",31.32,"ZE0007","ZEN INTERNET LTD",1/8/2022 00:00:00,28/8/2022 00:00:00,"P05-2023"
,"LEE VALLEY CAMPSITE","SUPPLIES AND SERVICES","IT HARDWARE & SOFTWARE COSTS","4116","P118964-SERVICE-Annual Service Maintenance Fee Aug Stanstead",9/8/2022 00:00:00,"265788",218.36,"WI0209","WIFI SPARK LIMITED",1/8/2022 00:00:00,28/8/2022 00:00:00,"P05-2023"
,"LEE VALLEY CAMPSITE","SUPPLIES AND SERVICES","IT HARDWARE & SOFTWARE COSTS","4116","P118964-SERVICE-Annual Service Maintenance Fee July",9/8/2022 00:00:00,"265788",218.92,"WI0209","WIFI SPARK LIMITED",1/8/2022 00:00:00,28/8/2022 00:00:00,"P05-2023"
,"LEE VALLEY CARAVAN PARK","SUPPLIES AND SERVICES","IT HARDWARE & SOFTWARE COSTS","4116","P118964-SERVICE-Annual Service Maintenance Fee August",9/8/2022 00:00:00,"265788",310.65,"WI0209","WIFI SPARK LIMITED",1/8/2022 00:00:00,28/8/2022 00:00:00,"P05-2023"
,"LV LEISURE CENTRE CAMPSITE","SUPPLIES AND SERVICES","IT HARDWARE & SOFTWARE COSTS","4116","P118964-SERVICE-Annual Service Maintenance Fee August",9/8/2022 00:00:00,"265788",163.42,"WI0209","WIFI SPARK LIMITED",1/8/2022 00:00:00,28/8/2022 00:00:00,"P05-2023"
"R&B","INFORMATION TECHNOLOGY","SUPPLIES AND SERVICES","IT MAINTENANCE AGREEMENTS","4119","P119124-SERVICE-Consultancy- Retire Exchange 2013 and build n",23/8/2022 00:00:00,"266107",395,"IQ0022","IQUAL",1/8/2022 00:00:00,28/8/2022 00:00:00,"P05-2023"
,"LEE VALLEY MARINA SPRINGFIELD","SUPPLIES AND SERVICES","IT MAINTENANCE AGREEMENTS","4119","P118904-SERVICE-Support & Data July 22",4/8/2022 00:00:00,"265633",75.16,"CY0653","CYBERTILL",1/8/2022 00:00:00,28/8/2022 00:00:00,"P05-2023"
,"LEE VALLEY MARINA STANSTEAD","SUPPLIES AND SERVICES","IT MAINTENANCE AGREEMENTS","4119","P118904-SERVICE-Support & Data July 22",4/8/2022 00:00:00,"265633",75.15,"CY0653","CYBERTILL",1/8/2022 00:00:00,28/8/2022 00:00:00,"P05-2023"
,"LEE VALLEY CAMPSITE","SUPPLIES AND SERVICES","IT MAINTENANCE AGREEMENTS","4119","P117645-SERVICE-Monthly Subscription May 22 - Oct 22",23/8/2022 00:00:00,"265994",145.5,"NE0218","NETGUIDES LIMITED",1/8/2022 00:00:00,28/8/2022 00:00:00,"P05-2023"
,"LEE VALLEY CARAVAN PARK","SUPPLIES AND SERVICES","IT MAINTENANCE AGREEMENTS","4119","P117645-SERVICE-Monthly Subscriptions May 22 - Oct 22 - Dobbs",23/8/2022 00:00:00,"265994",145.5,"NE0218","NETGUIDES LIMITED",1/8/2022 00:00:00,28/8/2022 00:00:00,"P05-2023"
"P&V","ALMOST WILD CAMPSITE","SUPPLIES AND SERVICES","IT MAINTENANCE AGREEMENTS","4119","P117645-SERVICE-Monthly Subscription May 22 - Oct 22",23/8/2022 00:00:00,"265994",145.5,"NE0218","NETGUIDES LIMITED",1/8/2022 00:00:00,28/8/2022 00:00:00,"P05-2023"
,"LV LEISURE CENTRE CAMPSITE","SUPPLIES AND SERVICES","IT MAINTENANCE AGREEMENTS","4119","P117645-SERVICE-Monthly Subscription May 22 - Oct 22 - Edmont",23/8/2022 00:00:00,"265994",145.5,"NE0218","NETGUIDES LIMITED",1/8/2022 00:00:00,28/8/2022 00:00:00,"P05-2023"
,"LV LEISURE CENTRE GOLF COURSE","SUPPLIES AND SERVICES","IT MAINTENANCE AGREEMENTS","4119","P118910-SERVICE-Digitickets Services July 2022",9/8/2022 00:00:00,"265614",595,"DI0304","DIGITAL TICKETING SYSTEMS LTD (DIGITICKETS)",1/8/2022 00:00:00,28/8/2022 00:00:00,"P05-2023"
"P&V","RIVER LEE COUNTRY PARK","SUPPLIES AND SERVICES","MATERIALS (COUNTERS)","4123","P119056-SERVICE-Replace Visitor Counter - Cheshunt Country Wa",18/8/2022 00:00:00,"266215",890,"HE0418","HEALTHMATIC LTD",1/8/2022 00:00:00,28/8/2022 00:00:00,"P05-2023"
"P&V","RIVER LEE COUNTRY PARK","SUPPLIES AND SERVICES","MATERIALS (COUNTERS)","4123","P119057-SERVICE-Visitor Counter at Cadmore Lane (New Site)",22/8/2022 00:00:00,"266216",1850,"HE0418","HEALTHMATIC LTD",1/8/2022 00:00:00,28/8/2022 00:00:00,"P05-2023"
"P&V","RIVER LEE COUNTRY PARK","SUPPLIES AND SERVICES","MATERIALS (COUNTERS)","4123","P119057-SERVICE-Visitor Counter at Cadmore Lane (New Site)",22/8/2022 00:00:00,"266216",350,"HE0418","HEALTHMATIC LTD",1/8/2022 00:00:00,28/8/2022 00:00:00,"P05-2023"
,"LEE VALLEY CAMPSITE","SUPPLIES AND SERVICES","MATERIALS (GROUNDS MAINT)","4125","P118927-SERVICE-Perennial bedding plants",18/8/2022 00:00:00,"265821",150,"CL0093","CLOCKHOUSE NURSERY",1/8/2022 00:00:00,28/8/2022 00:00:00,"P05-2023"
,"LEE VALLEY CAMPSITE","SUPPLIES AND SERVICES","MATERIALS (GROUNDS MAINT)","4125","P118927-SERVICE-15x large 30x small Laurels",18/8/2022 00:00:00,"265821",999.63,"CL0093","CLOCKHOUSE NURSERY",1/8/2022 00:00:00,28/8/2022 00:00:00,"P05-2023"
,"LEE VALLEY CAMPSITE","SUPPLIES AND SERVICES","MATERIALS (GROUNDS MAINT)","4125","P118927-SERVICE-Delivery",18/8/2022 00:00:00,"265821",16.67,"CL0093","CLOCKHOUSE NURSERY",1/8/2022 00:00:00,28/8/2022 00:00:00,"P05-2023"
,"LEE VALLEY CARAVAN PARK","SUPPLIES AND SERVICES","MATERIALS (GROUNDS MAINT)","4125","P118607-SERVICE-Spray hogweed and carpark",9/8/2022 00:00:00,"265523",225,"GO0044","S.H.GOSS & CO LTD",1/8/2022 00:00:00,28/8/2022 00:00:00,"P05-2023"
,"LV LEISURE CENTRE CAMPSITE","SUPPLIES AND SERVICES","MATERIALS (GROUNDS MAINT)","4125","P118953-SERVICE-Connect water and waste to food hut Edmonton",17/8/2022 00:00:00,"265027",130,"PA0348","PA JONES PLUMBING & HEATING",1/8/2022 00:00:00,28/8/2022 00:00:00,"P05-2023"
,"STANSTEAD RECHARGEABLE WORKS","SUPPLIES AND SERVICES","MATERIALS (TOOLS & PLANT)","4127","P118704-SERVICE-Sleepers for matt cox",18/8/2022 00:00:00,"265620",692,"TI0068","A10 TIMBER COMPANY",1/8/2022 00:00:00,28/8/2022 00:00:00,"P05-2023"
,"SPRINGFIELD RECHARGEABLE WORKS","SUPPLIES AND SERVICES","MATERIALS (ENG OTHER)","4130","P118713-SERVICE-To hire 110 ton crane on 26/7/22",16/8/2022 00:00:00,"265641",1400,"BA0339","BALDWINS CRANE HIRE LTD",1/8/2022 00:00:00,28/8/2022 00:00:00,"P05-2023"
,"SPRINGFIELD RECHARGEABLE WORKS","SUPPLIES AND SERVICES","MATERIALS (ENG OTHER)","4130","P118713-SERVICE-To provide insurance @15%",16/8/2022 00:00:00,"265641",210,"BA0339","BALDWINS CRANE HIRE LTD",1/8/2022 00:00:00,28/8/2022 00:00:00,"P05-2023"
,"STANSTEAD RECHARGEABLE WORKS","SUPPLIES AND SERVICES","MATERIALS (ENG OTHER)","4130","P118766-SERVICE-PARTS FOR WELDING",16/8/2022 00:00:00,"265342",167.5,"EN0309","PRH ENGINEERING LIMITED",1/8/2022 00:00:00,28/8/2022 00:00:00,"P05-2023"
"P&V","LEE VALLEY FARM HOLYFIELDHALL","SUPPLIES AND SERVICES","FEED","4133","P118966-SERVICE-Optima/Prime Grower/Translac",9/8/2022 00:00:00,"265612",13279.41,"BO0246","FOR FARMERS UK LTD",1/8/2022 00:00:00,28/8/2022 00:00:00,"P05-2023"
"P&V","LEE VALLEY FARM HOLYFIELDHALL","SUPPLIES AND SERVICES","FEED","4133","P118939-SERVICE-Rolled Barley",9/8/2022 00:00:00,"265837",4641.36,"PR0228","PROTEIN FEEDS LIMITED",1/8/2022 00:00:00,28/8/2022 00:00:00,"P05-2023"
"P&V","LEE VALLEY FARM HOLYFIELDHALL","SUPPLIES AND SERVICES","FEED","4133","P119020-SERVICE-LV Dairy Meal",15/8/2022 00:00:00,"265908",9977.7,"HE0449","HEYGATES COUNTRY FEEDS LTD",1/8/2022 00:00:00,28/8/2022 00:00:00,"P05-2023"
"P&V","LEE VALLEY FARM HOLYFIELDHALL","SUPPLIES AND SERVICES","FEED","4133","P119068-SERVICE-Selcoplus",18/8/2022 00:00:00,"266012",4479.02,"BO0246","FOR FARMERS UK LTD",1/8/2022 00:00:00,28/8/2022 00:00:00,"P05-2023"
"P&V","LEE VALLEY FARM HOLYFIELDHALL","SUPPLIES AND SERVICES","DAIRY SUNDRIES","4138","P118646-SERVICE-Dairy Sundries",15/8/2022 00:00:00,"265764",70.38,"FA0099","FARM & COUNTRY SUPPLIES LTD",1/8/2022 00:00:00,28/8/2022 00:00:00,"P05-2023"
"P&V","LEE VALLEY FARM HOLYFIELDHALL","SUPPLIES AND SERVICES","DAIRY SUNDRIES","4138","P118646-SERVICE-Dairy Sundries",15/8/2022 00:00:00,"265765",88.05,"FA0099","FARM & COUNTRY SUPPLIES LTD",1/8/2022 00:00:00,28/8/2022 00:00:00,"P05-2023"
"P&V","LEE VALLEY FARM HOLYFIELDHALL","SUPPLIES AND SERVICES","DAIRY SUNDRIES","4138","P118646-SERVICE-Dairy Sundries",15/8/2022 00:00:00,"265766",280.46,"FA0099","FARM & COUNTRY SUPPLIES LTD",1/8/2022 00:00:00,28/8/2022 00:00:00,"P05-2023"
"P&V","LEE VALLEY FARM HOLYFIELDHALL","SUPPLIES AND SERVICES","DAIRY SUNDRIES","4138","P118646-SERVICE-Dairy Sundries",15/8/2022 00:00:00,"265767",83.5,"FA0099","FARM & COUNTRY SUPPLIES LTD",1/8/2022 00:00:00,28/8/2022 00:00:00,"P05-2023"
"P&V","LEE VALLEY FARM HOLYFIELDHALL","SUPPLIES AND SERVICES","DAIRY SUNDRIES","4138","P118646-SERVICE-Dairy Sundries",15/8/2022 00:00:00,"265768",46.86,"FA0099","FARM & COUNTRY SUPPLIES LTD",1/8/2022 00:00:00,28/8/2022 00:00:00,"P05-2023"
"P&V","LEE VALLEY FARM HOLYFIELDHALL","SUPPLIES AND SERVICES","DAIRY SUNDRIES","4138","P118646-SERVICE-Dairy Sundries",15/8/2022 00:00:00,"265769",37.67,"FA0099","FARM & COUNTRY SUPPLIES LTD",1/8/2022 00:00:00,28/8/2022 00:00:00,"P05-2023"
"P&V","LEE VALLEY FARM HOLYFIELDHALL","SUPPLIES AND SERVICES","DAIRY SUNDRIES","4138","P118646-SERVICE-Dairy Sundries",15/8/2022 00:00:00,"265770",97.58,"FA0099","FARM & COUNTRY SUPPLIES LTD",1/8/2022 00:00:00,28/8/2022 00:00:00,"P05-2023"
"P&V","LEE VALLEY FARM HOLYFIELDHALL","SUPPLIES AND SERVICES","DAIRY SUNDRIES","4138","P118536-SERVICE-Animal Removal",15/8/2022 00:00:00,"265792",54,"MA0074","W MARTIN & SON LIMITED",1/8/2022 00:00:00,28/8/2022 00:00:00,"P05-2023"
"P&V","LEE VALLEY FARM HOLYFIELDHALL","SUPPLIES AND SERVICES","DAIRY SUNDRIES","4138","P118583-SERVICE-Gases",15/8/2022 00:00:00,"265902",435.98,"BO0015","BOC LTD",1/8/2022 00:00:00,28/8/2022 00:00:00,"P05-2023"
"P&V","LEE VALLEY FARM HOLYFIELDHALL","SUPPLIES AND SERVICES","DAIRY SUNDRIES","4138","P118536-SERVICE-Animal Removal",18/8/2022 00:00:00,"266060",140,"MA0074","W MARTIN & SON LIMITED",1/8/2022 00:00:00,28/8/2022 00:00:00,"P05-2023"
"P&V","LEE VALLEY FARM HOLYFIELDHALL","SUPPLIES AND SERVICES","DAIRY SUNDRIES","4138","P118646-SERVICE-Dairy Sundries",28/8/2022 00:00:00,"266480",87.96,"FA0099","FARM & COUNTRY SUPPLIES LTD",1/8/2022 00:00:00,28/8/2022 00:00:00,"P05-2023"
"P&V","LEE VALLEY FARM HOLYFIELDHALL","SUPPLIES AND SERVICES","DAIRY SUNDRIES","4138","P118646-SERVICE-Dairy Sundries",28/8/2022 00:00:00,"266481",55.39,"FA0099","FARM & COUNTRY SUPPLIES LTD",1/8/2022 00:00:00,28/8/2022 00:00:00,"P05-2023"
,"LV CAMPSITE CARAVAN SALES","SUPPLIES AND SERVICES","CARAVAN PURCHASES","4171","P118970-SERVICE-New Superior HH 40x13 Sewardstone",16/8/2022 00:00:00,"265896",51500,"UK0086","THE UK CARAVAN CENTRE",1/8/2022 00:00:00,28/8/2022 00:00:00,"P05-2023"
,"LV CAMPSITE CARAVAN SALES","SUPPLIES AND SERVICES","CARAVAN PURCHASES","4171","THE UK CARAVAN CENTRE",16/8/2022 00:00:00,"265896",41502.54,"UK0086","THE UK CARAVAN CENTRE",1/8/2022 00:00:00,28/8/2022 00:00:00,"P05-2023"
,"LV CAMPSITE CARAVAN SALES","SUPPLIES AND SERVICES","CARAVAN PURCHASES","4171","THE UK CARAVAN CENTRE",16/8/2022 00:00:00,"265896",-51500,"UK0086","THE UK CARAVAN CENTRE",1/8/2022 00:00:00,28/8/2022 00:00:00,"P05-2023"
,"LV CAMPSITE CARAVAN SALES","SUPPLIES AND SERVICES","CARAVAN PURCHASES","4171","THE UK CARAVAN CENTRE",16/8/2022 00:00:00,"265896",9997.46,"UK0086","THE UK CARAVAN CENTRE",1/8/2022 00:00:00,28/8/2022 00:00:00,"P05-2023"
,"LV CAMPSITE CARAVAN SALES","SUPPLIES AND SERVICES","DECKING PURCHASES","4173","P118519-SERVICE-DW plot 94 Decking",9/8/2022 00:00:00,"264527",5959.7,"LO0459","LONDON LODGES UK",1/8/2022 00:00:00,28/8/2022 00:00:00,"P05-2023"
,"LV CAMPSITE CARAVAN SALES","SUPPLIES AND SERVICES","DECKING PURCHASES","4173","P119054-SERVICE-Hatch plot 6 decking",23/8/2022 00:00:00,"266259",250,"LO0459","LONDON LODGES UK",1/8/2022 00:00:00,28/8/2022 00:00:00,"P05-2023"
,"LV CAMPSITE CARAVAN SALES","SUPPLIES AND SERVICES","MISCELLANEOUS CARAVAN COSTS","4174","P118811-SERVICE-Connect plot 5 Sewardstone and straighten ele",9/8/2022 00:00:00,"264748",120,"BR0018","BRADSHAW ELECTRICAL LIMITED",1/8/2022 00:00:00,28/8/2022 00:00:00,"P05-2023"
,"LV CAMPSITE CARAVAN SALES","SUPPLIES AND SERVICES","MISCELLANEOUS CARAVAN COSTS","4174","P118815-SERVICE-Connect gas/certt/groundworks for cylinders",23/8/2022 00:00:00,"265030",600,"PA0348","PA JONES PLUMBING & HEATING",1/8/2022 00:00:00,28/8/2022 00:00:00,"P05-2023"
,"LV CAMPSITE CARAVAN SALES","SUPPLIES AND SERVICES","MISCELLANEOUS CARAVAN COSTS","4174","P118971-SERVICE-Introduction P 005 Sewardstone",23/8/2022 00:00:00,"266058",2500,"LO0459","LONDON LODGES UK",1/8/2022 00:00:00,28/8/2022 00:00:00,"P05-2023"
"CEO","PR/COMMUNICATIONS","SUPPLIES AND SERVICES","CLOTHING & UNIFORMS","4225","P118738-SERVICE-Name badges x 16 + P&P",9/8/2022 00:00:00,"265625",130.25,"RE0055","RECOGNITION EXPRESS THAMES VALLEY",1/8/2022 00:00:00,28/8/2022 00:00:00,"P05-2023"
,"LEE VALLEY MARINA SPRINGFIELD","SUPPLIES AND SERVICES","CLOTHING & UNIFORMS","4225","DIRECT BOOT & SHOE SUPPLIES",16/8/2022 00:00:00,"265389",630.78,"DI0017","DIRECT BOOT & SHOE SUPPLIES",1/8/2022 00:00:00,28/8/2022 00:00:00,"P05-2023"
,"LEE VALLEY MARINA SPRINGFIELD","SUPPLIES AND SERVICES","CLOTHING & UNIFORMS","4225","P118736-SERVICE-To supply the following uniform",16/8/2022 00:00:00,"265389",652.78,"DI0017","DIRECT BOOT & SHOE SUPPLIES",1/8/2022 00:00:00,28/8/2022 00:00:00,"P05-2023"
,"LEE VALLEY MARINA SPRINGFIELD","SUPPLIES AND SERVICES","CLOTHING & UNIFORMS","4225","DIRECT BOOT & SHOE SUPPLIES",16/8/2022 00:00:00,"265389",-652.78,"DI0017","DIRECT BOOT & SHOE SUPPLIES",1/8/2022 00:00:00,28/8/2022 00:00:00,"P05-2023"
,"LEE VALLEY MARINA SPRINGFIELD","SUPPLIES AND SERVICES","CLOTHING & UNIFORMS","4225","DIRECT BOOT & SHOE SUPPLIES",16/8/2022 00:00:00,"265389",22,"DI0017","DIRECT BOOT & SHOE SUPPLIES",1/8/2022 00:00:00,28/8/2022 00:00:00,"P05-2023"
,"LEE VALLEY MARINA STANSTEAD","SUPPLIES AND SERVICES","CLOTHING & UNIFORMS","4225","DIRECT BOOT & SHOE SUPPLIES",16/8/2022 00:00:00,"265744",47.95,"DI0017","DIRECT BOOT & SHOE SUPPLIES",1/8/2022 00:00:00,28/8/2022 00:00:00,"P05-2023"
,"LEE VALLEY MARINA STANSTEAD","SUPPLIES AND SERVICES","CLOTHING & UNIFORMS","4225","DIRECT BOOT & SHOE SUPPLIES",16/8/2022 00:00:00,"265744",30,"DI0017","DIRECT BOOT & SHOE SUPPLIES",1/8/2022 00:00:00,28/8/2022 00:00:00,"P05-2023"
,"LEE VALLEY MARINA STANSTEAD","SUPPLIES AND SERVICES","CLOTHING & UNIFORMS","4225","P118803-SERVICE-uniform (shorts and hat M & SR)",16/8/2022 00:00:00,"265744",77.95,"DI0017","DIRECT BOOT & SHOE SUPPLIES",1/8/2022 00:00:00,28/8/2022 00:00:00,"P05-2023"
,"LEE VALLEY MARINA STANSTEAD","SUPPLIES AND SERVICES","CLOTHING & UNIFORMS","4225","DIRECT BOOT & SHOE SUPPLIES",16/8/2022 00:00:00,"265744",-77.95,"DI0017","DIRECT BOOT & SHOE SUPPLIES",1/8/2022 00:00:00,28/8/2022 00:00:00,"P05-2023"
"P&V","WILDLIFE DISCOVERY CENTRE","SUPPLIES AND SERVICES","CLOTHING & UNIFORMS","4225","P118885-SERVICE-6x Round Neck T-Shirts Navy",9/8/2022 00:00:00,"265643",37.5,"DI0017","DIRECT BOOT & SHOE SUPPLIES",1/8/2022 00:00:00,28/8/2022 00:00:00,"P05-2023"
"P&V","EVENTS MANAGEMENT (PR)","SUPPLIES AND SERVICES","CLOTHING & UNIFORMS","4225","P119097-SERVICE-4 x Polo shirts to embrodier",28/8/2022 00:00:00,"266250",19.96,"DI0017","DIRECT BOOT & SHOE SUPPLIES",1/8/2022 00:00:00,28/8/2022 00:00:00,"P05-2023"
"R&B","FINANCE","SUPPLIES AND SERVICES","OFFICE EXPENSES","4311","P118958-SERVICE-Multipurpose Label 65 x 38mm (2100 pack) Kf26",15/8/2022 00:00:00,"265987",15.22,"TH0008","JKL SOLUTIONS LTD",1/8/2022 00:00:00,28/8/2022 00:00:00,"P05-2023"
"R&B","INFORMATION TECHNOLOGY","SUPPLIES AND SERVICES","OFFICE EXPENSES","4311","P118858-SERVICE-HoloGuard Labels - Quotation number - Q010820",9/8/2022 00:00:00,"265806",350,"SE0683","SEAREACH - PLS USE ACCOUNT SE0429",1/8/2022 00:00:00,28/8/2022 00:00:00,"P05-2023"
,"LEE VALLEY CAMPSITE","SUPPLIES AND SERVICES","OFFICE EXPENSES","4311","P118923-SERVICE-copier paper",9/8/2022 00:00:00,"265685",25.11,"TH0008","JKL SOLUTIONS LTD",1/8/2022 00:00:00,28/8/2022 00:00:00,"P05-2023"
,"LEE VALLEY CAMPSITE","SUPPLIES AND SERVICES","OFFICE EXPENSES","4311","P118923-SERVICE-notepads",9/8/2022 00:00:00,"265685",28.36,"TH0008","JKL SOLUTIONS LTD",1/8/2022 00:00:00,28/8/2022 00:00:00,"P05-2023"
,"LEE VALLEY CAMPSITE","SUPPLIES AND SERVICES","OFFICE EXPENSES","4311","P118923-SERVICE-blu tak",9/8/2022 00:00:00,"265685",23.86,"TH0008","JKL SOLUTIONS LTD",1/8/2022 00:00:00,28/8/2022 00:00:00,"P05-2023"
,"LEE VALLEY CARAVAN PARK","SUPPLIES AND SERVICES","OFFICE EXPENSES","4311","P118826-SERVICE-Stationery",9/8/2022 00:00:00,"265565",130.88,"TH0008","JKL SOLUTIONS LTD",1/8/2022 00:00:00,28/8/2022 00:00:00,"P05-2023"
,"LEE VALLEY CARAVAN PARK","SUPPLIES AND SERVICES","OFFICE EXPENSES","4311","P119116-SERVICE-Stock take",22/8/2022 00:00:00,"266108",150,"VE0038","VENNERS LTD",1/8/2022 00:00:00,28/8/2022 00:00:00,"P05-2023"
"R&B","INFORMATION TECHNOLOGY","SUPPLIES AND SERVICES","PHOTOCOPYING","4314","KONICA MINOLTA BUSINESS SOLUTI",10/8/2022 00:00:00,"264327",1566.78,"KO0071","KONICA MINOLTA BUSINESS SOLUTIONS ( UK) LTD",1/8/2022 00:00:00,28/8/2022 00:00:00,"P05-2023"
"R&B","INFORMATION TECHNOLOGY","SUPPLIES AND SERVICES","PHOTOCOPYING","4314","KONICA MINOLTA BUSINESS SOLUTI",9/8/2022 00:00:00,"265010",422.99,"KO0071","KONICA MINOLTA BUSINESS SOLUTIONS ( UK) LTD",1/8/2022 00:00:00,28/8/2022 00:00:00,"P05-2023"
"R&B","INFORMATION TECHNOLOGY","SUPPLIES AND SERVICES","PHOTOCOPYING","4314","KONICA MINOLTA BUSINESS SOLUTI",9/8/2022 00:00:00,"265201",459.6,"KO0071","KONICA MINOLTA BUSINESS SOLUTIONS ( UK) LTD",1/8/2022 00:00:00,28/8/2022 00:00:00,"P05-2023"
"CEO","PR/COMMUNICATIONS","SUPPLIES AND SERVICES","PRINTING CORPORATE BROCHURES","4321","P118850-SERVICE-Print and distribution of newsletter for LVIC",10/8/2022 00:00:00,"265848",185.5,"LB0477","LBOX COMMUNICATIONS",1/8/2022 00:00:00,28/8/2022 00:00:00,"P05-2023"
"P&V","ASSET PROTECTION, MAINT, DEVEL","SUPPLIES AND SERVICES","PUBLICATIONS","4333","P119143-SERVICE-Building regulation publications",24/8/2022 00:00:00,"266021",85,"ST0053","THE STATIONERY OFFICE LTD",1/8/2022 00:00:00,28/8/2022 00:00:00,"P05-2023"
"P&V","ASSET PROTECTION, MAINT, DEVEL","SUPPLIES AND SERVICES","PUBLICATIONS","4333","P119144-SERVICE-Building regs docs",24/8/2022 00:00:00,"266022",25,"ST0053","THE STATIONERY OFFICE LTD",1/8/2022 00:00:00,28/8/2022 00:00:00,"P05-2023"
"P&V","LEE VALLEY FARM HOLYFIELDHALL","SUPPLIES AND SERVICES","SUBSCRIPTIONS","4334","P117608-SERVICE-Subs",15/8/2022 00:00:00,"265866",117,"NA0005","NATIONAL MILK RECORDS PLC",1/8/2022 00:00:00,28/8/2022 00:00:00,"P05-2023"
"P&V","LEE VALLEY FARM HOLYFIELDHALL","SUPPLIES AND SERVICES","SUBSCRIPTIONS","4334","P117608-SERVICE-Subs",15/8/2022 00:00:00,"265867",397.28,"NA0005","NATIONAL MILK RECORDS PLC",1/8/2022 00:00:00,28/8/2022 00:00:00,"P05-2023"
"P&V","MYDDELTON HOUSE GARDENS","SUPPLIES AND SERVICES","SUBSCRIPTIONS","4334","P118977-SERVICE-membership reneweal",16/8/2022 00:00:00,"265355",258.04,"VI0109","VISIT ENGLAND ASSESSMENT SERVICES",1/8/2022 00:00:00,28/8/2022 00:00:00,"P05-2023"
"P&V","MYDDELTON HOUSE","SUPPLIES AND SERVICES","POSTAGE & MAILING","4445","PITNEY BOWES PURCHASE POWER",18/8/2022 00:00:00,"266118",14,"PI0021","PITNEY BOWES PURCHASE POWER",1/8/2022 00:00:00,28/8/2022 00:00:00,"P05-2023"
"P&V","MYDDELTON HOUSE","SUPPLIES AND SERVICES","POSTAGE & MAILING","4445","PITNEY BOWES PURCHASE POWER",18/8/2022 00:00:00,"266118",1400,"PI0021","PITNEY BOWES PURCHASE POWER",1/8/2022 00:00:00,28/8/2022 00:00:00,"P05-2023"
"R&B","REVENUE SUSPENSE (AUTHORITY)","SUPPLIES AND SERVICES","TELEPHONES (MOBILE)","4484","GAMMA TELECOM LTD",9/8/2022 00:00:00,"265852",686.09,"GA0432","GAMMA TELECOM LTD",1/8/2022 00:00:00,28/8/2022 00:00:00,"P05-2023"
,"LEE VALLEY CAMPSITE","SUPPLIES AND SERVICES","MARKETING","4603","P118899-SERVICE-PEAKY PODS DOOR PROOFS X3",9/8/2022 00:00:00,"265618",200,"SL0528","SLAM SIGNS LTD",1/8/2022 00:00:00,28/8/2022 00:00:00,"P05-2023"
,"LEE VALLEY CAMPSITE","SUPPLIES AND SERVICES","MARKETING","4603","P118899-SERVICE-PEAKY PODS DOOR PROOFS X3",18/8/2022 00:00:00,"265763",50,"SL0528","SLAM SIGNS LTD",1/8/2022 00:00:00,28/8/2022 00:00:00,"P05-2023"
,"LEE VALLEY CAMPSITE","SUPPLIES AND SERVICES","MARKETING","4603","P118899-SERVICE-PEAKY PODS FROSTED STRIPE VINYLS FOR DOORS",18/8/2022 00:00:00,"265763",205,"SL0528","SLAM SIGNS LTD",1/8/2022 00:00:00,28/8/2022 00:00:00,"P05-2023"
,"LEE VALLEY CAMPSITE","SUPPLIES AND SERVICES","MARKETING","4603","P119085-SERVICE-Accomodation sanitise stickers",24/8/2022 00:00:00,"266302",160,"SL0528","SLAM SIGNS LTD",1/8/2022 00:00:00,28/8/2022 00:00:00,"P05-2023"
"P&V","MYDDLETON HSE HERITAGE CENTRE","SUPPLIES AND SERVICES","MARKETING","4603","P118896-SERVICE-marketing leaflets gardens",15/8/2022 00:00:00,"265774",240,"TO0631","TOP FLOOR CREATIVE",1/8/2022 00:00:00,28/8/2022 00:00:00,"P05-2023"
,"LEE VALLEY WATERWORKS CENTRE","SUPPLIES AND SERVICES","PEST CONTROL","4625","P118912-SERVICE-Pest Control - WaterWorks - Jul to Sep",23/8/2022 00:00:00,"265657",165,"VE0006","VERMINATE CITY & RURAL PEST CONTROL LTD",1/8/2022 00:00:00,28/8/2022 00:00:00,"P05-2023"
"P&V","NORTH AREA RANGERS","SUPPLIES AND SERVICES","PEST CONTROL","4625","P117772-SERVICE-Pest Control - Ware Town Centre - Jun",4/8/2022 00:00:00,"265667",53.34,"VE0006","VERMINATE CITY & RURAL PEST CONTROL LTD",1/8/2022 00:00:00,28/8/2022 00:00:00,"P05-2023"
"P&V","NORTH AREA RANGERS","SUPPLIES AND SERVICES","PEST CONTROL","4625","P117772-SERVICE-Pest Control - Ware Town Centre - Jul",4/8/2022 00:00:00,"265668",53.34,"VE0006","VERMINATE CITY & RURAL PEST CONTROL LTD",1/8/2022 00:00:00,28/8/2022 00:00:00,"P05-2023"
"P&V","NORTH AREA RANGERS","SUPPLIES AND SERVICES","PEST CONTROL","4625","P117770-SERVICE-Pest Control - North Sites - Jun",4/8/2022 00:00:00,"265669",66.67,"VE0006","VERMINATE CITY & RURAL PEST CONTROL LTD",1/8/2022 00:00:00,28/8/2022 00:00:00,"P05-2023"
"P&V","NORTH AREA RANGERS","SUPPLIES AND SERVICES","PEST CONTROL","4625","P117770-SERVICE-Pest Control - North Sites - Jul",4/8/2022 00:00:00,"265670",66.67,"VE0006","VERMINATE CITY & RURAL PEST CONTROL LTD",1/8/2022 00:00:00,28/8/2022 00:00:00,"P05-2023"
"P&V","SOUTH AREA RANGERS","SUPPLIES AND SERVICES","PEST CONTROL","4625","P117769-SERVICE-Pest Control - Tottenham Marshes - Jun",4/8/2022 00:00:00,"265659",46.67,"VE0006","VERMINATE CITY & RURAL PEST CONTROL LTD",1/8/2022 00:00:00,28/8/2022 00:00:00,"P05-2023"
"P&V","SOUTH AREA RANGERS","SUPPLIES AND SERVICES","PEST CONTROL","4625","P117769-SERVICE-Pest Control - Tottenham Marshes - Jul",4/8/2022 00:00:00,"265660",46.67,"VE0006","VERMINATE CITY & RURAL PEST CONTROL LTD",1/8/2022 00:00:00,28/8/2022 00:00:00,"P05-2023"
"P&V","ABBEY GARDENS","SUPPLIES AND SERVICES","PEST CONTROL","4625","P117770-SERVICE-Pest Control - North Sites - Jun",4/8/2022 00:00:00,"265669",33.33,"VE0006","VERMINATE CITY & RURAL PEST CONTROL LTD",1/8/2022 00:00:00,28/8/2022 00:00:00,"P05-2023"
"P&V","ABBEY GARDENS","SUPPLIES AND SERVICES","PEST CONTROL","4625","P117770-SERVICE-Pest Control - North Sites - Jul",4/8/2022 00:00:00,"265670",33.33,"VE0006","VERMINATE CITY & RURAL PEST CONTROL LTD",1/8/2022 00:00:00,28/8/2022 00:00:00,"P05-2023"
"P&V","GUNPOWDER PARK","SUPPLIES AND SERVICES","PEST CONTROL","4625","P117770-SERVICE-Pest Control - North Sites - Jul",4/8/2022 00:00:00,"265670",33.33,"VE0006","VERMINATE CITY & RURAL PEST CONTROL LTD",1/8/2022 00:00:00,28/8/2022 00:00:00,"P05-2023"
"P&V","RIVER LEE COUNTRY PARK","SUPPLIES AND SERVICES","PEST CONTROL","4625","P117770-SERVICE-Pest Control - North Sites - Jun",4/8/2022 00:00:00,"265669",66.67,"VE0006","VERMINATE CITY & RURAL PEST CONTROL LTD",1/8/2022 00:00:00,28/8/2022 00:00:00,"P05-2023"
"P&V","RIVER LEE COUNTRY PARK","SUPPLIES AND SERVICES","PEST CONTROL","4625","P117770-SERVICE-Pest Control - North Sites - Jul",4/8/2022 00:00:00,"265670",66.67,"VE0006","VERMINATE CITY & RURAL PEST CONTROL LTD",1/8/2022 00:00:00,28/8/2022 00:00:00,"P05-2023"
"P&V","FORMER LV LIDO SITE","SUPPLIES AND SERVICES","PEST CONTROL","4625","P117770-SERVICE-Pest Control - North Sites - Jun",4/8/2022 00:00:00,"265669",33.33,"VE0006","VERMINATE CITY & RURAL PEST CONTROL LTD",1/8/2022 00:00:00,28/8/2022 00:00:00,"P05-2023"
,"LEE VALLEY MARINA SPRINGFIELD","SUPPLIES AND SERVICES","MERCHANT PROCESSING CHARGES","4641","WORLDPAY",18/8/2022 00:00:00,"265624",30,"WO0338","WORLDPAY",1/8/2022 00:00:00,28/8/2022 00:00:00,"P05-2023"
,"LEE VALLEY MARINA STANSTEAD","SUPPLIES AND SERVICES","MERCHANT PROCESSING CHARGES","4641","WORLDPAY",18/8/2022 00:00:00,"265624",30,"WO0338","WORLDPAY",1/8/2022 00:00:00,28/8/2022 00:00:00,"P05-2023"
"R&B","FINANCE & RESOURCES MANAGEMENT","SUPPLIES AND SERVICES","DEBT RECOVERY FEES","4646","P117729-SERVICE-DEBT RECOVERY FEES 2022/2023",24/8/2022 00:00:00,"266271",491.2,"LE0069","LEGAL RECOVERIES AND COLLECTIONS LIMITED",1/8/2022 00:00:00,28/8/2022 00:00:00,"P05-2023"
"R&B","FINANCE & RESOURCES MANAGEMENT","SUPPLIES AND SERVICES","DEBT RECOVERY FEES","4646","LEGAL RECOVERIES AND COLLECTIO",24/8/2022 00:00:00,"266271",189,"LE0069","LEGAL RECOVERIES AND COLLECTIONS LIMITED",1/8/2022 00:00:00,28/8/2022 00:00:00,"P05-2023"
"R&B","FINANCE & RESOURCES MANAGEMENT","SUPPLIES AND SERVICES","DEBT RECOVERY FEES","4646","LEGAL RECOVERIES AND COLLECTIO",24/8/2022 00:00:00,"266271",302.2,"LE0069","LEGAL RECOVERIES AND COLLECTIONS LIMITED",1/8/2022 00:00:00,28/8/2022 00:00:00,"P05-2023"
"R&B","FINANCE & RESOURCES MANAGEMENT","SUPPLIES AND SERVICES","DEBT RECOVERY FEES","4646","LEGAL RECOVERIES AND COLLECTIO",24/8/2022 00:00:00,"266271",-491.2,"LE0069","LEGAL RECOVERIES AND COLLECTIONS LIMITED",1/8/2022 00:00:00,28/8/2022 00:00:00,"P05-2023"
"P&V","NORTH AREA RANGERS","SUPPLIES AND SERVICES","SECURITY","4650","P118176-SERVICE-Security - North of Park",9/8/2022 00:00:00,"265677",5322.41,"PA0059","PARKGUARD LTD",1/8/2022 00:00:00,28/8/2022 00:00:00,"P05-2023"
"P&V","NORTH AREA RANGERS","SUPPLIES AND SERVICES","SECURITY","4650","P119025-SERVICE-Swim cover Glen Faba",18/8/2022 00:00:00,"266109",5220,"PA0059","PARKGUARD LTD",1/8/2022 00:00:00,28/8/2022 00:00:00,"P05-2023"
"P&V","SOUTH AREA RANGERS","SUPPLIES AND SERVICES","SECURITY","4650","P118177-SERVICE-Security - South of Park",4/8/2022 00:00:00,"265678",8023.9,"PA0059","PARKGUARD LTD",1/8/2022 00:00:00,28/8/2022 00:00:00,"P05-2023"
"P&V","RIVER LEE COUNTRY PARK","SUPPLIES AND SERVICES","SECURITY","4650","P118804-SERVICE-Repair Height Barrier at Cornmill Meadows",4/8/2022 00:00:00,"265752",180,"LW0268","LWC ENGINEERING LIMITED",1/8/2022 00:00:00,28/8/2022 00:00:00,"P05-2023"
"P&V","RIVER LEE COUNTRY PARK","SUPPLIES AND SERVICES","SECURITY","4650","P118804-SERVICE-Repair Height Barrier at Pindar Car Park",4/8/2022 00:00:00,"265752",360,"LW0268","LWC ENGINEERING LIMITED",1/8/2022 00:00:00,28/8/2022 00:00:00,"P05-2023"
"P&V","RIVER LEE COUNTRY PARK","SUPPLIES AND SERVICES","SECURITY","4650","P118804-SERVICE-Removeable Lock Post - Cornmill Meadows",4/8/2022 00:00:00,"265757",480,"LW0268","LWC ENGINEERING LIMITED",1/8/2022 00:00:00,28/8/2022 00:00:00,"P05-2023"
"P&V","RIVER LEE COUNTRY PARK","SUPPLIES AND SERVICES","SECURITY","4650","P119055-SERVICE-'Out of Hours Call Service' for Lee Valley Pa",18/8/2022 00:00:00,"266000",337.65,"TE0585","TENDRING DISTRICT COUNCIL",1/8/2022 00:00:00,28/8/2022 00:00:00,"P05-2023"
"CEO","LVLC SERVICE CHARGE","SUPPLIES AND SERVICES","SECURITY","4650","P118521-SERVICE-Security Services at LVLC",15/8/2022 00:00:00,"265684",2972.28,"SA0626","SAFE SITE SECURITY SOLUTIONS LTD",1/8/2022 00:00:00,28/8/2022 00:00:00,"P05-2023"
"CEO","LVLC SERVICE CHARGE","SUPPLIES AND SERVICES","SECURITY","4650","P118991-SERVICE-18-31 July Security",15/8/2022 00:00:00,"265842",438.29,"PA0059","PARKGUARD LTD",1/8/2022 00:00:00,28/8/2022 00:00:00,"P05-2023"
"P&V","SOUTH AREA RANGERS","SUPPLIES AND SERVICES","UNAUTHORISED INCURSIONS","4651","P118968-SERVICE-Traveller Eviction at Rammey Marsh",16/8/2022 00:00:00,"265898",3955,"GR0236","G R C BAILIFFS",1/8/2022 00:00:00,28/8/2022 00:00:00,"P05-2023"
"CEO","PR/COMMUNICATIONS","SUPPLIES AND SERVICES","ADVERTISING - AWARENESS","4656","P117708-SERVICE-Global Bird Fair programme - half page advert",15/8/2022 00:00:00,"265844",500,"WA0063","WARNERS GROUP PUBLICATIONS PLC",1/8/2022 00:00:00,28/8/2022 00:00:00,"P05-2023"
"CEO","PR/COMMUNICATIONS","SUPPLIES AND SERVICES","MEDIA MONITORING","4660","P118397-SERVICE-NLA renewal - 2022/23 - Simplified Licence, S",15/8/2022 00:00:00,"265899",4123.6,"NE0043","NLA MEDIA ACCESS LIMITED",1/8/2022 00:00:00,28/8/2022 00:00:00,"P05-2023"
"CEO","PR/COMMUNICATIONS","SUPPLIES AND SERVICES","TOURIST BOARDS MEMBERSHIP","4662","P118546-SERVICE-Visit Essex membership renewal",9/8/2022 00:00:00,"265339",1143,"ES0268","ESSEX COUNTY COUNCIL",1/8/2022 00:00:00,28/8/2022 00:00:00,"P05-2023"
"CEO","PR/COMMUNICATIONS","SUPPLIES AND SERVICES","ARTWORK","4664","P118658-SERVICE-Presentation templates",9/8/2022 00:00:00,"265548",356.25,"MI0455","THE MILL HOUSE",1/8/2022 00:00:00,28/8/2022 00:00:00,"P05-2023"
"CEO","PR/COMMUNICATIONS","SUPPLIES AND SERVICES","ARTWORK","4664","P118336-SERVICE-Summer destination campaign",15/8/2022 00:00:00,"265869",270,"ID0174","IDEAS LIBRARY LTD",1/8/2022 00:00:00,28/8/2022 00:00:00,"P05-2023"
"R&B","PERFORMANCE MANAGEMENT","SUPPLIES AND SERVICES","OFFSITE ARCHIVED STORAGE","4667","P119112-SERVICE-Off Site Archive Jult 2022",28/8/2022 00:00:00,"265789",334.88,"DA0154","RESTORE PLC",1/8/2022 00:00:00,28/8/2022 00:00:00,"P05-2023"
"P&V","LEE VALLEY FARM HOLYFIELDHALL","THIRD PARTY PAYMENTS","VETERINARY SERVICES","4718","P119021-SERVICE-Vets",15/8/2022 00:00:00,"265989",1251.68,"HA0443","HAMPDEN VETERINARY HOSPITAL",1/8/2022 00:00:00,28/8/2022 00:00:00,"P05-2023"
"P&V","MYDDLETON HSE HERITAGE CENTRE","SUPPLIES AND SERVICES","NET CATERING PURCHASES","4777","BIDFOOD",15/8/2022 00:00:00,"265116",385.42,"360001","BIDFOOD",1/8/2022 00:00:00,28/8/2022 00:00:00,"P05-2023"
"P&V","MYDDLETON HSE HERITAGE CENTRE","SUPPLIES AND SERVICES","NET CATERING PURCHASES","4777","P118978-SERVICE-food/drinks order aug 22",15/8/2022 00:00:00,"265116",570.29,"360001","BIDFOOD",1/8/2022 00:00:00,28/8/2022 00:00:00,"P05-2023"
"P&V","MYDDLETON HSE HERITAGE CENTRE","SUPPLIES AND SERVICES","NET CATERING PURCHASES","4777","BIDFOOD",15/8/2022 00:00:00,"265116",-570.29,"360001","BIDFOOD",1/8/2022 00:00:00,28/8/2022 00:00:00,"P05-2023"
"P&V","MYDDLETON HSE HERITAGE CENTRE","SUPPLIES AND SERVICES","NET CATERING PURCHASES","4777","BIDFOOD",15/8/2022 00:00:00,"265116",184.87,"360001","BIDFOOD",1/8/2022 00:00:00,28/8/2022 00:00:00,"P05-2023"
"P&V","MYDDLETON HSE HERITAGE CENTRE","SUPPLIES AND SERVICES","NET CATERING PURCHASES","4777","BIDFOOD",15/8/2022 00:00:00,"265520",-371.12,"360001","BIDFOOD",1/8/2022 00:00:00,28/8/2022 00:00:00,"P05-2023"
"P&V","MYDDLETON HSE HERITAGE CENTRE","SUPPLIES AND SERVICES","NET CATERING PURCHASES","4777","BIDFOOD",15/8/2022 00:00:00,"265520",244,"360001","BIDFOOD",1/8/2022 00:00:00,28/8/2022 00:00:00,"P05-2023"
"P&V","MYDDLETON HSE HERITAGE CENTRE","SUPPLIES AND SERVICES","NET CATERING PURCHASES","4777","BIDFOOD",15/8/2022 00:00:00,"265520",127.12,"360001","BIDFOOD",1/8/2022 00:00:00,28/8/2022 00:00:00,"P05-2023"
"P&V","MYDDLETON HSE HERITAGE CENTRE","SUPPLIES AND SERVICES","NET CATERING PURCHASES","4777","P118782-SERVICE-food/drinks order july end",15/8/2022 00:00:00,"265520",371.12,"360001","BIDFOOD",1/8/2022 00:00:00,28/8/2022 00:00:00,"P05-2023"
"P&V","MYDDLETON HSE HERITAGE CENTRE","SUPPLIES AND SERVICES","NET CATERING PURCHASES","4777","BIDFOOD",15/8/2022 00:00:00,"265547",44.09,"360001","BIDFOOD",1/8/2022 00:00:00,28/8/2022 00:00:00,"P05-2023"
"P&V","MYDDLETON HSE HERITAGE CENTRE","SUPPLIES AND SERVICES","NET CATERING PURCHASES","4777","P118782-SERVICE-food/drinks order july end",15/8/2022 00:00:00,"265547",398.72,"360001","BIDFOOD",1/8/2022 00:00:00,28/8/2022 00:00:00,"P05-2023"
"P&V","MYDDLETON HSE HERITAGE CENTRE","SUPPLIES AND SERVICES","NET CATERING PURCHASES","4777","BIDFOOD",15/8/2022 00:00:00,"265547",-398.72,"360001","BIDFOOD",1/8/2022 00:00:00,28/8/2022 00:00:00,"P05-2023"
"P&V","MYDDLETON HSE HERITAGE CENTRE","SUPPLIES AND SERVICES","NET CATERING PURCHASES","4777","BIDFOOD",15/8/2022 00:00:00,"265547",354.63,"360001","BIDFOOD",1/8/2022 00:00:00,28/8/2022 00:00:00,"P05-2023"
"P&V","MYDDLETON HSE HERITAGE CENTRE","SUPPLIES AND SERVICES","NET CATERING PURCHASES","4777","P118979-SERVICE-drinks order july/aug 22",15/8/2022 00:00:00,"265648",138,"TU0194","TUDOR TEA & COFFEE",1/8/2022 00:00:00,28/8/2022 00:00:00,"P05-2023"
"P&V","MYDDLETON HSE HERITAGE CENTRE","SUPPLIES AND SERVICES","NET CATERING PURCHASES","4777","P118782-SERVICE-food/drinks order july end",15/8/2022 00:00:00,"265671",-16.9,"360001","BIDFOOD",1/8/2022 00:00:00,28/8/2022 00:00:00,"P05-2023"
"P&V","MYDDLETON HSE HERITAGE CENTRE","SUPPLIES AND SERVICES","NET CATERING PURCHASES","4777","P118978-SERVICE-food/drinks order aug 22",15/8/2022 00:00:00,"265672",646.99,"360001","BIDFOOD",1/8/2022 00:00:00,28/8/2022 00:00:00,"P05-2023"
"P&V","MYDDLETON HSE HERITAGE CENTRE","SUPPLIES AND SERVICES","NET CATERING PURCHASES","4777","BIDFOOD",15/8/2022 00:00:00,"265672",189.21,"360001","BIDFOOD",1/8/2022 00:00:00,28/8/2022 00:00:00,"P05-2023"
"P&V","MYDDLETON HSE HERITAGE CENTRE","SUPPLIES AND SERVICES","NET CATERING PURCHASES","4777","BIDFOOD",15/8/2022 00:00:00,"265672",-646.99,"360001","BIDFOOD",1/8/2022 00:00:00,28/8/2022 00:00:00,"P05-2023"
"P&V","MYDDLETON HSE HERITAGE CENTRE","SUPPLIES AND SERVICES","NET CATERING PURCHASES","4777","BIDFOOD",15/8/2022 00:00:00,"265672",457.78,"360001","BIDFOOD",1/8/2022 00:00:00,28/8/2022 00:00:00,"P05-2023"
"P&V","MYDDLETON HSE HERITAGE CENTRE","SUPPLIES AND SERVICES","NET CATERING PURCHASES","4777","P118864-SERVICE-VC cups order",15/8/2022 00:00:00,"265675",186.12,"CA0585","CAFE CONNECTIONS",1/8/2022 00:00:00,28/8/2022 00:00:00,"P05-2023"
"P&V","MYDDLETON HSE HERITAGE CENTRE","SUPPLIES AND SERVICES","NET CATERING PURCHASES","4777","P118782-SERVICE-food/drinks order july end",15/8/2022 00:00:00,"265839",-1.5,"360001","BIDFOOD",1/8/2022 00:00:00,28/8/2022 00:00:00,"P05-2023"
"P&V","MYDDLETON HSE HERITAGE CENTRE","SUPPLIES AND SERVICES","NET CATERING PURCHASES","4777","BIDFOOD",15/8/2022 00:00:00,"265840",224.03,"360001","BIDFOOD",1/8/2022 00:00:00,28/8/2022 00:00:00,"P05-2023"
"P&V","MYDDLETON HSE HERITAGE CENTRE","SUPPLIES AND SERVICES","NET CATERING PURCHASES","4777","BIDFOOD",15/8/2022 00:00:00,"265840",266.22,"360001","BIDFOOD",1/8/2022 00:00:00,28/8/2022 00:00:00,"P05-2023"
"P&V","MYDDLETON HSE HERITAGE CENTRE","SUPPLIES AND SERVICES","NET CATERING PURCHASES","4777","P118978-SERVICE-food/drinks order aug 22",15/8/2022 00:00:00,"265840",490.25,"360001","BIDFOOD",1/8/2022 00:00:00,28/8/2022 00:00:00,"P05-2023"
"P&V","MYDDLETON HSE HERITAGE CENTRE","SUPPLIES AND SERVICES","NET CATERING PURCHASES","4777","BIDFOOD",15/8/2022 00:00:00,"265840",-490.25,"360001","BIDFOOD",1/8/2022 00:00:00,28/8/2022 00:00:00,"P05-2023"
"P&V","MYDDLETON HSE HERITAGE CENTRE","SUPPLIES AND SERVICES","NET CATERING PURCHASES","4777","BIDFOOD",15/8/2022 00:00:00,"265906",-292.47,"360001","BIDFOOD",1/8/2022 00:00:00,28/8/2022 00:00:00,"P05-2023"
"P&V","MYDDLETON HSE HERITAGE CENTRE","SUPPLIES AND SERVICES","NET CATERING PURCHASES","4777","BIDFOOD",15/8/2022 00:00:00,"265906",240.25,"360001","BIDFOOD",1/8/2022 00:00:00,28/8/2022 00:00:00,"P05-2023"
"P&V","MYDDLETON HSE HERITAGE CENTRE","SUPPLIES AND SERVICES","NET CATERING PURCHASES","4777","BIDFOOD",15/8/2022 00:00:00,"265906",52.22,"360001","BIDFOOD",1/8/2022 00:00:00,28/8/2022 00:00:00,"P05-2023"
"P&V","MYDDLETON HSE HERITAGE CENTRE","SUPPLIES AND SERVICES","NET CATERING PURCHASES","4777","P118689-SERVICE-food/drinks order july 22",15/8/2022 00:00:00,"265906",20.7,"360001","BIDFOOD",1/8/2022 00:00:00,28/8/2022 00:00:00,"P05-2023"
"P&V","MYDDLETON HSE HERITAGE CENTRE","SUPPLIES AND SERVICES","NET CATERING PURCHASES","4777","P118782-SERVICE-food/drinks order july end",15/8/2022 00:00:00,"265906",148.56,"360001","BIDFOOD",1/8/2022 00:00:00,28/8/2022 00:00:00,"P05-2023"
"P&V","MYDDLETON HSE HERITAGE CENTRE","SUPPLIES AND SERVICES","NET CATERING PURCHASES","4777","P118978-SERVICE-food/drinks order aug 22",15/8/2022 00:00:00,"265906",292.47,"360001","BIDFOOD",1/8/2022 00:00:00,28/8/2022 00:00:00,"P05-2023"
"P&V","MYDDLETON HSE HERITAGE CENTRE","SUPPLIES AND SERVICES","NET CATERING PURCHASES","4777","BIDFOOD",28/8/2022 00:00:00,"266029",-988.74,"360001","BIDFOOD",1/8/2022 00:00:00,28/8/2022 00:00:00,"P05-2023"
"P&V","MYDDLETON HSE HERITAGE CENTRE","SUPPLIES AND SERVICES","NET CATERING PURCHASES","4777","BIDFOOD",28/8/2022 00:00:00,"266029",569.03,"360001","BIDFOOD",1/8/2022 00:00:00,28/8/2022 00:00:00,"P05-2023"
"P&V","MYDDLETON HSE HERITAGE CENTRE","SUPPLIES AND SERVICES","NET CATERING PURCHASES","4777","BIDFOOD",28/8/2022 00:00:00,"266029",419.71,"360001","BIDFOOD",1/8/2022 00:00:00,28/8/2022 00:00:00,"P05-2023"
"P&V","MYDDLETON HSE HERITAGE CENTRE","SUPPLIES AND SERVICES","NET CATERING PURCHASES","4777","P119203-SERVICE-Food/Drink order wc 08.08.20222",28/8/2022 00:00:00,"266029",988.74,"360001","BIDFOOD",1/8/2022 00:00:00,28/8/2022 00:00:00,"P05-2023"
"P&V","MYDDLETON HSE HERITAGE CENTRE","SUPPLIES AND SERVICES","NET CATERING PURCHASES","4777","BIDFOOD",28/8/2022 00:00:00,"266308",-321.7,"360001","BIDFOOD",1/8/2022 00:00:00,28/8/2022 00:00:00,"P05-2023"
"P&V","MYDDLETON HSE HERITAGE CENTRE","SUPPLIES AND SERVICES","NET CATERING PURCHASES","4777","P119122-SERVICE-Food/Drink order week commencing 22/08/2022",28/8/2022 00:00:00,"266308",321.7,"360001","BIDFOOD",1/8/2022 00:00:00,28/8/2022 00:00:00,"P05-2023"
"P&V","MYDDLETON HSE HERITAGE CENTRE","SUPPLIES AND SERVICES","NET CATERING PURCHASES","4777","BIDFOOD",28/8/2022 00:00:00,"266308",204.97,"360001","BIDFOOD",1/8/2022 00:00:00,28/8/2022 00:00:00,"P05-2023"
"P&V","MYDDLETON HSE HERITAGE CENTRE","SUPPLIES AND SERVICES","NET CATERING PURCHASES","4777","BIDFOOD",28/8/2022 00:00:00,"266308",116.73,"360001","BIDFOOD",1/8/2022 00:00:00,28/8/2022 00:00:00,"P05-2023"
"P&V","MYDDLETON HSE HERITAGE CENTRE","SUPPLIES AND SERVICES","NET CATERING PURCHASES","4777","P119122-SERVICE-Food/Drink order week commencing 22/08/2022",28/8/2022 00:00:00,"266327",548.47,"360001","BIDFOOD",1/8/2022 00:00:00,28/8/2022 00:00:00,"P05-2023"
"P&V","MYDDLETON HSE HERITAGE CENTRE","SUPPLIES AND SERVICES","NET CATERING PURCHASES","4777","BIDFOOD",28/8/2022 00:00:00,"266327",-548.47,"360001","BIDFOOD",1/8/2022 00:00:00,28/8/2022 00:00:00,"P05-2023"
"P&V","MYDDLETON HSE HERITAGE CENTRE","SUPPLIES AND SERVICES","NET CATERING PURCHASES","4777","BIDFOOD",28/8/2022 00:00:00,"266327",496.18,"360001","BIDFOOD",1/8/2022 00:00:00,28/8/2022 00:00:00,"P05-2023"
"P&V","MYDDLETON HSE HERITAGE CENTRE","SUPPLIES AND SERVICES","NET CATERING PURCHASES","4777","BIDFOOD",28/8/2022 00:00:00,"266327",52.29,"360001","BIDFOOD",1/8/2022 00:00:00,28/8/2022 00:00:00,"P05-2023"
"P&V","MYDDELTON HOUSE","SUPPLIES AND SERVICES","TRADING AC - EXTERNAL PURCHASE","4875","P119136-SERVICE-1 x Box Assorted Biscuits (20028)",28/8/2022 00:00:00,"266482",11.5,"360001","BIDFOOD",1/8/2022 00:00:00,28/8/2022 00:00:00,"P05-2023"
"P&V","MYDDELTON HOUSE","SUPPLIES AND SERVICES","TRADING AC - EXTERNAL PURCHASE","4875","P119136-SERVICE-3 x Coronet Semi Skimmed Milk Capsules UHT 12",28/8/2022 00:00:00,"266482",10.32,"360001","BIDFOOD",1/8/2022 00:00:00,28/8/2022 00:00:00,"P05-2023"
,"LEE VALLEY MARINA SPRINGFIELD","SUPPLIES AND SERVICES","TRADING AC - EXTERNAL PURCHASE","4875","P118860-SERVICE-Chandlery Stock",9/8/2022 00:00:00,"265630",546.21,"CR0651","CRAFTMASTER PAINTS",1/8/2022 00:00:00,28/8/2022 00:00:00,"P05-2023"
,"LEE VALLEY MARINA SPRINGFIELD","SUPPLIES AND SERVICES","TRADING AC - EXTERNAL PURCHASE","4875","P118683-SERVICE-Chandlery Stock",9/8/2022 00:00:00,"265654",26.72,"AS0036","ASAP SUPPLIES",1/8/2022 00:00:00,28/8/2022 00:00:00,"P05-2023"
,"LEE VALLEY MARINA SPRINGFIELD","SUPPLIES AND SERVICES","TRADING AC - EXTERNAL PURCHASE","4875","P118875-SERVICE-Chandlery Stock",9/8/2022 00:00:00,"265775",573.73,"MI0200","MIDLAND CHANDLERS LIMITED",1/8/2022 00:00:00,28/8/2022 00:00:00,"P05-2023"
,"LEE VALLEY MARINA SPRINGFIELD","SUPPLIES AND SERVICES","TRADING AC - EXTERNAL PURCHASE","4875","P118918-SERVICE-Chandlery Stock",9/8/2022 00:00:00,"265833",641.16,"MI0200","MIDLAND CHANDLERS LIMITED",1/8/2022 00:00:00,28/8/2022 00:00:00,"P05-2023"
,"LEE VALLEY MARINA SPRINGFIELD","SUPPLIES AND SERVICES","TRADING AC - EXTERNAL PURCHASE","4875","P118913-SERVICE-Chandlery Stock  196950",15/8/2022 00:00:00,"265978",169.08,"AS0036","ASAP SUPPLIES",1/8/2022 00:00:00,28/8/2022 00:00:00,"P05-2023"
,"LEE VALLEY MARINA SPRINGFIELD","SUPPLIES AND SERVICES","TRADING AC - EXTERNAL PURCHASE","4875","P118893-SERVICE-Chandlery Stock (hull blacking)",18/8/2022 00:00:00,"265985",620,"SM0658","SML PAINTS AND COATINGS",1/8/2022 00:00:00,28/8/2022 00:00:00,"P05-2023"
,"LEE VALLEY MARINA SPRINGFIELD","SUPPLIES AND SERVICES","TRADING AC - EXTERNAL PURCHASE","4875","P118893-SERVICE-Chandlery Stock (hull blacking)",18/8/2022 00:00:00,"265985",620,"SM0658","SML PAINTS AND COATINGS",1/8/2022 00:00:00,28/8/2022 00:00:00,"P05-2023"
,"LEE VALLEY MARINA SPRINGFIELD","SUPPLIES AND SERVICES","TRADING AC - EXTERNAL PURCHASE","4875","P118893-SERVICE-Chandlery Stock (hull blacking)",18/8/2022 00:00:00,"265985",40.25,"SM0658","SML PAINTS AND COATINGS",1/8/2022 00:00:00,28/8/2022 00:00:00,"P05-2023"
,"LEE VALLEY MARINA SPRINGFIELD","SUPPLIES AND SERVICES","TRADING AC - EXTERNAL PURCHASE","4875","P118488-SERVICE-Chandlery Stock  (filters)",17/8/2022 00:00:00,"266020",137.03,"EP0353","E P BARRUS LTD",1/8/2022 00:00:00,28/8/2022 00:00:00,"P05-2023"
,"LEE VALLEY MARINA SPRINGFIELD","SUPPLIES AND SERVICES","TRADING AC - EXTERNAL PURCHASE","4875","P118982-SERVICE-Chandlery Stock",18/8/2022 00:00:00,"266073",375.23,"CE0510","CENTURION EUROPE LIMITED",1/8/2022 00:00:00,28/8/2022 00:00:00,"P05-2023"
,"LEE VALLEY MARINA SPRINGFIELD","SUPPLIES AND SERVICES","TRADING AC - EXTERNAL PURCHASE","4875","P119028-SERVICE-Chandlery Stock  108587",18/8/2022 00:00:00,"266074",395.52,"AQ0033","AQUAFAX LIMITED",1/8/2022 00:00:00,28/8/2022 00:00:00,"P05-2023"
,"LEE VALLEY MARINA SPRINGFIELD","SUPPLIES AND SERVICES","TRADING AC - EXTERNAL PURCHASE","4875","P118960-SERVICE-Chandlery Stock",18/8/2022 00:00:00,"266106",799.46,"DS0201","DSM GROUP",1/8/2022 00:00:00,28/8/2022 00:00:00,"P05-2023"
,"LEE VALLEY MARINA SPRINGFIELD","SUPPLIES AND SERVICES","TRADING AC - EXTERNAL PURCHASE","4875","AQUAFAX LIMITED",28/8/2022 00:00:00,"266113",183.08,"AQ0033","AQUAFAX LIMITED",1/8/2022 00:00:00,28/8/2022 00:00:00,"P05-2023"
,"LEE VALLEY MARINA SPRINGFIELD","SUPPLIES AND SERVICES","TRADING AC - EXTERNAL PURCHASE","4875","P119028-SERVICE-Chandlery Stock  108587",18/8/2022 00:00:00,"266114",-183.08,"AQ0033","AQUAFAX LIMITED",1/8/2022 00:00:00,28/8/2022 00:00:00,"P05-2023"
,"LEE VALLEY MARINA SPRINGFIELD","SUPPLIES AND SERVICES","TRADING AC - EXTERNAL PURCHASE","4875","P117925-SERVICE-Chandlery Stock",23/8/2022 00:00:00,"266267",235,"HA0371","HARTS OF OAK",1/8/2022 00:00:00,28/8/2022 00:00:00,"P05-2023"
,"LEE VALLEY MARINA SPRINGFIELD","SUPPLIES AND SERVICES","TRADING AC - EXTERNAL PURCHASE","4875","P119099-SERVICE-Chandlery Stock",28/8/2022 00:00:00,"266276",818.14,"MI0200","MIDLAND CHANDLERS LIMITED",1/8/2022 00:00:00,28/8/2022 00:00:00,"P05-2023"
,"LEE VALLEY MARINA SPRINGFIELD","SUPPLIES AND SERVICES","TRADING AC - EXTERNAL PURCHASE","4875","P118960-SERVICE-Chandlery Stock",28/8/2022 00:00:00,"266294",162.25,"DS0201","DSM GROUP",1/8/2022 00:00:00,28/8/2022 00:00:00,"P05-2023"
,"LEE VALLEY MARINA SPRINGFIELD","SUPPLIES AND SERVICES","TRADING AC - EXTERNAL PURCHASE","4875","P118960-SERVICE-Chandlery Stock",28/8/2022 00:00:00,"266295",25.5,"DS0201","DSM GROUP",1/8/2022 00:00:00,28/8/2022 00:00:00,"P05-2023"
,"STANSTEAD RECHARGEABLE WORKS","SUPPLIES AND SERVICES","TRADING AC - EXTERNAL PURCHASE","4875","P117464-SERVICE-chandlery stock",9/8/2022 00:00:00,"264581",45.29,"MI0200","MIDLAND CHANDLERS LIMITED",1/8/2022 00:00:00,28/8/2022 00:00:00,"P05-2023"
,"STANSTEAD RECHARGEABLE WORKS","SUPPLIES AND SERVICES","TRADING AC - EXTERNAL PURCHASE","4875","P118614-SERVICE-chandlery stock",9/8/2022 00:00:00,"264935",444.75,"CR0651","CRAFTMASTER PAINTS",1/8/2022 00:00:00,28/8/2022 00:00:00,"P05-2023"
,"STANSTEAD RECHARGEABLE WORKS","SUPPLIES AND SERVICES","TRADING AC - EXTERNAL PURCHASE","4875","P118624-SERVICE-chandlery stock",4/8/2022 00:00:00,"264992",131.86,"MI0200","MIDLAND CHANDLERS LIMITED",1/8/2022 00:00:00,28/8/2022 00:00:00,"P05-2023"
,"STANSTEAD RECHARGEABLE WORKS","SUPPLIES AND SERVICES","TRADING AC - EXTERNAL PURCHASE","4875","P118479-SERVICE-chandlery stock",4/8/2022 00:00:00,"265005",5.21,"AQ0033","AQUAFAX LIMITED",1/8/2022 00:00:00,28/8/2022 00:00:00,"P05-2023"
,"STANSTEAD RECHARGEABLE WORKS","SUPPLIES AND SERVICES","TRADING AC - EXTERNAL PURCHASE","4875","P118651-SERVICE-chandlery stock",4/8/2022 00:00:00,"265012",1735.23,"MI0200","MIDLAND CHANDLERS LIMITED",1/8/2022 00:00:00,28/8/2022 00:00:00,"P05-2023"
,"STANSTEAD RECHARGEABLE WORKS","SUPPLIES AND SERVICES","TRADING AC - EXTERNAL PURCHASE","4875","P118654-SERVICE-customer order",4/8/2022 00:00:00,"265021",17.93,"MI0200","MIDLAND CHANDLERS LIMITED",1/8/2022 00:00:00,28/8/2022 00:00:00,"P05-2023"
,"STANSTEAD RECHARGEABLE WORKS","SUPPLIES AND SERVICES","TRADING AC - EXTERNAL PURCHASE","4875","P118651-SERVICE-chandlery stock",4/8/2022 00:00:00,"265022",57.76,"MI0200","MIDLAND CHANDLERS LIMITED",1/8/2022 00:00:00,28/8/2022 00:00:00,"P05-2023"
,"STANSTEAD RECHARGEABLE WORKS","SUPPLIES AND SERVICES","TRADING AC - EXTERNAL PURCHASE","4875","P118479-SERVICE-chandlery stock",4/8/2022 00:00:00,"265123",6.19,"AQ0033","AQUAFAX LIMITED",1/8/2022 00:00:00,28/8/2022 00:00:00,"P05-2023"
,"STANSTEAD RECHARGEABLE WORKS","SUPPLIES AND SERVICES","TRADING AC - EXTERNAL PURCHASE","4875","P118652-SERVICE-chandlery stock",3/8/2022 00:00:00,"265128",344.31,"360001","BIDFOOD",1/8/2022 00:00:00,28/8/2022 00:00:00,"P05-2023"
,"STANSTEAD RECHARGEABLE WORKS","SUPPLIES AND SERVICES","TRADING AC - EXTERNAL PURCHASE","4875","P118651-SERVICE-chandlery stock",4/8/2022 00:00:00,"265155",51.39,"MI0200","MIDLAND CHANDLERS LIMITED",1/8/2022 00:00:00,28/8/2022 00:00:00,"P05-2023"
,"STANSTEAD RECHARGEABLE WORKS","SUPPLIES AND SERVICES","TRADING AC - EXTERNAL PURCHASE","4875","P118651-SERVICE-chandlery stock",16/8/2022 00:00:00,"265157",2.73,"MI0200","MIDLAND CHANDLERS LIMITED",1/8/2022 00:00:00,28/8/2022 00:00:00,"P05-2023"
,"STANSTEAD RECHARGEABLE WORKS","SUPPLIES AND SERVICES","TRADING AC - EXTERNAL PURCHASE","4875","P118707-SERVICE-chandlery stock",18/8/2022 00:00:00,"265186",16.32,"BE0198","BETA MARINE LIMITED",1/8/2022 00:00:00,28/8/2022 00:00:00,"P05-2023"
,"STANSTEAD RECHARGEABLE WORKS","SUPPLIES AND SERVICES","TRADING AC - EXTERNAL PURCHASE","4875","P118707-SERVICE-elivery",18/8/2022 00:00:00,"265186",4.08,"BE0198","BETA MARINE LIMITED",1/8/2022 00:00:00,28/8/2022 00:00:00,"P05-2023"
,"STANSTEAD RECHARGEABLE WORKS","SUPPLIES AND SERVICES","TRADING AC - EXTERNAL PURCHASE","4875","P118682-SERVICE-chandlery stock",22/8/2022 00:00:00,"265192",826.87,"CE0510","CENTURION EUROPE LIMITED",1/8/2022 00:00:00,28/8/2022 00:00:00,"P05-2023"
,"STANSTEAD RECHARGEABLE WORKS","SUPPLIES AND SERVICES","TRADING AC - EXTERNAL PURCHASE","4875","P118651-SERVICE-chandlery stock",16/8/2022 00:00:00,"265212",2.43,"MI0200","MIDLAND CHANDLERS LIMITED",1/8/2022 00:00:00,28/8/2022 00:00:00,"P05-2023"
,"STANSTEAD RECHARGEABLE WORKS","SUPPLIES AND SERVICES","TRADING AC - EXTERNAL PURCHASE","4875","P118703-SERVICE-chandlery stock",16/8/2022 00:00:00,"265354",794.17,"EC0394","MANBAT LTD T/AS",1/8/2022 00:00:00,28/8/2022 00:00:00,"P05-2023"
,"STANSTEAD RECHARGEABLE WORKS","SUPPLIES AND SERVICES","TRADING AC - EXTERNAL PURCHASE","4875","P118651-SERVICE-chandlery stock",16/8/2022 00:00:00,"265370",4.5,"MI0200","MIDLAND CHANDLERS LIMITED",1/8/2022 00:00:00,28/8/2022 00:00:00,"P05-2023"
,"STANSTEAD RECHARGEABLE WORKS","SUPPLIES AND SERVICES","TRADING AC - EXTERNAL PURCHASE","4875","P118776-SERVICE-chandlery stock",16/8/2022 00:00:00,"265371",78.3,"MI0200","MIDLAND CHANDLERS LIMITED",1/8/2022 00:00:00,28/8/2022 00:00:00,"P05-2023"
,"STANSTEAD RECHARGEABLE WORKS","SUPPLIES AND SERVICES","TRADING AC - EXTERNAL PURCHASE","4875","P118776-SERVICE-chandlery stock",16/8/2022 00:00:00,"265372",18.04,"MI0200","MIDLAND CHANDLERS LIMITED",1/8/2022 00:00:00,28/8/2022 00:00:00,"P05-2023"
,"STANSTEAD RECHARGEABLE WORKS","SUPPLIES AND SERVICES","TRADING AC - EXTERNAL PURCHASE","4875","P118663-SERVICE-red diesel @ 110.45ppl",16/8/2022 00:00:00,"265387",2429.9,"HA0400","WATSON FUELS",1/8/2022 00:00:00,28/8/2022 00:00:00,"P05-2023"
,"STANSTEAD RECHARGEABLE WORKS","SUPPLIES AND SERVICES","TRADING AC - EXTERNAL PURCHASE","4875","P118663-SERVICE-additional 28l delivered",16/8/2022 00:00:00,"265387",30.93,"HA0400","WATSON FUELS",1/8/2022 00:00:00,28/8/2022 00:00:00,"P05-2023"
,"STANSTEAD RECHARGEABLE WORKS","SUPPLIES AND SERVICES","TRADING AC - EXTERNAL PURCHASE","4875","P118776-SERVICE-chandlery stock",16/8/2022 00:00:00,"265413",1227.32,"MI0200","MIDLAND CHANDLERS LIMITED",1/8/2022 00:00:00,28/8/2022 00:00:00,"P05-2023"
,"STANSTEAD RECHARGEABLE WORKS","SUPPLIES AND SERVICES","TRADING AC - EXTERNAL PURCHASE","4875","MIDLAND CHANDLERS LIMITED",16/8/2022 00:00:00,"265413",-1227.32,"MI0200","MIDLAND CHANDLERS LIMITED",1/8/2022 00:00:00,28/8/2022 00:00:00,"P05-2023"
,"STANSTEAD RECHARGEABLE WORKS","SUPPLIES AND SERVICES","TRADING AC - EXTERNAL PURCHASE","4875","MIDLAND CHANDLERS LIMITED",16/8/2022 00:00:00,"265413",46.89,"MI0200","MIDLAND CHANDLERS LIMITED",1/8/2022 00:00:00,28/8/2022 00:00:00,"P05-2023"
,"STANSTEAD RECHARGEABLE WORKS","SUPPLIES AND SERVICES","TRADING AC - EXTERNAL PURCHASE","4875","MIDLAND CHANDLERS LIMITED",16/8/2022 00:00:00,"265413",1180.43,"MI0200","MIDLAND CHANDLERS LIMITED",1/8/2022 00:00:00,28/8/2022 00:00:00,"P05-2023"
,"STANSTEAD RECHARGEABLE WORKS","SUPPLIES AND SERVICES","TRADING AC - EXTERNAL PURCHASE","4875","P118786-SERVICE-chandlery stock",16/8/2022 00:00:00,"265415",807.26,"AQ0033","AQUAFAX LIMITED",1/8/2022 00:00:00,28/8/2022 00:00:00,"P05-2023"
,"STANSTEAD RECHARGEABLE WORKS","SUPPLIES AND SERVICES","TRADING AC - EXTERNAL PURCHASE","4875","P118786-SERVICE-chandlery stock",22/8/2022 00:00:00,"265416",24.27,"AQ0033","AQUAFAX LIMITED",1/8/2022 00:00:00,28/8/2022 00:00:00,"P05-2023"
,"STANSTEAD RECHARGEABLE WORKS","SUPPLIES AND SERVICES","TRADING AC - EXTERNAL PURCHASE","4875","P118825-SERVICE-extra to meet invoice .30",16/8/2022 00:00:00,"265518",0.3,"CR0651","CRAFTMASTER PAINTS",1/8/2022 00:00:00,28/8/2022 00:00:00,"P05-2023"
,"STANSTEAD RECHARGEABLE WORKS","SUPPLIES AND SERVICES","TRADING AC - EXTERNAL PURCHASE","4875","P118825-SERVICE-chandlery stock",16/8/2022 00:00:00,"265518",344.71,"CR0651","CRAFTMASTER PAINTS",1/8/2022 00:00:00,28/8/2022 00:00:00,"P05-2023"
,"STANSTEAD RECHARGEABLE WORKS","SUPPLIES AND SERVICES","TRADING AC - EXTERNAL PURCHASE","4875","P118776-SERVICE-chandlery stock",22/8/2022 00:00:00,"265524",51.15,"MI0200","MIDLAND CHANDLERS LIMITED",1/8/2022 00:00:00,28/8/2022 00:00:00,"P05-2023"
,"STANSTEAD RECHARGEABLE WORKS","SUPPLIES AND SERVICES","TRADING AC - EXTERNAL PURCHASE","4875","P118786-SERVICE-chandlery stock",22/8/2022 00:00:00,"265543",20.79,"AQ0033","AQUAFAX LIMITED",1/8/2022 00:00:00,28/8/2022 00:00:00,"P05-2023"
,"STANSTEAD RECHARGEABLE WORKS","SUPPLIES AND SERVICES","TRADING AC - EXTERNAL PURCHASE","4875","P118786-SERVICE-chandlery stock",22/8/2022 00:00:00,"265544",88.71,"AQ0033","AQUAFAX LIMITED",1/8/2022 00:00:00,28/8/2022 00:00:00,"P05-2023"
,"STANSTEAD RECHARGEABLE WORKS","SUPPLIES AND SERVICES","TRADING AC - EXTERNAL PURCHASE","4875","P118818-SERVICE-chandlery stock",22/8/2022 00:00:00,"265545",89.11,"MI0200","MIDLAND CHANDLERS LIMITED",1/8/2022 00:00:00,28/8/2022 00:00:00,"P05-2023"
,"STANSTEAD RECHARGEABLE WORKS","SUPPLIES AND SERVICES","TRADING AC - EXTERNAL PURCHASE","4875","P118786-SERVICE-chandlery stock",22/8/2022 00:00:00,"265580",19.92,"AQ0033","AQUAFAX LIMITED",1/8/2022 00:00:00,28/8/2022 00:00:00,"P05-2023"
,"STANSTEAD RECHARGEABLE WORKS","SUPPLIES AND SERVICES","TRADING AC - EXTERNAL PURCHASE","4875","P118776-SERVICE-chandlery stock",22/8/2022 00:00:00,"265581",68.65,"MI0200","MIDLAND CHANDLERS LIMITED",1/8/2022 00:00:00,28/8/2022 00:00:00,"P05-2023"
,"STANSTEAD RECHARGEABLE WORKS","SUPPLIES AND SERVICES","TRADING AC - EXTERNAL PURCHASE","4875","P118626-SERVICE-additional to meet invoice",16/8/2022 00:00:00,"265651",84.04,"SM0664","KG SMITH & SON",1/8/2022 00:00:00,28/8/2022 00:00:00,"P05-2023"
,"STANSTEAD RECHARGEABLE WORKS","SUPPLIES AND SERVICES","TRADING AC - EXTERNAL PURCHASE","4875","P118626-SERVICE-chandlery stock",16/8/2022 00:00:00,"265651",1608.21,"SM0664","KG SMITH & SON",1/8/2022 00:00:00,28/8/2022 00:00:00,"P05-2023"
,"STANSTEAD RECHARGEABLE WORKS","SUPPLIES AND SERVICES","TRADING AC - EXTERNAL PURCHASE","4875","P117932-SERVICE-calor gas cage rental",16/8/2022 00:00:00,"265746",13,"CA0006","CALOR GAS LIMITED",1/8/2022 00:00:00,28/8/2022 00:00:00,"P05-2023"
,"STANSTEAD RECHARGEABLE WORKS","SUPPLIES AND SERVICES","TRADING AC - EXTERNAL PURCHASE","4875","P118906-SERVICE-chandlery stock",28/8/2022 00:00:00,"265776",20.37,"MI0200","MIDLAND CHANDLERS LIMITED",1/8/2022 00:00:00,28/8/2022 00:00:00,"P05-2023"
,"STANSTEAD RECHARGEABLE WORKS","SUPPLIES AND SERVICES","TRADING AC - EXTERNAL PURCHASE","4875","P118906-SERVICE-chandlery stock",28/8/2022 00:00:00,"265777",15.5,"MI0200","MIDLAND CHANDLERS LIMITED",1/8/2022 00:00:00,28/8/2022 00:00:00,"P05-2023"
,"STANSTEAD RECHARGEABLE WORKS","SUPPLIES AND SERVICES","TRADING AC - EXTERNAL PURCHASE","4875","P118906-SERVICE-chandlery stock",28/8/2022 00:00:00,"265811",602.54,"MI0200","MIDLAND CHANDLERS LIMITED",1/8/2022 00:00:00,28/8/2022 00:00:00,"P05-2023"
,"STANSTEAD RECHARGEABLE WORKS","SUPPLIES AND SERVICES","TRADING AC - EXTERNAL PURCHASE","4875","P118786-SERVICE-chandlery stock",22/8/2022 00:00:00,"265812",3.42,"AQ0033","AQUAFAX LIMITED",1/8/2022 00:00:00,28/8/2022 00:00:00,"P05-2023"
,"STANSTEAD RECHARGEABLE WORKS","SUPPLIES AND SERVICES","TRADING AC - EXTERNAL PURCHASE","4875","P118906-SERVICE-chandlery stock",28/8/2022 00:00:00,"265834",15.5,"MI0200","MIDLAND CHANDLERS LIMITED",1/8/2022 00:00:00,28/8/2022 00:00:00,"P05-2023"
,"STANSTEAD RECHARGEABLE WORKS","SUPPLIES AND SERVICES","TRADING AC - EXTERNAL PURCHASE","4875","P119060-SERVICE-chandlery stock",18/8/2022 00:00:00,"265868",15.34,"MI0200","MIDLAND CHANDLERS LIMITED",1/8/2022 00:00:00,28/8/2022 00:00:00,"P05-2023"
,"STANSTEAD RECHARGEABLE WORKS","SUPPLIES AND SERVICES","TRADING AC - EXTERNAL PURCHASE","4875","P118936-SERVICE-2200l red diesel @ 100.35ppl",22/8/2022 00:00:00,"265883",2207.7,"SP0543","SPEEDY FUELS LIMITED",1/8/2022 00:00:00,28/8/2022 00:00:00,"P05-2023"
,"STANSTEAD RECHARGEABLE WORKS","SUPPLIES AND SERVICES","TRADING AC - EXTERNAL PURCHASE","4875","P118936-SERVICE-205l drum of white diesel @ 494.00",22/8/2022 00:00:00,"265884",494,"SP0543","SPEEDY FUELS LIMITED",1/8/2022 00:00:00,28/8/2022 00:00:00,"P05-2023"
,"STANSTEAD RECHARGEABLE WORKS","SUPPLIES AND SERVICES","TRADING AC - EXTERNAL PURCHASE","4875","P118786-SERVICE-chandlery stock",28/8/2022 00:00:00,"265901",6.96,"AQ0033","AQUAFAX LIMITED",1/8/2022 00:00:00,28/8/2022 00:00:00,"P05-2023"
,"STANSTEAD RECHARGEABLE WORKS","SUPPLIES AND SERVICES","TRADING AC - EXTERNAL PURCHASE","4875","P118981-SERVICE-chandlery stock",28/8/2022 00:00:00,"265984",324.73,"360001","BIDFOOD",1/8/2022 00:00:00,28/8/2022 00:00:00,"P05-2023"
,"STANSTEAD RECHARGEABLE WORKS","SUPPLIES AND SERVICES","TRADING AC - EXTERNAL PURCHASE","4875","P119013-SERVICE-customer order",28/8/2022 00:00:00,"266011",214.48,"CR0651","CRAFTMASTER PAINTS",1/8/2022 00:00:00,28/8/2022 00:00:00,"P05-2023"
,"STANSTEAD RECHARGEABLE WORKS","SUPPLIES AND SERVICES","TRADING AC - EXTERNAL PURCHASE","4875","P118995-SERVICE-chandlery stock",28/8/2022 00:00:00,"266015",331.44,"AQ0033","AQUAFAX LIMITED",1/8/2022 00:00:00,28/8/2022 00:00:00,"P05-2023"
,"STANSTEAD RECHARGEABLE WORKS","SUPPLIES AND SERVICES","TRADING AC - EXTERNAL PURCHASE","4875","P118786-SERVICE-chandlery stock",28/8/2022 00:00:00,"266016",6.18,"AQ0033","AQUAFAX LIMITED",1/8/2022 00:00:00,28/8/2022 00:00:00,"P05-2023"
,"STANSTEAD RECHARGEABLE WORKS","SUPPLIES AND SERVICES","TRADING AC - EXTERNAL PURCHASE","4875","P119003-SERVICE-chandlery stock",28/8/2022 00:00:00,"266017",572.89,"MI0200","MIDLAND CHANDLERS LIMITED",1/8/2022 00:00:00,28/8/2022 00:00:00,"P05-2023"
,"STANSTEAD RECHARGEABLE WORKS","SUPPLIES AND SERVICES","TRADING AC - EXTERNAL PURCHASE","4875","P119003-SERVICE-chandlery stock",28/8/2022 00:00:00,"266018",26.48,"MI0200","MIDLAND CHANDLERS LIMITED",1/8/2022 00:00:00,28/8/2022 00:00:00,"P05-2023"
,"STANSTEAD RECHARGEABLE WORKS","SUPPLIES AND SERVICES","TRADING AC - EXTERNAL PURCHASE","4875","P118651-SERVICE-chandlery stock",28/8/2022 00:00:00,"266019",41.45,"MI0200","MIDLAND CHANDLERS LIMITED",1/8/2022 00:00:00,28/8/2022 00:00:00,"P05-2023"
,"STANSTEAD RECHARGEABLE WORKS","SUPPLIES AND SERVICES","TRADING AC - EXTERNAL PURCHASE","4875","P118995-SERVICE-chandlery stock",28/8/2022 00:00:00,"266034",120.9,"AQ0033","AQUAFAX LIMITED",1/8/2022 00:00:00,28/8/2022 00:00:00,"P05-2023"
,"STANSTEAD RECHARGEABLE WORKS","SUPPLIES AND SERVICES","TRADING AC - EXTERNAL PURCHASE","4875","P119003-SERVICE-chandlery stock",28/8/2022 00:00:00,"266035",28.18,"MI0200","MIDLAND CHANDLERS LIMITED",1/8/2022 00:00:00,28/8/2022 00:00:00,"P05-2023"
,"STANSTEAD RECHARGEABLE WORKS","SUPPLIES AND SERVICES","TRADING AC - EXTERNAL PURCHASE","4875","P118980-SERVICE-chandlery stock",28/8/2022 00:00:00,"266072",366.01,"CE0510","CENTURION EUROPE LIMITED",1/8/2022 00:00:00,28/8/2022 00:00:00,"P05-2023"
,"STANSTEAD RECHARGEABLE WORKS","SUPPLIES AND SERVICES","TRADING AC - EXTERNAL PURCHASE","4875","P118174-SERVICE-gas order",28/8/2022 00:00:00,"266253",-108.25,"SM0664","KG SMITH & SON",1/8/2022 00:00:00,28/8/2022 00:00:00,"P05-2023"
,"STANSTEAD RECHARGEABLE WORKS","SUPPLIES AND SERVICES","TRADING AC - EXTERNAL PURCHASE","4875","P119088-SERVICE-chandlery stock",28/8/2022 00:00:00,"266277",1212.66,"MI0200","MIDLAND CHANDLERS LIMITED",1/8/2022 00:00:00,28/8/2022 00:00:00,"P05-2023"
,"STANSTEAD RECHARGEABLE WORKS","SUPPLIES AND SERVICES","TRADING AC - EXTERNAL PURCHASE","4875","P118786-SERVICE-chandlery stock",28/8/2022 00:00:00,"266283",16.18,"AQ0033","AQUAFAX LIMITED",1/8/2022 00:00:00,28/8/2022 00:00:00,"P05-2023"
,"STANSTEAD RECHARGEABLE WORKS","SUPPLIES AND SERVICES","TRADING AC - EXTERNAL PURCHASE","4875","P119088-SERVICE-chandlery stock",28/8/2022 00:00:00,"266284",24.36,"MI0200","MIDLAND CHANDLERS LIMITED",1/8/2022 00:00:00,28/8/2022 00:00:00,"P05-2023"
,"STANSTEAD RECHARGEABLE WORKS","SUPPLIES AND SERVICES","TRADING AC - EXTERNAL PURCHASE","4875","P119003-SERVICE-chandlery stock",28/8/2022 00:00:00,"266285",23.08,"MI0200","MIDLAND CHANDLERS LIMITED",1/8/2022 00:00:00,28/8/2022 00:00:00,"P05-2023"
,"STANSTEAD RECHARGEABLE WORKS","SUPPLIES AND SERVICES","TRADING AC - EXTERNAL PURCHASE","4875","P119088-SERVICE-chandlery stock",28/8/2022 00:00:00,"266286",39.67,"MI0200","MIDLAND CHANDLERS LIMITED",1/8/2022 00:00:00,28/8/2022 00:00:00,"P05-2023"
,"STANSTEAD RECHARGEABLE WORKS","SUPPLIES AND SERVICES","TRADING AC - EXTERNAL PURCHASE","4875","P119084-SERVICE-200l white diesel",28/8/2022 00:00:00,"266309",368.15,"SP0543","SPEEDY FUELS LIMITED",1/8/2022 00:00:00,28/8/2022 00:00:00,"P05-2023"
,"STANSTEAD RECHARGEABLE WORKS","SUPPLIES AND SERVICES","TRADING AC - EXTERNAL PURCHASE","4875","P119088-SERVICE-chandlery stock",28/8/2022 00:00:00,"266323",56.02,"MI0200","MIDLAND CHANDLERS LIMITED",1/8/2022 00:00:00,28/8/2022 00:00:00,"P05-2023"
,"LV LEISURE CENTRE CAMPSITE","SUPPLIES AND SERVICES","TRADING AC - EXTERNAL PURCHASE","4875","RIJO 42 INGREDIENTS LIMITED",10/8/2022 00:00:00,"265183",-180.01,"RI0176","RIJO 42 INGREDIENTS LIMITED",1/8/2022 00:00:00,28/8/2022 00:00:00,"P05-2023"
,"LV LEISURE CENTRE CAMPSITE","SUPPLIES AND SERVICES","TRADING AC - EXTERNAL PURCHASE","4875","RIJO 42 INGREDIENTS LIMITED",10/8/2022 00:00:00,"265183",6.5,"RI0176","RIJO 42 INGREDIENTS LIMITED",1/8/2022 00:00:00,28/8/2022 00:00:00,"P05-2023"
,"LV LEISURE CENTRE CAMPSITE","SUPPLIES AND SERVICES","TRADING AC - EXTERNAL PURCHASE","4875","RIJO 42 INGREDIENTS LIMITED",10/8/2022 00:00:00,"265183",173.51,"RI0176","RIJO 42 INGREDIENTS LIMITED",1/8/2022 00:00:00,28/8/2022 00:00:00,"P05-2023"
,"LV LEISURE CENTRE CAMPSITE","SUPPLIES AND SERVICES","TRADING AC - EXTERNAL PURCHASE","4875","P118892-SERVICE-Edmonton coffee/sugar/milk",10/8/2022 00:00:00,"265183",182.01,"RI0176","RIJO 42 INGREDIENTS LIMITED",1/8/2022 00:00:00,28/8/2022 00:00:00,"P05-2023"
,"LV LEISURE CENTRE CAMPSITE","SUPPLIES AND SERVICES","TRADING AC - EXTERNAL PURCHASE","4875","P118949-SERVICE-Lrg Filter, Deluxe choclate, Milk, Fan filter",15/8/2022 00:00:00,"265642",206.39,"RI0176","RIJO 42 INGREDIENTS LIMITED",1/8/2022 00:00:00,28/8/2022 00:00:00,"P05-2023"
,"LV LEISURE CENTRE CAMPSITE","SUPPLIES AND SERVICES","TRADING AC - EXTERNAL PURCHASE","4875","RIJO 42 INGREDIENTS LIMITED",15/8/2022 00:00:00,"265642",-206.39,"RI0176","RIJO 42 INGREDIENTS LIMITED",1/8/2022 00:00:00,28/8/2022 00:00:00,"P05-2023"
,"LV LEISURE CENTRE CAMPSITE","SUPPLIES AND SERVICES","TRADING AC - EXTERNAL PURCHASE","4875","RIJO 42 INGREDIENTS LIMITED",15/8/2022 00:00:00,"265642",125.5,"RI0176","RIJO 42 INGREDIENTS LIMITED",1/8/2022 00:00:00,28/8/2022 00:00:00,"P05-2023"
,"LV LEISURE CENTRE CAMPSITE","SUPPLIES AND SERVICES","TRADING AC - EXTERNAL PURCHASE","4875","RIJO 42 INGREDIENTS LIMITED",15/8/2022 00:00:00,"265642",80.89,"RI0176","RIJO 42 INGREDIENTS LIMITED",1/8/2022 00:00:00,28/8/2022 00:00:00,"P05-2023"
,"LV LEISURE CENTRE CAMPSITE","SUPPLIES AND SERVICES","TRADING AC - EXTERNAL PURCHASE","4875","P119042-SERVICE-Office stationary",22/8/2022 00:00:00,"266242",172.56,"TH0008","JKL SOLUTIONS LTD",1/8/2022 00:00:00,28/8/2022 00:00:00,"P05-2023"
,"LEE VALLEY CAMPSITE","SUPPLIES AND SERVICES","TRAVEL CARDS","4876","P118919-SERVICE-Adult travel cards  zone 1-6",23/8/2022 00:00:00,"265870",7778.5,"PA0003","TRANSPORT TRADING LIMITED",1/8/2022 00:00:00,28/8/2022 00:00:00,"P05-2023"
"CEO","CHIEF EXECUTIVE","SUPPLIES AND SERVICES","UNRECONCILED COMPANY CARD EXP","4880","PAULINE ANDREWS - AUGUST 2022 CREDIT CARD STATEMENT",9/8/2022 00:00:00,"265762",1862.85,"NA0007","NATWEST CARD CENTRE",1/8/2022 00:00:00,28/8/2022 00:00:00,"P05-2023"
"P&V","MYDDELTON HOUSE","SUPPLIES AND SERVICES","UNRECONCILED COMPANY CARD EXP","4880","GEORGE FLAVIEN  - AUGUST 2022 CREDIT CARD STATEMENT",9/8/2022 00:00:00,"265762",1073.35,"NA0007","NATWEST CARD CENTRE",1/8/2022 00:00:00,28/8/2022 00:00:00,"P05-2023"
"CEO","PR/COMMUNICATIONS","SUPPLIES AND SERVICES","UNRECONCILED COMPANY CARD EXP","4880","STEPHEN BROMBERG  - AUGUST 2022 CREDIT CARD STATEMENT",9/8/2022 00:00:00,"265762",4484.85,"NA0007","NATWEST CARD CENTRE",1/8/2022 00:00:00,28/8/2022 00:00:00,"P05-2023"
"R&B","DEMOCRATIC REPRESENTATION & MA","SUPPLIES AND SERVICES","UNRECONCILED COMPANY CARD EXP","4880","SANDRA BERTSCHIN  - AUGUST 2022 CREDIT CARD STATEMENT",9/8/2022 00:00:00,"265762",74.64,"NA0007","NATWEST CARD CENTRE",1/8/2022 00:00:00,28/8/2022 00:00:00,"P05-2023"
"R&B","FINANCE & RESOURCES MANAGEMENT","SUPPLIES AND SERVICES","UNRECONCILED COMPANY CARD EXP","4880","LOUISE READ  - AUGUST 2022 CREDIT CARD STATEMENT",9/8/2022 00:00:00,"265762",292.5,"NA0007","NATWEST CARD CENTRE",1/8/2022 00:00:00,28/8/2022 00:00:00,"P05-2023"
"R&B","INFORMATION TECHNOLOGY","SUPPLIES AND SERVICES","UNRECONCILED COMPANY CARD EXP","4880","SIMON CLARK  - AUGUST 2022 CREDIT CARD STATEMENT",9/8/2022 00:00:00,"265762",1194.41,"NA0007","NATWEST CARD CENTRE",1/8/2022 00:00:00,28/8/2022 00:00:00,"P05-2023"
,"LEE VALLEY MARINA SPRINGFIELD","SUPPLIES AND SERVICES","UNRECONCILED COMPANY CARD EXP","4880","TRACEY BEAN  - AUGUST 2022 CREDIT CARD STATEMENT",9/8/2022 00:00:00,"265762",348.64,"NA0007","NATWEST CARD CENTRE",1/8/2022 00:00:00,28/8/2022 00:00:00,"P05-2023"
,"LEE VALLEY MARINA SPRINGFIELD","SUPPLIES AND SERVICES","UNRECONCILED COMPANY CARD EXP","4880","LESLEY SCOTT  - AUGUST 2022 CREDIT CARD STATEMENT",9/8/2022 00:00:00,"265762",44.58,"NA0007","NATWEST CARD CENTRE",1/8/2022 00:00:00,28/8/2022 00:00:00,"P05-2023"
,"LEE VALLEY MARINA STANSTEAD","SUPPLIES AND SERVICES","UNRECONCILED COMPANY CARD EXP","4880","CLAIRE BAKER  - AUGUST 2022 CREDIT CARD STATEMENT",9/8/2022 00:00:00,"265762",277.97,"NA0007","NATWEST CARD CENTRE",1/8/2022 00:00:00,28/8/2022 00:00:00,"P05-2023"
"P&V","LEE VALLEY FARM HOLYFIELDHALL","SUPPLIES AND SERVICES","UNRECONCILED COMPANY CARD EXP","4880","JASON PAINTER  - AUGUST 2022 CREDIT CARD STATEMENT",9/8/2022 00:00:00,"265762",303.25,"NA0007","NATWEST CARD CENTRE",1/8/2022 00:00:00,28/8/2022 00:00:00,"P05-2023"
,"LEE VALLEY CAMPSITE","SUPPLIES AND SERVICES","UNRECONCILED COMPANY CARD EXP","4880","COLBIE CARTER  - AUGUST 2022 CREDIT CARD STATEMENT",9/8/2022 00:00:00,"265762",6311.1,"NA0007","NATWEST CARD CENTRE",1/8/2022 00:00:00,28/8/2022 00:00:00,"P05-2023"
,"LEE VALLEY CARAVAN PARK","SUPPLIES AND SERVICES","UNRECONCILED COMPANY CARD EXP","4880","IAN RUSSELL  - AUGUST 2022 CREDIT CARD STATEMENT",9/8/2022 00:00:00,"265762",1912.62,"NA0007","NATWEST CARD CENTRE",1/8/2022 00:00:00,28/8/2022 00:00:00,"P05-2023"
"P&V","MYDDELTON HOUSE GARDENS","SUPPLIES AND SERVICES","UNRECONCILED COMPANY CARD EXP","4880","RICHARD HARMES  - AUGUST 2022 CREDIT CARD STATEMENT",9/8/2022 00:00:00,"265762",472.5,"NA0007","NATWEST CARD CENTRE",1/8/2022 00:00:00,28/8/2022 00:00:00,"P05-2023"
"P&V","OPERATIONAL MANAGEMENT (L&E)","SUPPLIES AND SERVICES","UNRECONCILED COMPANY CARD EXP","4880","DAVID HUTLEY  - AUGUST 2022 CREDIT CARD STATEMENT",9/8/2022 00:00:00,"265762",-160.6,"NA0007","NATWEST CARD CENTRE",1/8/2022 00:00:00,28/8/2022 00:00:00,"P05-2023"
"P&V","OPERATIONAL MANAGEMENT (L&E)","SUPPLIES AND SERVICES","UNRECONCILED COMPANY CARD EXP","4880","JAMES HETHERINGTON  - AUGUST 2022 CREDIT CARD STATEMENT",9/8/2022 00:00:00,"265762",1634.94,"NA0007","NATWEST CARD CENTRE",1/8/2022 00:00:00,28/8/2022 00:00:00,"P05-2023"
"P&V","POLICY & PERFORMANCE (L&E)","SUPPLIES AND SERVICES","UNRECONCILED COMPANY CARD EXP","4880","ALISON SACKETT- - AUGUST 2022 CREDIT CARD STATEMENT",9/8/2022 00:00:00,"265762",1847.63,"NA0007","NATWEST CARD CENTRE",1/8/2022 00:00:00,28/8/2022 00:00:00,"P05-2023"
"P&V","EVENTS MANAGEMENT (PR)","SUPPLIES AND SERVICES","UNRECONCILED COMPANY CARD EXP","4880","SOPHIE STONE  - AUGUST 2022 CREDIT CARD STATEMENT",9/8/2022 00:00:00,"265762",875.02,"NA0007","NATWEST CARD CENTRE",1/8/2022 00:00:00,28/8/2022 00:00:00,"P05-2023"
"CEO","COMMERCIAL ACCOMMODATION","SUPPLIES AND SERVICES","OTHER EXPENSES","4899","P117468-SERVICE-Land Registry Fees",16/8/2022 00:00:00,"266030",30,"HM0032","HM LAND REGISTRY",1/8/2022 00:00:00,28/8/2022 00:00:00,"P05-2023"
"CEO","COMMERCIAL ACCOMMODATION","SUPPLIES AND SERVICES","OTHER EXPENSES","4899","P117468-SERVICE-Land Registry Fees",22/8/2022 00:00:00,"266258",15,"HM0032","HM LAND REGISTRY",1/8/2022 00:00:00,28/8/2022 00:00:00,"P05-2023"
"P&V","PROJECT & FUNDING DELIVERY","SUPPLIES AND SERVICES","OTHER EXPENSES","4899","P118046-SERVICE-APSE Membership",16/8/2022 00:00:00,"266070",838,"AP0492","APSE",1/8/2022 00:00:00,28/8/2022 00:00:00,"P05-2023"
"P&V","PROJECT & FUNDING DELIVERY","SUPPLIES AND SERVICES","OTHER EXPENSES","4899","P118047-SERVICE-Energy Membership",16/8/2022 00:00:00,"266071",912,"AP0492","APSE",1/8/2022 00:00:00,28/8/2022 00:00:00,"P05-2023"
"CEO","COMMONWEALTH GAMES 2022","SUPPLIES AND SERVICES","OTHER EXPENSES","4899","P118595-SERVICE-1 BMS engineer on site at venue 12 hour days",4/8/2022 00:00:00,"265622",4400,"IN0197","INTEGRATED BUILDING MANAGEMENT SYSTEMS LTD",1/8/2022 00:00:00,28/8/2022 00:00:00,"P05-2023"
"CEO","COMMONWEALTH GAMES 2022","SUPPLIES AND SERVICES","OTHER EXPENSES","4899","P118677-SERVICE-Security provision 29/7/22 - 1/8/22",4/8/2022 00:00:00,"265745",56857.13,"WI0227","WISE SECURITY SERVICES",1/8/2022 00:00:00,28/8/2022 00:00:00,"P05-2023"
"CEO","COMMONWEALTH GAMES 2022","SUPPLIES AND SERVICES","OTHER EXPENSES","4899","P118911-SERVICE-2 x cases of Water",9/8/2022 00:00:00,"265790",50,"GR0097","GREENWICH LEISURE LTD",1/8/2022 00:00:00,28/8/2022 00:00:00,"P05-2023"
"CEO","COMMONWEALTH GAMES 2022","SUPPLIES AND SERVICES","OTHER EXPENSES","4899","P118790-SERVICE-CWG Cleaning",9/8/2022 00:00:00,"265791",1420,"GR0097","GREENWICH LEISURE LTD",1/8/2022 00:00:00,28/8/2022 00:00:00,"P05-2023"
"CEO","COMMONWEALTH GAMES 2022","SUPPLIES AND SERVICES","OTHER EXPENSES","4899","GREENWICH LEISURE LTD",28/8/2022 00:00:00,"265793",14500,"GR0097","GREENWICH LEISURE LTD",1/8/2022 00:00:00,28/8/2022 00:00:00,"P05-2023"
"CEO","COMMONWEALTH GAMES 2022","SUPPLIES AND SERVICES","OTHER EXPENSES","4899","P118877-SERVICE-CWG Catering management fee",9/8/2022 00:00:00,"265794",5550,"GR0097","GREENWICH LEISURE LTD",1/8/2022 00:00:00,28/8/2022 00:00:00,"P05-2023"
"CEO","COMMONWEALTH GAMES 2022","SUPPLIES AND SERVICES","OTHER EXPENSES","4899","P118792-SERVICE-Venue staff for the duration of the hire peri",9/8/2022 00:00:00,"265795",130152.8,"GR0097","GREENWICH LEISURE LTD",1/8/2022 00:00:00,28/8/2022 00:00:00,"P05-2023"
"CEO","COMMONWEALTH GAMES 2022","SUPPLIES AND SERVICES","OTHER EXPENSES","4899","P118793-SERVICE-Event IT and Tech",22/8/2022 00:00:00,"265796",40000,"GR0097","GREENWICH LEISURE LTD",1/8/2022 00:00:00,28/8/2022 00:00:00,"P05-2023"
"CEO","COMMONWEALTH GAMES 2022","SUPPLIES AND SERVICES","OTHER EXPENSES","4899","P118795-SERVICE-Utilities",9/8/2022 00:00:00,"265797",60420,"GR0097","GREENWICH LEISURE LTD",1/8/2022 00:00:00,28/8/2022 00:00:00,"P05-2023"
"CEO","COMMONWEALTH GAMES 2022","SUPPLIES AND SERVICES","OTHER EXPENSES","4899","P118796-SERVICE-Facilities Management - -	Building Engineer C",9/8/2022 00:00:00,"265798",29940,"GR0097","GREENWICH LEISURE LTD",1/8/2022 00:00:00,28/8/2022 00:00:00,"P05-2023"
"CEO","COMMONWEALTH GAMES 2022","SUPPLIES AND SERVICES","OTHER EXPENSES","4899","P118878-SERVICE-CWG 75% obligatory catering",9/8/2022 00:00:00,"265799",117300,"BO0473","BOULEVARD EVENTS",1/8/2022 00:00:00,28/8/2022 00:00:00,"P05-2023"
"CEO","COMMONWEALTH GAMES 2022","SUPPLIES AND SERVICES","OTHER EXPENSES","4899","P118789-SERVICE-Emergency call out 13/7/22 to restore venue p",22/8/2022 00:00:00,"265808",250,"BR0018","BRADSHAW ELECTRICAL LIMITED",1/8/2022 00:00:00,28/8/2022 00:00:00,"P05-2023"
"CEO","COMMONWEALTH GAMES 2022","SUPPLIES AND SERVICES","OTHER EXPENSES","4899","P118831-SERVICE-Carry out stand by as requested on Saturday 3",9/8/2022 00:00:00,"265809",960,"PR0475","PREMIER LIFTS LTD",1/8/2022 00:00:00,28/8/2022 00:00:00,"P05-2023"
"CEO","COMMONWEALTH GAMES 2022","SUPPLIES AND SERVICES","OTHER EXPENSES","4899","P118916-SERVICE-Lift engineer call out 2/8/22",9/8/2022 00:00:00,"265820",150,"PR0475","PREMIER LIFTS LTD",1/8/2022 00:00:00,28/8/2022 00:00:00,"P05-2023"
"CEO","COMMONWEALTH GAMES 2022","SUPPLIES AND SERVICES","OTHER EXPENSES","4899","P118650-SERVICE-Set up and decommission of the new control ro",22/8/2022 00:00:00,"265830",1660.6,"ST0642","STANLEY SECURITY SOLUTIONS LTD",1/8/2022 00:00:00,28/8/2022 00:00:00,"P05-2023"
"CEO","COMMONWEALTH GAMES 2022","SUPPLIES AND SERVICES","OTHER EXPENSES","4899","P118946-SERVICE-Lift call out 27/7/22",9/8/2022 00:00:00,"265859",150,"PR0475","PREMIER LIFTS LTD",1/8/2022 00:00:00,28/8/2022 00:00:00,"P05-2023"
"CEO","COMMONWEALTH GAMES 2022","SUPPLIES AND SERVICES","OTHER EXPENSES","4899","P118914-SERVICE-Lift engineer call out 13/7/22",9/8/2022 00:00:00,"265860",150,"PR0475","PREMIER LIFTS LTD",1/8/2022 00:00:00,28/8/2022 00:00:00,"P05-2023"
"CEO","COMMONWEALTH GAMES 2022","SUPPLIES AND SERVICES","OTHER EXPENSES","4899","P118947-SERVICE-Accessibility lift on track call out",9/8/2022 00:00:00,"265861",150,"PR0475","PREMIER LIFTS LTD",1/8/2022 00:00:00,28/8/2022 00:00:00,"P05-2023"
"CEO","COMMONWEALTH GAMES 2022","SUPPLIES AND SERVICES","OTHER EXPENSES","4899","P118917-SERVICE-2 x Main Entrance Automatic Sliding Doors",16/8/2022 00:00:00,"265895",730,"GR0097","GREENWICH LEISURE LTD",1/8/2022 00:00:00,28/8/2022 00:00:00,"P05-2023"
"CEO","COMMONWEALTH GAMES 2022","SUPPLIES AND SERVICES","OTHER EXPENSES","4899","P119024-SERVICE-Cleaning material used",18/8/2022 00:00:00,"266098",1538.6,"GR0097","GREENWICH LEISURE LTD",1/8/2022 00:00:00,28/8/2022 00:00:00,"P05-2023"
"CEO","COMMONWEALTH GAMES 2022","SUPPLIES AND SERVICES","OTHER EXPENSES","4899","P119023-SERVICE-Venue cleaning post event",18/8/2022 00:00:00,"266099",1216,"GR0097","GREENWICH LEISURE LTD",1/8/2022 00:00:00,28/8/2022 00:00:00,"P05-2023"
"CEO","COMMONWEALTH GAMES 2022","SUPPLIES AND SERVICES","OTHER EXPENSES","4899","P119022-SERVICE-Venue cleaning pre event",18/8/2022 00:00:00,"266100",2964,"GR0097","GREENWICH LEISURE LTD",1/8/2022 00:00:00,28/8/2022 00:00:00,"P05-2023"
"CEO","COMMONWEALTH GAMES 2022","SUPPLIES AND SERVICES","OTHER EXPENSES","4899","GREENWICH LEISURE LTD",28/8/2022 00:00:00,"266464",-14500,"GR0097","GREENWICH LEISURE LTD",1/8/2022 00:00:00,28/8/2022 00:00:00,"P05-2023"
"CEO","COMMONWEALTH GAMES 2022","SUPPLIES AND SERVICES","OTHER EXPENSES","4899","P118805-SERVICE-Engineer onsite for cover during the event.",28/8/2022 00:00:00,"266471",7892.43,"PO0455","POWER TESTING LTD",1/8/2022 00:00:00,28/8/2022 00:00:00,"P05-2023"
"P&V","RIVER LEE COUNTRY PARK","SUPPLIES AND SERVICES","OTHER EXPENSES","4899","P119193-SERVICE-Membership of ParkHerts",28/8/2022 00:00:00,"266218",150,"NO0229","NORTH HERTS COUNCIL",1/8/2022 00:00:00,28/8/2022 00:00:00,"P05-2023"
"P&V","COMMUNITY ACCESS FUND","SUPPLIES AND SERVICES","OTHER EXPENSES","4899","P119110-SERVICE-Two hours session all ability",22/8/2022 00:00:00,"266105",240,"BI0470","BIKE WORKS",1/8/2022 00:00:00,28/8/2022 00:00:00,"P05-2023"
,"LV LEISURE CENTRE CAMPSITE","SUPPLIES AND SERVICES","OTHER EXPENSES","4899","P118951-SERVICE-June Monthly pest control",9/8/2022 00:00:00,"265661",70,"VE0006","VERMINATE CITY & RURAL PEST CONTROL LTD",1/8/2022 00:00:00,28/8/2022 00:00:00,"P05-2023"
,"LV LEISURE CENTRE CAMPSITE","SUPPLIES AND SERVICES","OTHER EXPENSES","4899","P118952-SERVICE-July Monthly pest control",9/8/2022 00:00:00,"265662",70,"VE0006","VERMINATE CITY & RURAL PEST CONTROL LTD",1/8/2022 00:00:00,28/8/2022 00:00:00,"P05-2023"
,"LV LEISURE CENTRE CAMPSITE","SUPPLIES AND SERVICES","OTHER EXPENSES","4899","P118830-SERVICE-Dimirtry Timesheet Campsite 16hrs",10/8/2022 00:00:00,"265882",240,"NE0225","DIMITRI NEOPHYTOU",1/8/2022 00:00:00,28/8/2022 00:00:00,"P05-2023"
,"LV LEISURE CENTRE CAMPSITE","SUPPLIES AND SERVICES","OTHER EXPENSES","4899","P119175-SERVICE-Timesheet 64 Hrs on Edmonton Campsite",28/8/2022 00:00:00,"266467",960,"NE0225","DIMITRI NEOPHYTOU",1/8/2022 00:00:00,28/8/2022 00:00:00,"P05-2023"
,"LV LEISURE CENTRE GOLF COURSE","SUPPLIES AND SERVICES","OTHER EXPENSES","4899","P118552-SERVICE-Removal of OPM nests",4/8/2022 00:00:00,"265594",3575,"CO0752","COMPLETE TREE CARE LTD",1/8/2022 00:00:00,28/8/2022 00:00:00,"P05-2023"
,"LV LEISURE CENTRE GOLF COURSE","SUPPLIES AND SERVICES","OTHER EXPENSES","4899","P118830-SERVICE-Dimitri Timesheet Golf",10/8/2022 00:00:00,"265882",922.5,"NE0225","DIMITRI NEOPHYTOU",1/8/2022 00:00:00,28/8/2022 00:00:00,"P05-2023"
"P&V","AWARDS AND ACCREDITATIONS","SUPPLIES AND SERVICES","OTHER EXPENSES","4899","P118414-SERVICE-Mystery Vists and Quality Audits",16/8/2022 00:00:00,"266036",1180,"RI0053","RIGHT DIRECTIONS (MANAGEMENT) LTD",1/8/2022 00:00:00,28/8/2022 00:00:00,"P05-2023"
"P&V","AWARDS AND ACCREDITATIONS","SUPPLIES AND SERVICES","OTHER EXPENSES","4899","P119142-SERVICE-Membership of Park herts and green flag atten",28/8/2022 00:00:00,"266218",100,"NO0229","NORTH HERTS COUNCIL",1/8/2022 00:00:00,28/8/2022 00:00:00,"P05-2023"
"P&V","ASSET PROTECTION, MAINT, DEVEL","CAPITAL EXPENDITURE","CAPITAL EXPENDITURE","4990","P118668-SERVICE-CCT Preventative maintenance 1/7 - 30/9/22",18/8/2022 00:00:00,"264776",2028.99,"ST0642","STANLEY SECURITY SOLUTIONS LTD",1/8/2022 00:00:00,28/8/2022 00:00:00,"P05-2023"
"P&V","ASSET PROTECTION, MAINT, DEVEL","CAPITAL EXPENDITURE","CAPITAL EXPENDITURE","4990","P118669-SERVICE-Rental CCTv equipment VeloPark 1/7-30/9/22",18/8/2022 00:00:00,"264777",11460.51,"ST0642","STANLEY SECURITY SOLUTIONS LTD",1/8/2022 00:00:00,28/8/2022 00:00:00,"P05-2023"
"P&V","ASSET PROTECTION, MAINT, DEVEL","CAPITAL EXPENDITURE","CAPITAL EXPENDITURE","4990","P117141-SERVICE-Additional cost to orginal order as per MS",24/8/2022 00:00:00,"265558",4103.6,"BP0447","BPC ENERGY LIMITED",1/8/2022 00:00:00,28/8/2022 00:00:00,"P05-2023"
"P&V","ASSET PROTECTION, MAINT, DEVEL","CAPITAL EXPENDITURE","CAPITAL EXPENDITURE","4990","P117141-SERVICE-PowerPro EL380DSP 80kVA / 72KW three phase st",24/8/2022 00:00:00,"265558",13023.6,"BP0447","BPC ENERGY LIMITED",1/8/2022 00:00:00,28/8/2022 00:00:00,"P05-2023"
"P&V","ASSET PROTECTION, MAINT, DEVEL","CAPITAL EXPENDITURE","CAPITAL EXPENDITURE","4990","P118837-SERVICE-Adjust Lock on door at Abercrombie Lodge",4/8/2022 00:00:00,"265615",120,"RE0094","REACT 2 IT (BUILDING & REFURBISHMENT) LTD",1/8/2022 00:00:00,28/8/2022 00:00:00,"P05-2023"
"P&V","ASSET PROTECTION, MAINT, DEVEL","CAPITAL EXPENDITURE","CAPITAL EXPENDITURE","4990","P118806-SERVICE-Equipment Cabinet",4/8/2022 00:00:00,"265629",1214,"AL0491","ALTRON COMMUNICATIONS EQUIPMENT LTD",1/8/2022 00:00:00,28/8/2022 00:00:00,"P05-2023"
"P&V","ASSET PROTECTION, MAINT, DEVEL","CAPITAL EXPENDITURE","CAPITAL EXPENDITURE","4990","P118806-SERVICE-Delivery",4/8/2022 00:00:00,"265629",24,"AL0491","ALTRON COMMUNICATIONS EQUIPMENT LTD",1/8/2022 00:00:00,28/8/2022 00:00:00,"P05-2023"
"P&V","ASSET PROTECTION, MAINT, DEVEL","CAPITAL EXPENDITURE","CAPITAL EXPENDITURE","4990","CAPSER",16/8/2022 00:00:00,"265674",-8250,"MO0041","CAPSER",1/8/2022 00:00:00,28/8/2022 00:00:00,"P05-2023"
"P&V","ASSET PROTECTION, MAINT, DEVEL","CAPITAL EXPENDITURE","CAPITAL EXPENDITURE","4990","CAPSER",16/8/2022 00:00:00,"265674",6250,"MO0041","CAPSER",1/8/2022 00:00:00,28/8/2022 00:00:00,"P05-2023"
"P&V","ASSET PROTECTION, MAINT, DEVEL","CAPITAL EXPENDITURE","CAPITAL EXPENDITURE","4990","P116481-SERVICE-Additional works agreed by MS",16/8/2022 00:00:00,"265674",8250,"MO0041","CAPSER",1/8/2022 00:00:00,28/8/2022 00:00:00,"P05-2023"
"P&V","ASSET PROTECTION, MAINT, DEVEL","CAPITAL EXPENDITURE","CAPITAL EXPENDITURE","4990","CAPSER",16/8/2022 00:00:00,"265674",2000,"MO0041","CAPSER",1/8/2022 00:00:00,28/8/2022 00:00:00,"P05-2023"
"P&V","ASSET PROTECTION, MAINT, DEVEL","CAPITAL EXPENDITURE","CAPITAL EXPENDITURE","4990","P118297-SERVICE-Track repairs as per quote dated 6/6/22",18/8/2022 00:00:00,"265680",2150,"BU0090","BUSH WHEELER SERVICES LTD",1/8/2022 00:00:00,28/8/2022 00:00:00,"P05-2023"
"P&V","ASSET PROTECTION, MAINT, DEVEL","CAPITAL EXPENDITURE","CAPITAL EXPENDITURE","4990","P118871-SERVICE-To refit rubber tracking to edge of track,",22/8/2022 00:00:00,"265771",1280,"RE0094","REACT 2 IT (BUILDING & REFURBISHMENT) LTD",1/8/2022 00:00:00,28/8/2022 00:00:00,"P05-2023"
"P&V","ASSET PROTECTION, MAINT, DEVEL","CAPITAL EXPENDITURE","CAPITAL EXPENDITURE","4990","P118876-SERVICE-Hocket & Tennis Roof Lights Safety Works",9/8/2022 00:00:00,"265772",2480,"RE0094","REACT 2 IT (BUILDING & REFURBISHMENT) LTD",1/8/2022 00:00:00,28/8/2022 00:00:00,"P05-2023"
"P&V","ASSET PROTECTION, MAINT, DEVEL","CAPITAL EXPENDITURE","CAPITAL EXPENDITURE","4990","P119145-SERVICE-VP :LED lighting project additional costs",24/8/2022 00:00:00,"265803",41350.01,"EL0411","ELCOM PROJECTS LTD",1/8/2022 00:00:00,28/8/2022 00:00:00,"P05-2023"
"P&V","ASSET PROTECTION, MAINT, DEVEL","CAPITAL EXPENDITURE","CAPITAL EXPENDITURE","4990","P119001-SERVICE-VP Design and install floor graphics",16/8/2022 00:00:00,"265817",1093.6,"LT0386","LTD LTD",1/8/2022 00:00:00,28/8/2022 00:00:00,"P05-2023"
"P&V","ASSET PROTECTION, MAINT, DEVEL","CAPITAL EXPENDITURE","CAPITAL EXPENDITURE","4990","P119002-SERVICE-2006 Panels Create artwork",18/8/2022 00:00:00,"265818",592,"LT0386","LTD LTD",1/8/2022 00:00:00,28/8/2022 00:00:00,"P05-2023"
"P&V","ASSET PROTECTION, MAINT, DEVEL","CAPITAL EXPENDITURE","CAPITAL EXPENDITURE","4990","P119111-SERVICE-Stanstead Marina",22/8/2022 00:00:00,"265847",190,"BR0018","BRADSHAW ELECTRICAL LIMITED",1/8/2022 00:00:00,28/8/2022 00:00:00,"P05-2023"
"P&V","ASSET PROTECTION, MAINT, DEVEL","CAPITAL EXPENDITURE","CAPITAL EXPENDITURE","4990","P118197-SERVICE-HTC Roof clearance and treatment",16/8/2022 00:00:00,"265998",191.23,"GL0214","GLENDALE GROUNDS MANAGEMENT LIMITED",1/8/2022 00:00:00,28/8/2022 00:00:00,"P05-2023"
"P&V","ASSET PROTECTION, MAINT, DEVEL","CAPITAL EXPENDITURE","CAPITAL EXPENDITURE","4990","KENDALL & SONS LIMITED",18/8/2022 00:00:00,"266009",-1454,"KE0023","KENDALL & SONS LIMITED",1/8/2022 00:00:00,28/8/2022 00:00:00,"P05-2023"
"P&V","ASSET PROTECTION, MAINT, DEVEL","CAPITAL EXPENDITURE","CAPITAL EXPENDITURE","4990","KENDALL & SONS LIMITED",18/8/2022 00:00:00,"266009",625,"KE0023","KENDALL & SONS LIMITED",1/8/2022 00:00:00,28/8/2022 00:00:00,"P05-2023"
"P&V","ASSET PROTECTION, MAINT, DEVEL","CAPITAL EXPENDITURE","CAPITAL EXPENDITURE","4990","KENDALL & SONS LIMITED",18/8/2022 00:00:00,"266009",829,"KE0023","KENDALL & SONS LIMITED",1/8/2022 00:00:00,28/8/2022 00:00:00,"P05-2023"
"P&V","ASSET PROTECTION, MAINT, DEVEL","CAPITAL EXPENDITURE","CAPITAL EXPENDITURE","4990","P118895-SERVICE-Investigate Water Leak at WaterWorks",18/8/2022 00:00:00,"266009",1454,"KE0023","KENDALL & SONS LIMITED",1/8/2022 00:00:00,28/8/2022 00:00:00,"P05-2023"
"P&V","ASSET PROTECTION, MAINT, DEVEL","CAPITAL EXPENDITURE","CAPITAL EXPENDITURE","4990","P118541-SERVICE-Concreate Paving Stanstead Marina",18/8/2022 00:00:00,"266010",2000,"KE0023","KENDALL & SONS LIMITED",1/8/2022 00:00:00,28/8/2022 00:00:00,"P05-2023"
"P&V","ASSET PROTECTION, MAINT, DEVEL","CAPITAL EXPENDITURE","CAPITAL EXPENDITURE","4990","KENDALL & SONS LIMITED",18/8/2022 00:00:00,"266010",-2000,"KE0023","KENDALL & SONS LIMITED",1/8/2022 00:00:00,28/8/2022 00:00:00,"P05-2023"
"P&V","ASSET PROTECTION, MAINT, DEVEL","CAPITAL EXPENDITURE","CAPITAL EXPENDITURE","4990","KENDALL & SONS LIMITED",18/8/2022 00:00:00,"266010",1750,"KE0023","KENDALL & SONS LIMITED",1/8/2022 00:00:00,28/8/2022 00:00:00,"P05-2023"
"P&V","ASSET PROTECTION, MAINT, DEVEL","CAPITAL EXPENDITURE","CAPITAL EXPENDITURE","4990","KENDALL & SONS LIMITED",18/8/2022 00:00:00,"266010",250,"KE0023","KENDALL & SONS LIMITED",1/8/2022 00:00:00,28/8/2022 00:00:00,"P05-2023"
"P&V","ASSET PROTECTION, MAINT, DEVEL","CAPITAL EXPENDITURE","CAPITAL EXPENDITURE","4990","P117760-SERVICE-Lee Valley Show Ground",16/8/2022 00:00:00,"266040",3595,"RB0221","R 'n' B ENGINEERING LTD",1/8/2022 00:00:00,28/8/2022 00:00:00,"P05-2023"
"P&V","ASSET PROTECTION, MAINT, DEVEL","CAPITAL EXPENDITURE","CAPITAL EXPENDITURE","4990","P117788-SERVICE-WWC Repairs to Legacy pump 1",24/8/2022 00:00:00,"266225",30507.12,"CL0039","XYLEM WATER SOLUTIONS UK  LIMITED",1/8/2022 00:00:00,28/8/2022 00:00:00,"P05-2023"
"P&V","ASSET PROTECTION, MAINT, DEVEL","CAPITAL EXPENDITURE","CAPITAL EXPENDITURE","4990","P118426-SERVICE-LVAC indoor track resurface",22/8/2022 00:00:00,"266245",380229.19,"DY0290","DYNAMIK SPORT SURFACE LTD",1/8/2022 00:00:00,28/8/2022 00:00:00,"P05-2023"
"P&V","ASSET PROTECTION, MAINT, DEVEL","CAPITAL EXPENDITURE","CAPITAL EXPENDITURE","4990","P118861-SERVICE-Three Mills Green Surface Re-Profiling and Dr",24/8/2022 00:00:00,"266249",213750,"HE0297","HENDERSON & TAYLOR (PUBLIC WORKS LIMITED)",1/8/2022 00:00:00,28/8/2022 00:00:00,"P05-2023"
"R&B","INFORMATION TECHNOLOGY","CAPITAL EXPENDITURE","CAPITAL EXPENDITURE","4990","P118565-SERVICE-ASUS 14 inchK 17 16 GB/512GB WinPro 11 Grey",28/8/2022 00:00:00,"265038",2406.96,"CC0711","CCS MEDIA LIMITED",1/8/2022 00:00:00,28/8/2022 00:00:00,"P05-2023"
"R&B","INFORMATION TECHNOLOGY","CAPITAL EXPENDITURE","CAPITAL EXPENDITURE","4990","P118565-SERVICE-ASUS 14 inch 17/16GB/512GB WinPro 11 BLACK",28/8/2022 00:00:00,"265038",799.78,"CC0711","CCS MEDIA LIMITED",1/8/2022 00:00:00,28/8/2022 00:00:00,"P05-2023"
"R&B","INFORMATION TECHNOLOGY","CAPITAL EXPENDITURE","CAPITAL EXPENDITURE","4990","P118869-SERVICE-Fibre works & Cabin Data ports - Sewardstone",4/8/2022 00:00:00,"265550",2430,"DE0318","DESIGN AND MANAGEMENT SYSTEMS LTD",1/8/2022 00:00:00,28/8/2022 00:00:00,"P05-2023"
"R&B","INFORMATION TECHNOLOGY","CAPITAL EXPENDITURE","CAPITAL EXPENDITURE","4990","P118716-SERVICE- 3 x Screens  - 168.00 each.",9/8/2022 00:00:00,"265577",516,"IQ0022","IQUAL",1/8/2022 00:00:00,28/8/2022 00:00:00,"P05-2023"
"R&B","INFORMATION TECHNOLOGY","CAPITAL EXPENDITURE","CAPITAL EXPENDITURE","4990","P118716-SERVICE-Nvidia Quadro Professional Graphics Card",9/8/2022 00:00:00,"265577",224,"IQ0022","IQUAL",1/8/2022 00:00:00,28/8/2022 00:00:00,"P05-2023"
"R&B","INFORMATION TECHNOLOGY","CAPITAL EXPENDITURE","CAPITAL EXPENDITURE","4990","P118716-SERVICE-3 to 5 Year Next Business Day Warranty Extens",9/8/2022 00:00:00,"265577",68,"IQ0022","IQUAL",1/8/2022 00:00:00,28/8/2022 00:00:00,"P05-2023"
"R&B","INFORMATION TECHNOLOGY","CAPITAL EXPENDITURE","CAPITAL EXPENDITURE","4990","P118716-SERVICE-CCTV Hardware for Patching",9/8/2022 00:00:00,"265577",1240,"IQ0022","IQUAL",1/8/2022 00:00:00,28/8/2022 00:00:00,"P05-2023"
"R&B","INFORMATION TECHNOLOGY","CAPITAL EXPENDITURE","CAPITAL EXPENDITURE","4990","P118194-SERVICE-Finance System Upgrade - Implementation proje",9/8/2022 00:00:00,"265619",331.22,"CE0021","ADVANCED BUSINESS SOLUTIONS",1/8/2022 00:00:00,28/8/2022 00:00:00,"P05-2023"
"R&B","INFORMATION TECHNOLOGY","CAPITAL EXPENDITURE","CAPITAL EXPENDITURE","4990","P118857-SERVICE-Dell Docking Station WD19S - USB-C HDMI,",9/8/2022 00:00:00,"265784",640,"BA0652","BALLICOM LTD",1/8/2022 00:00:00,28/8/2022 00:00:00,"P05-2023"
,"LEE VALLEY MARINA STANSTEAD","CAPITAL EXPENDITURE","CAPITAL EXPENDITURE","4990","P115786-SERVICE-lee sanitation pump out 50% deposit",16/8/2022 00:00:00,"265230",-1000,"LE0059","LEE SANITATION LTD",1/8/2022 00:00:00,28/8/2022 00:00:00,"P05-2023"
,"LEE VALLEY MARINA STANSTEAD","CAPITAL EXPENDITURE","CAPITAL EXPENDITURE","4990","P115786-SERVICE-installation of pump out",16/8/2022 00:00:00,"265647",1552,"LE0059","LEE SANITATION LTD",1/8/2022 00:00:00,28/8/2022 00:00:00,"P05-2023"
,"LEE VALLEY CAMPSITE","CAPITAL EXPENDITURE","CAPITAL EXPENDITURE","4990","P115216-SERVICE-increase value to cover invoice",9/8/2022 00:00:00,"265366",1275,"BR0018","BRADSHAW ELECTRICAL LIMITED",1/8/2022 00:00:00,28/8/2022 00:00:00,"P05-2023"
,"LEE VALLEY CAMPSITE","CAPITAL EXPENDITURE","CAPITAL EXPENDITURE","4990","P115216-SERVICE-New TP&N Distribution Glamping pods x3",9/8/2022 00:00:00,"265366",1000,"BR0018","BRADSHAW ELECTRICAL LIMITED",1/8/2022 00:00:00,28/8/2022 00:00:00,"P05-2023"
"P&V","EAST INDIA DOCK AND BOW CREEK","CAPITAL EXPENDITURE","CAPITAL EXPENDITURE","4990","P118828-SERVICE-East India Dock Basin Project - Pre Applicati",28/8/2022 00:00:00,"266477",122,"MA0488","MARINE MANAGEMENT ORGANISATION",1/8/2022 00:00:00,28/8/2022 00:00:00,"P05-2023"
"P&V","EVENTS MANAGEMENT (PR)","THIRD PARTY PAYMENTS","EVENTS","5101","P118105-SERVICE-On completion of games",28/8/2022 00:00:00,"266469",800,"BR0018","BRADSHAW ELECTRICAL LIMITED",1/8/2022 00:00:00,28/8/2022 00:00:00,"P05-2023"
"CEO","PR/COMMUNICATIONS","THIRD PARTY PAYMENTS","CONSULTANTS (GENERAL)","5110","P118592-SERVICE-Olympic Legacy brochure print x 500",9/8/2022 00:00:00,"265404",1603,"PR0293","ELLE MEDIA GROUP",1/8/2022 00:00:00,28/8/2022 00:00:00,"P05-2023"
"CEO","PR/COMMUNICATIONS","THIRD PARTY PAYMENTS","CONSULTANTS (GENERAL)","5110","P118107-SERVICE-Communications Support for 2022-23",28/8/2022 00:00:00,"266272",3000,"LO0024","LONDON COMMUNICATIONS AGENCY LTD",1/8/2022 00:00:00,28/8/2022 00:00:00,"P05-2023"
"CEO","PR/COMMUNICATIONS","THIRD PARTY PAYMENTS","CONSULTANTS (GENERAL)","5110","P118107-SERVICE-Communications Support for 2022-23",28/8/2022 00:00:00,"266273",6000,"LO0024","LONDON COMMUNICATIONS AGENCY LTD",1/8/2022 00:00:00,28/8/2022 00:00:00,"P05-2023"
"CEO","PROPERTY","THIRD PARTY PAYMENTS","CONSULTANTS (GENERAL)","5110","P119008-SERVICE-Certificate of Value for Land to Rear 42 Sout",22/8/2022 00:00:00,"265970",300,"WA0009","PAUL WALLACE PROFESSIONAL",1/8/2022 00:00:00,28/8/2022 00:00:00,"P05-2023"
"P&V","ASSET PROTECTION, MAINT, DEVEL","THIRD PARTY PAYMENTS","CONSULTANTS (GENERAL)","5110","P118264-SERVICE-Replacement signage for various sites",16/8/2022 00:00:00,"265980",550,"PL0310","PLACEMARQUE LIMITED",1/8/2022 00:00:00,28/8/2022 00:00:00,"P05-2023"
"P&V","ASSET PROTECTION, MAINT, DEVEL","THIRD PARTY PAYMENTS","CONSULTANTS (GENERAL)","5110","P117421-SERVICE-VeloPark LED lighting project Stage 5",16/8/2022 00:00:00,"266039",15070,"BD0643","BDP (BUILDING DESIGN PARTNERSHIP LTD)",1/8/2022 00:00:00,28/8/2022 00:00:00,"P05-2023"
"P&V","ASSET PROTECTION, MAINT, DEVEL","THIRD PARTY PAYMENTS","CONSULTANTS (GENERAL)","5110","P116939-SERVICE-Three Mills Green site investigation interpre",22/8/2022 00:00:00,"266246",30000,"CH0468","CUNDALL",1/8/2022 00:00:00,28/8/2022 00:00:00,"P05-2023"
"R&B","FINANCE & RESOURCES MANAGEMENT","THIRD PARTY PAYMENTS","CONSULTANTS (GENERAL)","5110","P119018-SERVICE-Preperation of various reports",15/8/2022 00:00:00,"264600",3125,"LO0475","LONDON PENSION FUND AUTHORITY",1/8/2022 00:00:00,28/8/2022 00:00:00,"P05-2023"
"R&B","FINANCE & RESOURCES MANAGEMENT","THIRD PARTY PAYMENTS","CONSULTANTS (GENERAL)","5110","P119038-SERVICE-IAS19 Reports for 2020/21 audits as provided",28/8/2022 00:00:00,"266006",1150,"LO0475","LONDON PENSION FUND AUTHORITY",1/8/2022 00:00:00,28/8/2022 00:00:00,"P05-2023"
"CEO","LEGAL SERVICES","THIRD PARTY PAYMENTS","CONSULTANTS (GENERAL)","5110","P119050-SERVICE-Discharge of License - LVIC",18/8/2022 00:00:00,"265635",1505.8,"WO0344","WOMBLE BOND DICKINSON (UK) LLP",1/8/2022 00:00:00,28/8/2022 00:00:00,"P05-2023"
"CEO","LEGAL SERVICES","THIRD PARTY PAYMENTS","CONSULTANTS (GENERAL)","5110","P119051-SERVICE-Sale of 42 South Street",18/8/2022 00:00:00,"265636",653,"WO0344","WOMBLE BOND DICKINSON (UK) LLP",1/8/2022 00:00:00,28/8/2022 00:00:00,"P05-2023"
"CEO","LEGAL SERVICES","THIRD PARTY PAYMENTS","CONSULTANTS (GENERAL)","5110","P119052-SERVICE-Disposal of Mile & Langley Nursery",18/8/2022 00:00:00,"265637",4360,"WO0344","WOMBLE BOND DICKINSON (UK) LLP",1/8/2022 00:00:00,28/8/2022 00:00:00,"P05-2023"
"CEO","LEGAL SERVICES","THIRD PARTY PAYMENTS","CONSULTANTS (GENERAL)","5110","P119053-SERVICE-Wayleave Agreement - Roydon Road",18/8/2022 00:00:00,"265639",1302.6,"WO0344","WOMBLE BOND DICKINSON (UK) LLP",1/8/2022 00:00:00,28/8/2022 00:00:00,"P05-2023"
,"LSC HUMAN RESOURCES","THIRD PARTY PAYMENTS","CONSULTANTS (GENERAL)","5110","P118940-SERVICE-Legal Fees GLL/LV Admission",9/8/2022 00:00:00,"265841",2020,"LO0475","LONDON PENSION FUND AUTHORITY",1/8/2022 00:00:00,28/8/2022 00:00:00,"P05-2023"
"R&B","BALANCE SHEET (AUTHORITY)","CREDITORS","EMPLOYEES INCOME TAX","6701","PAYE",22/8/2022 00:00:00,"266124",55064.78,"HM0368","HMRC",1/8/2022 00:00:00,28/8/2022 00:00:00,"P05-2023"
"R&B","BALANCE SHEET (AUTHORITY)","CREDITORS","EMPLOYEES NATIONAL INSURANCE","6702","PAYE",22/8/2022 00:00:00,"266124",28377.93,"HM0368","HMRC",1/8/2022 00:00:00,28/8/2022 00:00:00,"P05-2023"
"R&B","BALANCE SHEET (AUTHORITY)","CREDITORS","EMPLOYERS NATIONAL INSURANCE","6704","PAYE",22/8/2022 00:00:00,"266124",42801.9,"HM0368","HMRC",1/8/2022 00:00:00,28/8/2022 00:00:00,"P05-2023"
"R&B","BALANCE SHEET (AUTHORITY)","CREDITORS","EMPLOYEES PENSION LGPS","6706","EMPLOYEE CONTRIBUTIONS",22/8/2022 00:00:00,"266123",25083.54,"LO0334","LONDON PENSION FUND OPERATIONAL ACCOUNT",1/8/2022 00:00:00,28/8/2022 00:00:00,"P05-2023"
"R&B","BALANCE SHEET (AUTHORITY)","CREDITORS","EMPLOYEES PENSION LGPS","6706","AVC CONTRIBUTION",22/8/2022 00:00:00,"266125",125,"LO0455","LOCAL GOVERNMENT AVC DEPARTMENT",1/8/2022 00:00:00,28/8/2022 00:00:00,"P05-2023"
"R&B","BALANCE SHEET (AUTHORITY)","CREDITORS","EMPLOYERS PENSION LGPS","6707","EMPLOYER CONTRIBUTIONS",22/8/2022 00:00:00,"266123",54465.09,"LO0334","LONDON PENSION FUND OPERATIONAL ACCOUNT",1/8/2022 00:00:00,28/8/2022 00:00:00,"P05-2023"
"R&B","BALANCE SHEET (AUTHORITY)","CREDITORS","EMPLOYEES STUDENT LOANS","6709","PAYE",22/8/2022 00:00:00,"266124",1004,"HM0368","HMRC",1/8/2022 00:00:00,28/8/2022 00:00:00,"P05-2023"
"R&B","BALANCE SHEET (AUTHORITY)","CREDITORS","EMPLOYEES AEO/DEO","6710","ATTACHMENT OF EARNINGS",22/8/2022 00:00:00,"266121",144.41,"DE0309","DEPARTMENT FOR WORK & PENSIONS",1/8/2022 00:00:00,28/8/2022 00:00:00,"P05-2023"
"R&B","BALANCE SHEET (AUTHORITY)","CREDITORS","EMPLOYEES AEO/DEO","6710","ATTACHMENT OF EARNINGS",22/8/2022 00:00:00,"266122",266.92,"HM0458","HMCTS-HERTFORDSHIRE MAGISTRATES COURT",1/8/2022 00:00:00,28/8/2022 00:00:00,"P05-2023"
"R&B","BALANCE SHEET (AUTHORITY)","CREDITORS","EMPLOYEES UNION SUBSCRIPTIONS","6711","MEMBERSHIP FEES",22/8/2022 00:00:00,"266126",57,"UN0002","UNISON Greater London Region",1/8/2022 00:00:00,28/8/2022 00:00:00,"P05-2023"
"R&B","BALANCE SHEET (AUTHORITY)","CREDITORS","CONSTRUCTION INDUSTRY SCHEME","6721","R G JOYCE",3/8/2022 00:00:00,"265711",-1280,"JO0019","R G JOYCE",1/8/2022 00:00:00,28/8/2022 00:00:00,"P05-2023"
"R&B","BALANCE SHEET (AUTHORITY)","CREDITORS","CONSTRUCTION INDUSTRY SCHEME","6721","KENDALL & SONS LIMITED",3/8/2022 00:00:00,"265713",-19.6,"KE0023","KENDALL & SONS LIMITED",1/8/2022 00:00:00,28/8/2022 00:00:00,"P05-2023"
"R&B","BALANCE SHEET (AUTHORITY)","CREDITORS","CONSTRUCTION INDUSTRY SCHEME","6721","CAPSER",10/8/2022 00:00:00,"265952",-440,"MO0041","CAPSER",1/8/2022 00:00:00,28/8/2022 00:00:00,"P05-2023"
"R&B","BALANCE SHEET (AUTHORITY)","CREDITORS","CONSTRUCTION INDUSTRY SCHEME","6721","CASPER",10/8/2022 00:00:00,"265982",597.4,"IN0016","INLAND REVENUE ONLY 948/L1005",1/8/2022 00:00:00,28/8/2022 00:00:00,"P05-2023"
"R&B","BALANCE SHEET (AUTHORITY)","CREDITORS","CONSTRUCTION INDUSTRY SCHEME","6721","KENDALL",10/8/2022 00:00:00,"265982",124.6,"IN0016","INLAND REVENUE ONLY 948/L1005",1/8/2022 00:00:00,28/8/2022 00:00:00,"P05-2023"
"R&B","BALANCE SHEET (AUTHORITY)","CREDITORS","CONSTRUCTION INDUSTRY SCHEME","6721","JOYCE",10/8/2022 00:00:00,"265982",1280,"IN0016","INLAND REVENUE ONLY 948/L1005",1/8/2022 00:00:00,28/8/2022 00:00:00,"P05-2023"
"R&B","BALANCE SHEET (AUTHORITY)","CREDITORS","CONSTRUCTION INDUSTRY SCHEME","6721","CAPSER",17/8/2022 00:00:00,"266183",-400,"MO0041","CAPSER",1/8/2022 00:00:00,28/8/2022 00:00:00,"P05-2023"
"R&B","BALANCE SHEET (AUTHORITY)","CREDITORS","CONSTRUCTION INDUSTRY SCHEME","6721","R G JOYCE",24/8/2022 00:00:00,"266390",-200,"JO0019","R G JOYCE",1/8/2022 00:00:00,28/8/2022 00:00:00,"P05-2023"
"R&B","REVENUE SUSPENSE (AUTHORITY)","GENERAL SUSPENSE","GENERAL SUSPENSE","6890","DAISY COMMUNICATIONS LTD",9/8/2022 00:00:00,"265846",2335.33,"ID0002","DAISY COMMUNICATIONS LTD",1/8/2022 00:00:00,28/8/2022 00:00:00,"P05-2023"
"R&B","ASSET MANAGEMENT REVENUE ACCT","CAPITAL FINANCING COSTS","BORROWING BROKERAGE FEES","6966","TULLETT PREBON (EUROPE) LIMITE",23/8/2022 00:00:00,"266310",4342.47,"TU0637","TULLETT PREBON (EUROPE) LIMITED",1/8/2022 00:00:00,28/8/2022 00:00:00,"P05-2023"
"R&B","ASSET MANAGEMENT REVENUE ACCT","CAPITAL FINANCING COSTS","BORROWING BROKERAGE FEES","6966","TULLETT PREBON (EUROPE) LIMITE",23/8/2022 00:00:00,"266311",4986.3,"TU0637","TULLETT PREBON (EUROPE) LIMITED",1/8/2022 00:00:00,28/8/2022 00:00:00,"P05-2023"
"P&V","CAR PARK INCOME","INCOME","CAR PARKING INCOME","9730","P119131-SERVICE-Paid Parking Tickets used GPP - Jul 2022",24/8/2022 00:00:00,"265602",3.55,"PA0372","PARKINGEYE LIMITED",1/8/2022 00:00:00,28/8/2022 00:00:00,"P05-2023"
"P&V","CAR PARK INCOME","INCOME","CAR PARKING INCOME","9730","P119131-SERVICE-Paid Parking Tickets used WAG - Jul 2022",24/8/2022 00:00:00,"265602",1.75,"PA0372","PARKINGEYE LIMITED",1/8/2022 00:00:00,28/8/2022 00:00:00,"P05-2023"
"P&V","CAR PARK INCOME","INCOME","CAR PARKING INCOME","9730","P119131-SERVICE-Paid Parking Tickets used CMM - Jul 2022",24/8/2022 00:00:00,"265602",1,"PA0372","PARKINGEYE LIMITED",1/8/2022 00:00:00,28/8/2022 00:00:00,"P05-2023"
"P&V","CAR PARK INCOME","INCOME","CAR PARKING INCOME","9730","P119131-SERVICE-Paid Parking Tickets used FG - Jul 2022",24/8/2022 00:00:00,"265602",3.01,"PA0372","PARKINGEYE LIMITED",1/8/2022 00:00:00,28/8/2022 00:00:00,"P05-2023"
"P&V","CAR PARK INCOME","INCOME","CAR PARKING INCOME","9730","PARKINGEYE LIMITED",3/8/2022 00:00:00,"265603",-7006.99,"PA0372","PARKINGEYE LIMITED",1/8/2022 00:00:00,28/8/2022 00:00:00,"P05-2023"
"P&V","CAR PARK INCOME","INCOME","CAR PARKING INCOME","9730","PARKINGEYE LIMITED",3/8/2022 00:00:00,"265603",453.42,"PA0372","PARKINGEYE LIMITED",1/8/2022 00:00:00,28/8/2022 00:00:00,"P05-2023"
"P&V","CAR PARK INCOME","INCOME","CAR PARKING INCOME","9730","PARKINGEYE LIMITED",3/8/2022 00:00:00,"265604",-88.68,"PA0372","PARKINGEYE LIMITED",1/8/2022 00:00:00,28/8/2022 00:00:00,"P05-2023"
"P&V","CAR PARK INCOME","INCOME","CAR PARKING INCOME","9730","PARKINGEYE LIMITED",3/8/2022 00:00:00,"265605",-37.5,"PA0372","PARKINGEYE LIMITED",1/8/2022 00:00:00,28/8/2022 00:00:00,"P05-2023"
"P&V","CAR PARK INCOME","INCOME","CAR PARKING INCOME","9730","PARKINGEYE LIMITED",3/8/2022 00:00:00,"265606",-53,"PA0372","PARKINGEYE LIMITED",1/8/2022 00:00:00,28/8/2022 00:00:00,"P05-2023"
"P&V","CAR PARK INCOME","INCOME","CAR PARKING INCOME","9730","PARKINGEYE LIMITED",3/8/2022 00:00:00,"265607",-115.03,"PA0372","PARKINGEYE LIMITED",1/8/2022 00:00:00,28/8/2022 00:00:00,"P05-2023"
"P&V","CAR PARK INCOME","INCOME","CAR PARKING INCOME","9730","PARKINGEYE LIMITED",3/8/2022 00:00:00,"265608",-52.35,"PA0372","PARKINGEYE LIMITED",1/8/2022 00:00:00,28/8/2022 00:00:00,"P05-2023"
"P&V","CAR PARK INCOME","INCOME","CAR PARKING INCOME","9730","PARKINGEYE LIMITED",3/8/2022 00:00:00,"265609",-15.68,"PA0372","PARKINGEYE LIMITED",1/8/2022 00:00:00,28/8/2022 00:00:00,"P05-2023"
"P&V","CAR PARK INCOME","INCOME","CAR PARKING INCOME","9730","PARKINGEYE LIMITED",3/8/2022 00:00:00,"265610",-72,"PA0372","PARKINGEYE LIMITED",1/8/2022 00:00:00,28/8/2022 00:00:00,"P05-2023"
"P&V","CAR PARK INCOME","INCOME","CAR PARKING INCOME","9730","P119131-SERVICE-P&D Recharge Jul 2022",24/8/2022 00:00:00,"265644",161.16,"PA0372","PARKINGEYE LIMITED",1/8/2022 00:00:00,28/8/2022 00:00:00,"P05-2023"
"P&V","CAR PARK INCOME","INCOME","CAR PARKING INCOME","9730","PARKINGEYE LIMITED",16/8/2022 00:00:00,"265975",13.33,"PA0372","PARKINGEYE LIMITED",1/8/2022 00:00:00,28/8/2022 00:00:00,"P05-2023"
"P&V","CAR PARK INCOME","INCOME","CAR PARKING INCOME","9730","PARKINGEYE LIMITED",16/8/2022 00:00:00,"265975",-126.67,"PA0372","PARKINGEYE LIMITED",1/8/2022 00:00:00,28/8/2022 00:00:00,"P05-2023"
